{"text_format":"1","workbook":"xlsx","n_sheets":10,"sheets":["Startpagina-Handleiding","Bijlage3_Aanvraag","Bijlage3_Evaluatie 2","Bijlage3_Evaluatie 3","Doc Load_Aanvraag","Doc Load_Evaluatie 2","Doc Load_Evaluatie 3","Upload AXI - CONF","Upload AXI","Bron"],"not_rendered":{"charts":0,"images":4,"macros":1,"external_links":2,"defined_names":26,"comments":0,"pivot_tables":0},"unopened":[],"bounds":{"document_bytes":16777216,"sheet_cells":100000,"rows_first":2000,"rows_last":500,"rows_between":2000,"halvings":0,"cell_chars":16384,"cell_head_chars":4096},"cells_cut":0,"cells_raw":0,"read":"whole","date_system":"1900"}

{"sheet":"Startpagina-Handleiding","index":0,"n_rows":20,"n_cols":10,"rows_kept":20,"cut":false,"hidden":false,"merged":[[19,0,19,19],[10,0,10,21],[12,0,12,21],[13,0,13,24],[16,0,16,20],[11,0,11,24],[1,0,1,21],[17,0,17,20],[14,0,14,20],[15,0,15,3],[18,0,18,3],[7,0,7,4],[8,6,9,7],[9,0,9,4],[3,0,3,13],[4,0,4,4],[5,0,5,4],[6,0,6,4],[4,7,4,8],[4,9,4,10],[5,9,6,13]]}
[]
["Aanvinklijst VIPA-criteria duurzaamheid voor het project waarvoor VIPA-subsidie worden aangevraagd"]
[]
["Vlaams Infrastructuurfonds voor Persoonsgebonden Aangelegenheden (VIPA)"]
["Ellipsgebouw",null,null,null,null,null,null,"Dossier nummer"]
["Koning Albert II-laan 35 bus 34, 1030 BRUSSEL",null,null,null,null,null,null,null,null,"Het dossier nummer dient ingevuld te worden door de bevoegde instantie."]
["Tel. 02 553 32 41 – Fax 02 553 34 80"]
["E-mail: vipa@vlaanderen.be"]
[]
["Waarvoor dient dit document?"]
["Met dit document bezorgt de aanvrager het Vlaams Infrastructuurfonds voor Persoonsgebonden Aangelegenheden (VIPA) de lijst van alle VIPA-criteria duurzaamheid waaraan het project voldoet zodat het VIPA de duurzaamheid van het project kan beoordelen."]
["Aan wie bezorgt u dit document?"]
["Upload dit document bij het indienen van het dossier in het E-loket van het VIPA. De indiening van de subsidieaanvraag gebeurt digitaal m.u.v. de plannen die zowel digitaal als in tweevoud op papier worden bezorgd. "]
["Hoe gebruikt u dit document?"]
["In de tabbladen 'Bijlage3_Aanvraag', 'Bijlage3_Evaluatie 2' en 'Bijlage3_Evaluatie 3'  vindt u een tabel terug die alle VIPA-criteria duurzaamheid aangeeft. Deze tabel dient ingevuld te worden bij respectievelijk aanvraag, evaluatie 2 en evaluatie 3  zodat zowel u als de verantwoordelijke bouwtechnisch adviseur een overzicht krijgen van alle verplichte en vrije criteria waaraan het project beantwoord en dus ook de globale duurzaamheid van het project. Het invullen van deze tabel kan op 2 manieren door ofwel gebruik te maken van de voorziene automatisatie of door het handmatig invullen van de tabel."]
["1) Bij gebruik van de automatisatie"]
["Het VIPA heeft, om de administratieve last te beperken, een automatisatie voorzien in dit rekenblad. Deze automatisatie houdt in dat het opgemaakte Word document 'VIPA-programma van eisen' wordt ingelezen en dat alle aangevinkte criteria in het Word document ook worden aangeduid in de tabbladen 'Bijlage3' . Wanneer u dit bestand voor de eerste keer opent zal Excel ook vragen om de inhoud in te schakelen. Dit is nodig om de automatisatie te kunnen doen. U kan gebruik maken van deze automatisatie door op de knop 'Update aanvinklijst' rechts bovenaan in dit tabblad te drukken. Afhankelijk van de fase waarin uw project zich bevindt kiest u voor 'Update aanvinklijst bij aanvraag', 'Update aanvinklijst bij evaluatie 2' of 'Update aanvinkijst bij evaluatie 3'. Zorg ervoor dat u alle Word bestanden sluit en opslaat (ook het document 'VIPA programma van eisen') alvorens op de knop te drukken. Wanneer u op deze knop drukt zal er gevraagd worden om het 'VIPA-programma van eisen' te selecteren (ga naar de folder waar u dit document hebt opgeslagen en zoek het juiste bestand).  "]
["Noot: deze automatisatie werkt enkel op Windows versies van Excel en niet op Mac. "]
["2) Bij het handmatig invullen"]
["Indien u liever geen gebruik maakt van de automatisatie kan u nog steeds de tabbladen 'Bijlage3_Aanvraag', 'Bijlage3_Evaluatie 2' en 'Bijlage3_Evaluatie 3' handmatig invullen. Let hierbij wel op dat de tabel overeenstemt met het ingevulde VIPA programma van eisen. Hierbij zet u dan telkens in de kolom 'criteria project' een 0 bij de criteria waaraan u project niet voldoet en een 1 bij de criteria waaraan uw project wel voldoet. Indien het criterium uit meerdere subscriteria bestaat zet u een x bij de subcriteria waaraan uw project voldoet. "]

{"sheet":"Bijlage3_Aanvraag","index":1,"n_rows":255,"n_cols":14,"rows_kept":255,"cut":false,"hidden":false,"merged":[[239,1,239,7],[242,1,242,7],[245,1,245,7],[201,2,201,7],[204,2,204,7],[209,2,209,7],[219,2,219,7],[233,1,233,7],[236,1,236,7],[185,2,185,7],[93,2,93,7],[115,2,115,7],[121,2,121,7],[138,2,138,7],[143,2,143,7],[150,2,150,7],[160,2,160,7],[164,2,164,7],[170,2,170,7],[175,2,175,7],[180,2,180,7],[84,2,84,7],[17,1,17,7],[28,2,28,7],[33,2,33,7],[38,2,38,7],[46,2,46,7],[48,2,48,7],[50,2,50,7],[59,2,59,7],[69,2,69,7]]}
[]
[null,"VIPA criteria duurzaamheid ",null,null,null,null,null,"ANDERE SECTOREN"]
[]
[null,"Thema","Criterium","Deeleis ","Verplicht / vrij","Minimaal prestatieniveau of voldaan","Criteria project ","Behaald prestatieniveau"]
[]
[null,"DEEL I: BASISPRINCIPES"]
[]
[null,"CON 1: Duurzaam concept"]
[null,null,"CON 1.1","Duurzaam ruimtegebruik: pas de principes van de Trias toponoma toe","Verplicht ","Voldaan",{"$f":"IF(VLOOKUP(C9,'Doc Load_Aanvraag'!$B$49:$C$386,2,FALSE)=TRUE,1, 0)","v":0},{"$f":"IF(VLOOKUP(C9,'Doc Load_Aanvraag'!$B$49:$C$386,2,FALSE)=TRUE,Bron!$B$7,Bron!$B$8)","v":"Niet voldaan"}]
[null,null,"CON 1.2","Pas de principes van climate responsive design en de Penta Energetica toe","Verplicht","Voldaan",{"$f":"IF(VLOOKUP(C10,'Doc Load_Aanvraag'!$B$49:$C$386,2,FALSE)=TRUE,1, 0)","v":0},{"$f":"IF(VLOOKUP(C10,'Doc Load_Aanvraag'!$B$49:$C$386,2,FALSE)=TRUE,Bron!$B$7,Bron!$B$8)","v":"Niet voldaan"}]
[null,null,"A","Keep it warm"]
[null,null,"B","Keep it cool"]
[null,null,"C","Turn of the light "]
[null,null,"CON 1.3","Pas de principes van Healthy Design en Reduce, reuse, recyle toe","Verplicht ","Voldaan",{"$f":"IF(VLOOKUP(C14,'Doc Load_Aanvraag'!$B$49:$C$386,2,FALSE)=TRUE,1, 0)","v":0},{"$f":"IF(VLOOKUP(C14,'Doc Load_Aanvraag'!$B$49:$C$386,2,FALSE)=TRUE,Bron!$B$7,Bron!$B$8)","v":"Niet voldaan"}]
[null,null,"A","Healthy design"]
[null,null,"B","Reduce, reuse, recycle"]
[]
[null,"PRO 1: Geïntegreerd proces"]
[null,null,"PRO 1.1","Multidisciplinair ontwerpteam","Verplicht","Voldaan",{"$f":"IF(VLOOKUP(C19,'Doc Load_Aanvraag'!$B$49:$C$386,2,FALSE)=TRUE,1, 0)","v":0},{"$f":"IF(VLOOKUP(C19,'Doc Load_Aanvraag'!$B$49:$C$386,2,FALSE)=TRUE,Bron!$B$7,Bron!$B$8)","v":"Niet voldaan"}]
[null,null,"PRO 1.2","Programma van eisen als leidraad ","Verplicht","Voldaan",{"$f":"IF(VLOOKUP(C20,'Doc Load_Aanvraag'!$B$49:$C$386,2,FALSE)=TRUE,1, 0)","v":0},{"$f":"IF(VLOOKUP(C20,'Doc Load_Aanvraag'!$B$49:$C$386,2,FALSE)=TRUE,Bron!$B$7,Bron!$B$8)","v":"Niet voldaan"}]
[null,null,"PRO 1.3","Duurzaamheid als ontwerpprincipe doorheen alle fasen van het ontwerp- en bouwtraject","Verplicht","Voldaan",{"$f":"IF(VLOOKUP(C21,'Doc Load_Aanvraag'!$B$49:$C$386,2,FALSE)=TRUE,1, 0)","v":0},{"$f":"IF(VLOOKUP(C21,'Doc Load_Aanvraag'!$B$49:$C$386,2,FALSE)=TRUE,Bron!$B$7,Bron!$B$8)","v":"Niet voldaan"}]
[]
[null,"PROCES",null,"aantal vrije",0,null,0]
[null,null,null,"aantal verplichte",6,null,{"$f":"G9+G10+G14+G19+G20+G21","v":0}]
[null,null,null,null,{"$f":"E23+E24","v":6},null,{"$f":"G24","v":0}]
[]
[null,"DEEL II: SITE"]
[]
[null,"MOB 1","Bereikbaarheid van de site"]
[null,null,"MOB 1.1","Met het openbaar vervoer","Vrij","Goed",{"$f":"IF(VLOOKUP(I30,'Doc Load_Aanvraag'!$B$49:$C$724,2,FALSE)=TRUE, 1,IF(VLOOKUP(J30,'Doc Load_Aanvraag'!$B$49:$C$724,2,FALSE)=TRUE,1,IF(VLOOKUP(K30,'Doc Load_Aanvraag'!$B$49:$C$724,2,FALSE)=TRUE,1,IF(VLOOKUP(L30,'Doc Load_Aanvraag'!$B$49:$C$724,2,FALSE)=TRUE,0,0))))","v":0},{"$f":"IF(VLOOKUP(I30,'Doc Load_Aanvraag'!$B$49:$C$724,2,FALSE)=TRUE, Bron!$B$2,IF(VLOOKUP(J30,'Doc Load_Aanvraag'!$B$49:$C$724,2,FALSE)=TRUE,Bron!$B$3,IF(VLOOKUP(K30,'Doc Load_Aanvraag'!$B$49:$C$724,2,FALSE)=TRUE,Bron!$B$4,\"\")))","v":""},"MOB 1.1 Uitstekend","MOB 1.1 Beter","MOB 1.1 Goed","MOB 1.1 Matig"]
[null,null,"MOB 1.2","Met de fiets","Vrij","Goed",{"$f":"IF(VLOOKUP(I31,'Doc Load_Aanvraag'!$B$49:$C$724,2,FALSE)=TRUE, 1,IF(VLOOKUP(J31,'Doc Load_Aanvraag'!$B$49:$C$724,2,FALSE)=TRUE,1,IF(VLOOKUP(K31,'Doc Load_Aanvraag'!$B$49:$C$724,2,FALSE)=TRUE,1,0)))","v":0},{"$f":"IF(VLOOKUP(I31,'Doc Load_Aanvraag'!$B$49:$C$724,2,FALSE)=TRUE, Bron!$B$2,IF(VLOOKUP(J31,'Doc Load_Aanvraag'!$B$49:$C$724,2,FALSE)=TRUE,Bron!$B$3,IF(VLOOKUP(K31,'Doc Load_Aanvraag'!$B$49:$C$724,2,FALSE)=TRUE,Bron!$B$4,\"\")))","v":""},"MOB 1.2 Uitstekend","MOB 1.2 Beter","MOB 1.2 Goed"]
[null,null,"MOB 1.3","Te voet","Vrij","Goed",{"$f":"IF(VLOOKUP(I32,'Doc Load_Aanvraag'!$B$2:$C$724,2,FALSE)=TRUE, 1,IF(VLOOKUP(J32,'Doc Load_Aanvraag'!$B$2:$C$724,2,FALSE)=TRUE,1,IF(VLOOKUP(K32,'Doc Load_Aanvraag'!$B$2:$C$724,2,FALSE)=TRUE,1,0)))","v":0},{"$f":"IF(VLOOKUP(I32,'Doc Load_Aanvraag'!$B$49:$C$724,2,FALSE)=TRUE, Bron!$B$2,IF(VLOOKUP(J32,'Doc Load_Aanvraag'!$B$49:$C$724,2,FALSE)=TRUE,Bron!$B$3,IF(VLOOKUP(K32,'Doc Load_Aanvraag'!$B$49:$C$724,2,FALSE)=TRUE,Bron!$B$4,\"\")))","v":""},"MOB 1.3 Uitstekend","MOB 1.3 Beter","MOB 1.3 Goed"]
[]
[null,"MA 1","Maatschappelijke kwaliteit - Ruimtelijke Kwaliteit"]
[null,null,"MA 1.1","Aftoetsing aan beleidskader ruimtelijke structuur","Verplicht","Voldaan",{"$f":"IF(VLOOKUP(C35,'Doc Load_Aanvraag'!$B$49:$C$386,2,FALSE)=TRUE,1, 0)","v":0},{"$f":"IF(VLOOKUP(C35,'Doc Load_Aanvraag'!$B$49:$C$386,2,FALSE)=TRUE,Bron!$B$7,Bron!$B$8)","v":"Niet voldaan"}]
[null,null,"MA 1.2","Inventaris van de bestaande netwerken","Verplicht","Voldaan",{"$f":"IF(VLOOKUP(C36,'Doc Load_Aanvraag'!$B$49:$C$386,2,FALSE)=TRUE,1, 0)","v":0},{"$f":"IF(VLOOKUP(C36,'Doc Load_Aanvraag'!$B$49:$C$386,2,FALSE)=TRUE,Bron!$B$7,Bron!$B$8)","v":"Niet voldaan"}]
[null,null,"MA 1.3","Potentiële synergieën met de omgeving en versterking van de ruimtelijke kwaliteit","Vrij","Beter",{"$f":"IF(VLOOKUP(I37,'Doc Load_Aanvraag'!$B$49:$C$724,2,FALSE)=TRUE, 1,IF(VLOOKUP(J37,'Doc Load_Aanvraag'!$B$49:$C$724,2,FALSE)=TRUE,1,IF(VLOOKUP(K37,'Doc Load_Aanvraag'!$B$49:$C$724,2,FALSE)=TRUE,0,0)))","v":0},{"$f":"IF(VLOOKUP(I37,'Doc Load_Aanvraag'!$B$49:$C$724,2,FALSE)=TRUE, Bron!$B$2,IF(VLOOKUP(J37,'Doc Load_Aanvraag'!$B$49:$C$724,2,FALSE)=TRUE,Bron!$B$3,IF(VLOOKUP(K37,'Doc Load_Aanvraag'!$B$49:$C$724,2,FALSE)=TRUE,Bron!$B$8,\"\")))","v":""},"MA13 uit","MA13 beter","MA13 goed"]
[]
[null,"MA 2","Maatschappelijke kwaliteit - Bodem- en ruimtegebruik"]
[null,null,null,"Bodem- en ruimtegebruik","Vrij ","Voldaan",{"$f":"IF(SUMPRODUCT(-(G41:G45 <> \"\"))=0,0,1)","v":0},{"$f":"IF(G40=1,Bron!$B$7,Bron!$B$8)","v":"Niet voldaan"}]
[null,null,"MA 2.1","Biologische waarde terrein",null,null,{"$f":"IF(VLOOKUP(C41,'Doc Load_Aanvraag'!$B$49:$C$386,2,FALSE)=TRUE,\"x\", \"\")","v":""},{"$f":"IF(VLOOKUP(C41,'Doc Load_Aanvraag'!$B$49:$C$386,2,FALSE)=TRUE,Bron!B$7, \"\")","v":""}]
[null,null,"MA 2.2","Bodemgebruik",null,null,{"$f":"IF(VLOOKUP(C42,'Doc Load_Aanvraag'!$B$49:$C$386,2,FALSE)=TRUE,\"x\", \"\")","v":""},{"$f":"IF(VLOOKUP(C42,'Doc Load_Aanvraag'!$B$49:$C$386,2,FALSE)=TRUE,Bron!B$7, \"\")","v":""}]
[null,null,"MA 2.3","Brownfield",null,null,{"$f":"IF(VLOOKUP(C43,'Doc Load_Aanvraag'!$B$49:$C$386,2,FALSE)=TRUE,\"x\", \"\")","v":""},{"$f":"IF(VLOOKUP(C43,'Doc Load_Aanvraag'!$B$49:$C$386,2,FALSE)=TRUE,Bron!B$7, \"\")","v":""}]
[null,null,"MA 2.4","Gebruik van gesaneerde vervuilde gronden",null,null,{"$f":"IF(VLOOKUP(C44,'Doc Load_Aanvraag'!$B$49:$C$386,2,FALSE)=TRUE,\"x\", \"\")","v":""},{"$f":"IF(VLOOKUP(C44,'Doc Load_Aanvraag'!$B$49:$C$386,2,FALSE)=TRUE,Bron!B$7, \"\")","v":""}]
[null,null,"MA 2.5","Hergebruik van de bestaande bouwing",null,null,{"$f":"IF(VLOOKUP(C45,'Doc Load_Aanvraag'!$B$49:$C$386,2,FALSE)=TRUE,\"x\", \"\")","v":""},{"$f":"IF(VLOOKUP(C45,'Doc Load_Aanvraag'!$B$49:$C$386,2,FALSE)=TRUE,Bron!B$7, \"\")","v":""}]
[]
[null,"MIL 1","Milieutechnische kwaliteit - Overstromingsrisico",null,null,""]
[null,null,"MIL 1","Overstromingsrisico","Verplicht ","Beter",{"$f":"IF(OR(H48=Bron!B2,Bijlage3_Aanvraag!H48=Bron!B3),1,0)","v":0},{"$f":"IF(OR(VLOOKUP(L48,'Doc Load_Aanvraag'!$B$49:$C$724,2,FALSE)=TRUE,VLOOKUP(I48,'Doc Load_Aanvraag'!$B$49:$C$724,2,FALSE)=TRUE), Bron!$B$2,IF(OR(VLOOKUP(M48,'Doc Load_Aanvraag'!$B$49:$C$724,2,FALSE)=TRUE,VLOOKUP(J48,'Doc Load_Aanvraag'!$B$49:$C$724,2,FALSE)=TRUE),Bron!$B$3,IF(OR(VLOOKUP(K48,'Doc Load_Aanvraag'!$B$49:$C$724,2,FALSE)=TRUE,VLOOKUP(N48,'Doc Load_Aanvraag'!$B$49:$C$724,2,FALSE)=TRUE),Bron!$B$8,\"Niet ingevuld\")))","v":"Niet ingevuld"},"MIL 1.3 Uitstekend vla","MIL 1.3 Beter vla","MIL 1.3 Goed vla","MIL 1.3 Uitstekend bru","MIL 1.3 Beter bru","MIL 1.3 Goed bru"]
[null,"MIL 2","Milieutechnische kwaliteit - Buitenluchtkwaliteit",null,null,""]
[null,null,"MIL 2","Stikstofconcentratie NO2","Verplicht ","Goed",{"$f":"IF(VLOOKUP(I50,'Doc Load_Aanvraag'!$B$49:$C$724,2,FALSE)=TRUE, 1,IF(VLOOKUP(J50,'Doc Load_Aanvraag'!$B$49:$C$724,2,FALSE)=TRUE,1,IF(VLOOKUP(K50,'Doc Load_Aanvraag'!$B$49:$C$724,2,FALSE)=TRUE,0,0)))","v":0},{"$f":"IF(VLOOKUP(I50,'Doc Load_Aanvraag'!$B$49:$C$724,2,FALSE)=TRUE, Bron!$B$2,IF(VLOOKUP(J50,'Doc Load_Aanvraag'!$B$49:$C$724,2,FALSE)=TRUE,Bron!$B$3,IF(VLOOKUP(K50,'Doc Load_Aanvraag'!$B$49:$C$724,2,FALSE)=TRUE,Bron!$B$4,\"Niet ingevuld\")))","v":"Niet ingevuld"},"MIL 2 Uitstekend","MIL 2 Beter","MIL 2 Goed"]
[null,"MIL 3","Milieutechnische kwaliteit - Buitengeluid",null,null,""]
[null,null,"MIL 3","Geluidsniveau LAeq","Vrij ","Goed",{"$f":"IF(OR(H52=Bron!$B$2,Bijlage3_Aanvraag!H52=Bron!$B$3,H52=Bron!$B$4),1,0)","v":0},{"$f":"IF(VLOOKUP(I52,'Doc Load_Aanvraag'!$B$49:$C$724,2,FALSE)=TRUE, Bron!$B$2,IF(VLOOKUP(J52,'Doc Load_Aanvraag'!$B$49:$C$724,2,FALSE)=TRUE,Bron!$B$3,IF(VLOOKUP(K52,'Doc Load_Aanvraag'!$B$49:$C$724,2,FALSE)=TRUE,Bron!$B$4,\"\")))","v":""},"MIL 3 Uitstekend","MIL 3 Beter","MIL 3 Goed"]
[]
[null,"SITE",null,"aantal vrije",6,null,{"$f":"G52+G40+G37+G30+G31+G32","v":0}]
[null,null,null,"aantal verplichte",4,null,{"$f":"G35+G36+G48+G50","v":0}]
[null,null,null,null,{"$f":"E54+E55","v":10},null,{"$f":"G55+G54","v":0}]
[]
[null,"DEEL III [A]: GEBOUW - people"]
[]
[null,"BIN 1","Akoestisch comfort"]
[null,null,null,"Akoestiek","Verplicht","Goed",{"$f":"IF(AND(ABS(SUMPRODUCT(-(G62:G68 <> \"\")))>2,G66=\"x\",G67=\"x\"),1,0)","v":0},{"$f":"IF(ABS(SUMPRODUCT(-(G62:G68<>\"\")))=7,\"Uitstekend\",IF(ABS(SUMPRODUCT(-(G62:G68<>\"\")))>4,\"Beter\",IF(ABS(SUMPRODUCT(-(G62:G68<>\"\")))>2,\"Goed\",\"Niet voldaan\")))","v":"Niet voldaan"},"BIN1 uitstekend","BIN1 beter","BIN1 goed"]
[null,null,"BIN 1.1","Luchtgeluidsisolatie",null,"voldaan",{"$f":"IF(VLOOKUP(C62,'Doc Load_Aanvraag'!$B$49:$C$486,2,FALSE)=TRUE,\"x\",\"\")","v":""}]
[null,null,"BIN 1.2","Contactgeluidsisolatie",null,"voldaan",{"$f":"IF(VLOOKUP(C63,'Doc Load_Aanvraag'!$B$49:$C$486,2,FALSE)=TRUE,\"x\",\"\")","v":""}]
[null,null,"BIN 1.3","Gevelgeluidsisolatie",null,"voldaan",{"$f":"IF(VLOOKUP(C64,'Doc Load_Aanvraag'!$B$49:$C$486,2,FALSE)=TRUE,\"x\",\"\")","v":""}]
[null,null,"BIN 1.4","Installatielawaai",null,"voldaan",{"$f":"IF(VLOOKUP(C65,'Doc Load_Aanvraag'!$B$49:$C$486,2,FALSE)=TRUE,\"x\",\"\")","v":""}]
[null,null,"BIN 1.5","Ruimteakoestiek (nagalm)","Verplicht ","voldaan",{"$f":"IF(VLOOKUP(C66,'Doc Load_Aanvraag'!$B$49:$C$486,2,FALSE)=TRUE,\"x\",\"\")","v":""}]
[null,null,"BIN 1.6","Geluiduitstraling naar de omgeving  ","Verplicht ","voldaan",{"$f":"IF(VLOOKUP(C67,'Doc Load_Aanvraag'!$B$49:$C$486,2,FALSE)=TRUE,\"x\",\"\")","v":""}]
[null,null,"BIN 1.7","Buitengeluid in de onmiddellijke omgeving van het gebouw",null,"voldaan",{"$f":"IF(VLOOKUP(C68,'Doc Load_Aanvraag'!$B$49:$C$486,2,FALSE)=TRUE,\"x\",\"\")","v":""}]
[]
[null,"BIN 2","Thermisch comfort",null,null,""]
[null,null,"BIN 2.1","Zomercomfort ","Verplicht",null,{"$f":"IF(OR(G72=\"x\",G75=\"x\"),1,0)","v":0},{"$f":"IF(G71=1,Bron!$B$7,Bron!$B$8)","v":"Niet voldaan"}]
[null,null,"Optie 1","Zomercomfort",null,null,{"$f":"IF(VLOOKUP(I72,'Doc Load_Aanvraag'!$B$49:$C$486,2,FALSE)=TRUE,\"x\", \"\")","v":""},{"$f":"IF(VLOOKUP(I72,'Doc Load_Aanvraag'!$B$49:$C$386,2,FALSE)=TRUE,Bron!$B$7, \"\")","v":""},"BIN 2.1 opt1"]
[null,null,"A","Zonwering ",null,null,{"$f":"IF(AND(VLOOKUP(Bijlage3_Aanvraag!I73,'Doc Load_Aanvraag'!$B$49:$C$600,2,FALSE)=TRUE,VLOOKUP(Bijlage3_Aanvraag!$J$73,'Doc Load_Aanvraag'!$B$49:$C$600,2,FALSE)=TRUE),\"x\",\"\")","v":""},null,"BIN 2.1 opt1 A1","BIN 2.1 opt1 A2"]
[null,null,"B","Zomercomfort via dynamische simulatie ",null,"Beter",{"$f":"IF(OR(VLOOKUP($I$74,'Doc Load_Aanvraag'!$B$49:$C$724,2,FALSE)=TRUE, VLOOKUP($L$74,'Doc Load_Aanvraag'!$B$49:$C$724,2,FALSE)=TRUE),\"x\",IF(OR(VLOOKUP(Bijlage3_Aanvraag!$J$74,'Doc Load_Aanvraag'!$B$49:$C$724,2,FALSE)=TRUE,VLOOKUP(Bijlage3_Aanvraag!$M$74,'Doc Load_Aanvraag'!$B$49:$C$724,2,FALSE)=TRUE),\"x\",IF(OR(VLOOKUP(Bijlage3_Aanvraag!$K$74,'Doc Load_Aanvraag'!$B$49:$C$724,2,FALSE)=TRUE,VLOOKUP(Bijlage3_Aanvraag!$K$74,'Doc Load_Aanvraag'!$B$49:$C$724,2,FALSE)=TRUE),\"x\",\"\")))","v":""},{"$f":"IF(OR(VLOOKUP($I$74,'Doc Load_Aanvraag'!$B$49:$C$724,2,FALSE)=TRUE, VLOOKUP($L$74,'Doc Load_Aanvraag'!$B$49:$C$724,2,FALSE)=TRUE),Bron!$B$49,IF(OR(VLOOKUP(Bijlage3_Aanvraag!$J$74,'Doc Load_Aanvraag'!$B$49:$C$724,2,FALSE)=TRUE,VLOOKUP(Bijlage3_Aanvraag!$M$74,'Doc Load_Aanvraag'!$B$49:$C$724,2,FALSE)=TRUE),Bron!$B$3,IF(OR(VLOOKUP(Bijlage3_Aanvraag!$K$74,'Doc Load_Aanvraag'!$B$49:$C$724,2,FALSE)=TRUE,VLOOKUP(Bijlage3_Aanvraag!$K$74,'Doc Load_Aanvraag'!$B$49:$C$724,2,FALSE)=TRUE),Bron!$B$8,\"\")))","v":""},"BIN 2.1 opt1 B Uitstekend","BIN 2.1 opt1 B Beter","BIN 2.1 opt1 B Goed","BIN 2.1 actief uitstekend","BIN 2.1 actief beter","BIN 2.1 actief goed"]
[null,null,"Optie 2","Zomercomfort - ontwerprichtlijnen ",null,null,{"$f":"IF(VLOOKUP(I75,'Doc Load_Aanvraag'!$B$49:$C$600,2,FALSE)=TRUE,\"x\", \"\")","v":""},"","BIN 2.1 opt2"]
[null,null,"A","Zomercomfort algemeen",null,null,{"$f":"IF(AND(VLOOKUP(Bijlage3_Aanvraag!I76,'Doc Load_Aanvraag'!$B$49:$C$600,2,FALSE)=TRUE,VLOOKUP(Bijlage3_Aanvraag!$J$76,'Doc Load_Aanvraag'!$B$2:$C$600,2,FALSE)=TRUE),\"x\",\"\")","v":""},null,"BIN 2.1 opt2 A1","BIN 2.1 opt2 A2"]
[null,null,"B","Zomercomfort zorg (individuele kamers) ",null,null,{"$f":"IF(VLOOKUP(I77,'Doc Load_Aanvraag'!$B$49:$C$600,2,FALSE)=TRUE,\"x\", \"\")","v":""},null,"BIN 2.1 opt2 B"]
[null,null,"BIN 2.2","Lokale thermische behaaglijkheid",""]
[null,null,"A","Verticale temperatuurgradiënt","Vrij ","Beter",{"$f":"IF(VLOOKUP(I79,'Doc Load_Aanvraag'!$B$49:$C$724,2,FALSE)=TRUE, 1,IF(VLOOKUP(J79,'Doc Load_Aanvraag'!$B$49:$C$724,2,FALSE)=TRUE,1,IF(VLOOKUP(K79,'Doc Load_Aanvraag'!$B$49:$C$724,2,FALSE)=TRUE,0,0)))","v":0},{"$f":"IF(VLOOKUP(I79,'Doc Load_Aanvraag'!$B$49:$C$724,2,FALSE)=TRUE, Bron!$B$2,IF(VLOOKUP(J79,'Doc Load_Aanvraag'!$B$49:$C$724,2,FALSE)=TRUE,Bron!$B$3,IF(VLOOKUP(K79,'Doc Load_Aanvraag'!$B$49:$C$724,2,FALSE)=TRUE,Bron!$B$8,\"\")))","v":""},"BIN22 A Uitstekend","BIN22 A beter","BIN22 A goed"]
[null,null,"B","Vloertemperatuur","Vrij ","Beter",{"$f":"IF(VLOOKUP(I80,'Doc Load_Aanvraag'!$B$49:$C$724,2,FALSE)=TRUE, 1,IF(VLOOKUP(J80,'Doc Load_Aanvraag'!$B$49:$C$724,2,FALSE)=TRUE,1,IF(VLOOKUP(K80,'Doc Load_Aanvraag'!$B$49:$C$724,2,FALSE)=TRUE,0,0)))","v":0},{"$f":"IF(VLOOKUP(I80,'Doc Load_Aanvraag'!$B$49:$C$724,2,FALSE)=TRUE, Bron!$B$2,IF(VLOOKUP(J80,'Doc Load_Aanvraag'!$B$49:$C$724,2,FALSE)=TRUE,Bron!$B$3,IF(VLOOKUP(K80,'Doc Load_Aanvraag'!$B$49:$C$724,2,FALSE)=TRUE,Bron!$B$8,\"\")))","v":""},"BIN22 B Uitstekend","BIN22 B beter","BIN22 B goed"]
[null,null,"C","Stralingsasymmetrie","Vrij ","Beter",{"$f":"IF(VLOOKUP(I81,'Doc Load_Aanvraag'!$B$49:$C$724,2,FALSE)=TRUE, 1,IF(VLOOKUP(J81,'Doc Load_Aanvraag'!$B$49:$C$724,2,FALSE)=TRUE,1,IF(VLOOKUP(K81,'Doc Load_Aanvraag'!$B$49:$C$724,2,FALSE)=TRUE,0,0)))","v":0},{"$f":"IF(VLOOKUP(I81,'Doc Load_Aanvraag'!$B$49:$C$724,2,FALSE)=TRUE, Bron!$B$2,IF(VLOOKUP(J81,'Doc Load_Aanvraag'!$B$49:$C$724,2,FALSE)=TRUE,Bron!$B$3,IF(VLOOKUP(K81,'Doc Load_Aanvraag'!$B$49:$C$724,2,FALSE)=TRUE,Bron!$B$8,\"\")))","v":""},"BIN22 C Uitstekend","BIN22 C beter","BIN22 C goed"]
[null,null,"D ","Tocht","Vrij ","Beter",{"$f":"IF(VLOOKUP(I82,'Doc Load_Aanvraag'!$B$49:$C$724,2,FALSE)=TRUE, 1,IF(VLOOKUP(J82,'Doc Load_Aanvraag'!$B$49:$C$724,2,FALSE)=TRUE,1,IF(VLOOKUP(K82,'Doc Load_Aanvraag'!$B$49:$C$724,2,FALSE)=TRUE,0,0)))","v":0},{"$f":"IF(VLOOKUP(I82,'Doc Load_Aanvraag'!$B$49:$C$724,2,FALSE)=TRUE, Bron!$B$2,IF(VLOOKUP(J82,'Doc Load_Aanvraag'!$B$49:$C$724,2,FALSE)=TRUE,Bron!$B$3,IF(VLOOKUP(K82,'Doc Load_Aanvraag'!$B$49:$C$724,2,FALSE)=TRUE,Bron!$B$8,\"\")))","v":""},"BIN22 D Uitstekend","BIN22 D beter","BIN22 D goed"]
[null,null,"BIN 2.3","Relatieve luchtvochtigheid","Vrij ","Beter",{"$f":"IF(VLOOKUP(I83,'Doc Load_Aanvraag'!$B$49:$C$724,2,FALSE)=TRUE, 1,IF(VLOOKUP(J83,'Doc Load_Aanvraag'!$B$49:$C$724,2,FALSE)=TRUE,1,IF(VLOOKUP(K83,'Doc Load_Aanvraag'!$B$49:$C$724,2,FALSE)=TRUE,0,0)))","v":0},{"$f":"IF(VLOOKUP(I83,'Doc Load_Aanvraag'!$B$49:$C$724,2,FALSE)=TRUE, Bron!$B$2,IF(VLOOKUP(J83,'Doc Load_Aanvraag'!$B$49:$C$724,2,FALSE)=TRUE,Bron!$B$3,IF(VLOOKUP(K83,'Doc Load_Aanvraag'!$B$49:$C$724,2,FALSE)=TRUE,Bron!$B$8,\"\")))","v":""},"BIN23 Uitstekend","BIN23 beter","BIN23 goed"]
[]
[null,"BIN 3","Binnenluchtkwaliteit",null,null,""]
[null,null,"BIN 3.1","Klassen van de binnenluchtkwaliteit","Verplicht","Beter",{"$f":"IF(VLOOKUP(I86,'Doc Load_Aanvraag'!$B$49:$C$724,2,FALSE)=TRUE, 1,IF(VLOOKUP(J86,'Doc Load_Aanvraag'!$B$49:$C$724,2,FALSE)=TRUE,1,IF(VLOOKUP(K86,'Doc Load_Aanvraag'!$B$49:$C$724,2,FALSE)=TRUE,0,0)))","v":0},{"$f":"IF(VLOOKUP(I86,'Doc Load_Aanvraag'!$B$49:$C$724,2,FALSE)=TRUE, Bron!$B$2,IF(VLOOKUP(J86,'Doc Load_Aanvraag'!$B$49:$C$724,2,FALSE)=TRUE,Bron!$B$3,IF(VLOOKUP(K86,'Doc Load_Aanvraag'!$B$49:$C$724,2,FALSE)=TRUE,Bron!$B$8,\"Niet ingevuld\")))","v":"Niet ingevuld"},"BIN31 Uitstekend","BIN31 beter","BIN31 goed"]
[null,null,"BIN 3.2","Voorkomen van vervuilings- en verontreinigingsbronnen","Verplicht","Uitstekend ",{"$f":"IF(VLOOKUP($I$87,'Doc Load_Aanvraag'!$B$49:$C$724,2,FALSE)=TRUE, 1,IF(VLOOKUP($J$87,'Doc Load_Aanvraag'!$B$49:$C$724,2,FALSE)=TRUE,1,IF(VLOOKUP($K$87,'Doc Load_Aanvraag'!$B$49:$C$724,2,FALSE)=TRUE,0,0)))","v":0},{"$f":"IF(VLOOKUP($I$87,'Doc Load_Aanvraag'!$B$49:$C$724,2,FALSE)=TRUE, Bron!$B$2,IF(VLOOKUP($J$87,'Doc Load_Aanvraag'!$B$49:$C$724,2,FALSE)=TRUE,Bron!$B$8,IF(VLOOKUP($K$87,'Doc Load_Aanvraag'!$B$49:$C$724,2,FALSE)=TRUE,Bron!$B$8,\"Niet ingevuld\")))","v":"Niet ingevuld"},"BIN 32 Uitstekend","BIN32 beter","BIN32 goed"]
[null,null,"BIN 3.3","Beperken van de emissies van bouwproducten in het binnenmilieu","Vrij","Voldaan ",{"$f":"IF(SUMPRODUCT(-(G89:G91<>\"\"))=0,0,1)","v":0},{"$f":"IF(G88=0,\"\",Bron!$B$7)","v":""}]
[null,null,"Optie 1","Ontwerpen naar een zeer laag emissief gebouw",null,null,{"$f":"IF(VLOOKUP(I89,'Doc Load_Aanvraag'!$B$49:$C$600,2,FALSE),\"x\",\"\")","v":""},null,"BIN 3.3 opt1"]
[null,null,"Optie 2","Meting TVOS en formaldehyde",null,null,{"$f":"IF(VLOOKUP($I$90,'Doc Load_Aanvraag'!$B$49:$C$600,2,FALSE),\"x\",\"\")","v":""},null,"BIN 3.3 opt2"]
[null,null,"Optie 3","Labels ",null,null,{"$f":"IF(VLOOKUP($I$91,'Doc Load_Aanvraag'!$B$49:$C$600,2,FALSE),\"x\",\"\")","v":""},null,"BIN 3.3 opt3"]
[null,null,"BIN 3.4","Openen van ramen","Verplicht ","Voldaan ",{"$f":"IF(VLOOKUP(C92,'Doc Load_Aanvraag'!$B$49:$C$386,2,FALSE)=TRUE,1, 0)","v":0},{"$f":"IF(VLOOKUP(C92,'Doc Load_Aanvraag'!$B$49:$C$386,2,FALSE)=TRUE,Bron!B7,Bron!B8)","v":"Niet voldaan"}]
[]
[null,"BIN 4","Visueel comfort",null,null,""]
[null,null,"BIN 4.1","Daglichttoetreding ","Verplicht ",null,{"$f":"IF(OR(G96=\"x\",G97=\"x\"),1,0)","v":0},{"$f":"IF(G95=1,Bron!$B$7,Bron!$B$8)","v":"Niet voldaan"}]
[null,null,"Optie 1","Daglichttoetreding ",null,"Uitstekend",{"$f":"IF(VLOOKUP($I$96,'Doc Load_Aanvraag'!$B$49:$C$724,2,FALSE)=TRUE, \"x\",IF(VLOOKUP($J$96,'Doc Load_Aanvraag'!$B$49:$C$724,2,FALSE)=TRUE,0,IF(VLOOKUP($K$96,'Doc Load_Aanvraag'!$B$49:$C$724,2,FALSE)=TRUE,0,\"\")))","v":""},{"$f":"IF(VLOOKUP(I96,'Doc Load_Aanvraag'!$B$49:$C$724,2,FALSE)=TRUE, Bron!$B$2,IF(VLOOKUP(J96,'Doc Load_Aanvraag'!$B$49:$C$724,2,FALSE)=TRUE,Bron!$B$8,IF(VLOOKUP(K96,'Doc Load_Aanvraag'!$B$49:$C$724,2,FALSE)=TRUE,Bron!$B$8,\"\")))","v":""},"BIN41 Uitstekend","BIN41 beter","BIN41 goed"]
[null,null,"Optie 2","Daglichttoetreding - ontwerprichtlijn",null,"Voldaan",{"$f":"IF(VLOOKUP(I97,'Doc Load_Aanvraag'!$B$49:$C$386,2,FALSE)=TRUE,\"x\", \"\")","v":""},{"$f":"IF(VLOOKUP(I97,'Doc Load_Aanvraag'!$B$49:$C$386,2,FALSE)=TRUE,Bron!B7,\"\")","v":""},"BIN 4.1 opt2"]
[null,null,"BIN 4.2","Verblinding","Vrij ","Beter",{"$f":"IF(OR(H98=Bron!$B$2,H98=Bron!$B$3),1,0)","v":0},{"$f":"IF(VLOOKUP(I98,'Doc Load_Aanvraag'!$B$49:$C$724,2,FALSE)=TRUE, Bron!$B$2,IF(VLOOKUP(J98,'Doc Load_Aanvraag'!$B$49:$C$724,2,FALSE)=TRUE,Bron!$B$3,IF(VLOOKUP(K98,'Doc Load_Aanvraag'!$B$49:$C$724,2,FALSE)=TRUE,Bron!$B$8,\"\")))","v":""},"BIN 4.2 Uitstekend","BIN 4.2 beter","BIN 4.2 goed"]
[null,null,"BIN 4.3","Basiseisen werkplekverlichting ","Vrij ","Voldaan",{"$f":"IF(VLOOKUP(C99,'Doc Load_Aanvraag'!$B$49:$C$386,2,FALSE)=TRUE,1, 0)","v":0},{"$f":"IF(VLOOKUP(C99,'Doc Load_Aanvraag'!$B$49:$C$386,2,FALSE)=TRUE,Bron!$B$7,\"\")","v":""}]
[null,null,"A","Verlichtingsniveau",null,null,{"$f":"IF(G99=1,\"x\",\"\")","v":""},null,"BIN 4.3 A"]
[null,null,"B","Uniformiteit",null,null,{"$f":"IF(G100=1,\"x\",\"\")","v":""},null,"BIN 4.3 B"]
[null,null,"C","UGR",null,null,"",null,"BIN 4.3 C"]
[null,null,"D","Kleurweergave",null,null,"",null,"BIN 4.3 D"]
[null,null,"BIN 4.4","(Uit)Zicht","Vrij ","Voldaan",{"$f":"IF(VLOOKUP(C104,'Doc Load_Aanvraag'!$B$49:$C$386,2,FALSE)=TRUE,1, 0)","v":0},{"$f":"IF(VLOOKUP(C104,'Doc Load_Aanvraag'!$B$49:$C$386,2,FALSE)=TRUE,Bron!$B$7,\"\")","v":""}]
[null,null,"BIN 4.5","Zonlichttoetreding","Vrij ","Voldaan",{"$f":"IF(VLOOKUP(C105,'Doc Load_Aanvraag'!$B$49:$C$386,2,FALSE)=TRUE,1, 0)","v":0},{"$f":"IF(VLOOKUP(C105,'Doc Load_Aanvraag'!$B$49:$C$386,2,FALSE)=TRUE,Bron!$B$7,\"\")","v":""}]
[null,null,"BIN 4.6","Zicht naar buiten bij gesloten zonwering","Vrij ","Voldaan",{"$f":"IF(VLOOKUP(C106,'Doc Load_Aanvraag'!$B$49:$C$386,2,FALSE)=TRUE,1, 0)","v":0},{"$f":"IF(VLOOKUP(C106,'Doc Load_Aanvraag'!$B$49:$C$386,2,FALSE)=TRUE,Bron!$B$7,\"\")","v":""}]
[null,null,"BIN 4.7","Aanvullende maatregelen voor goed visueel comfort","Vrij ","Voldaan",{"$f":"IF(SUMPRODUCT(-(G108:G110<>\"\"))=0,0,1)","v":0},{"$f":"IF(Bijlage3_Aanvraag!G107=1,Bron!$B$7,\"\")","v":""}]
[null,null,"A","Betere kleurweergave kunstlicht",null,null,{"$f":"IF(VLOOKUP(I108,'Doc Load_Aanvraag'!$B$49:$C$600,2,FALSE),\"x\",\"\")","v":""},null,"BIN 4.7 A"]
[null,null,"B","Kleurtemperatuur kunstlicht",null,null,{"$f":"IF(VLOOKUP(I109,'Doc Load_Aanvraag'!$B$49:$C$600,2,FALSE),\"x\",\"\")","v":""},null,"BIN 4.7 B"]
[null,null,"C","Glaskwaliteit i.f.v. kleurweergave",null,null,{"$f":"IF(VLOOKUP(I110,'Doc Load_Aanvraag'!$B$49:$C$600,2,FALSE),\"x\",\"\")","v":""},null,"BIN 4.7 C"]
[null,null,"BIN 4.8","Visueel contact met de buitenomgeving en daglichttoetreding",null,null,{"$f":"IF(G112=1,1,0)","v":0},{"$f":"IF(G111=1,Bron!$B$7,\"\")","v":""}]
[null,null,"A","Ongehinderd visueel contact - verblijfsruimten","Verplicht ","Voldaan ",{"$f":"IF(VLOOKUP(I112,'Doc Load_Aanvraag'!$B$49:$C$386,2,FALSE)=TRUE,1, 0)","v":0},{"$f":"IF(VLOOKUP(I112,'Doc Load_Aanvraag'!$B$49:$C$386,2,FALSE)=TRUE,Bron!$B$7,\"Niet voldaan\")","v":"Niet voldaan"},"BIN 4.8 A"]
[null,null,"B","Visueel contact - personeelsruimten","Vrij ","Voldaan",{"$f":"IF(VLOOKUP(I113,'Doc Load_Aanvraag'!$B$49:$C$386,2,FALSE)=TRUE,1, 0)","v":0},{"$f":"IF(VLOOKUP(I113,'Doc Load_Aanvraag'!$B$49:$C$386,2,FALSE)=TRUE,Bron!$B$7,\"\")","v":""},"BIN 4.8 B"]
[null,null,"C","Daglicht (secundaire ruimten)","Vrij ","Voldaan",{"$f":"IF(VLOOKUP(I114,'Doc Load_Aanvraag'!$B$49:$C$386,2,FALSE)=TRUE,1, 0)","v":0},{"$f":"IF(VLOOKUP(I114,'Doc Load_Aanvraag'!$B$49:$C$386,2,FALSE)=TRUE,Bron!$B$7,\"\")","v":""},"BIN 4.8 C"]
[]
[null,"SOC 3","Integrale toegankelijkheid"]
[null,null,"SOC 3.1","Advies toegankelijkheid ","Vrij*",null,{"$f":"IF(VLOOKUP(C117,'Doc Load_Aanvraag'!$B$49:$C$386,2,FALSE)=TRUE,1, 0)","v":0},{"$f":"IF(VLOOKUP(C117,'Doc Load_Aanvraag'!$B$49:$C$386,2,FALSE)=TRUE,Bron!$B$7,\"\")","v":""}]
[null,null,"SOC 3.2","Graad van integrale toegankelijkheid: checklist","Vrij","Uitstekend ",{"$f":"IF(H118=Bron!$B$2,1,0)","v":0},{"$f":"IF(VLOOKUP(I118,'Doc Load_Aanvraag'!$B$49:$C$724,2,FALSE)=TRUE, Bron!$B$2,IF(VLOOKUP(J118,'Doc Load_Aanvraag'!$B$49:$C$724,2,FALSE)=TRUE,Bron!$B$8,IF(VLOOKUP(K118,'Doc Load_Aanvraag'!$B$49:$C$724,2,FALSE)=TRUE,Bron!$B$8,\"\")))","v":""},"SOC32 Uitstekend","SOC32 beter","SOC32 goed"]
[null,null,"SOC 3.3","Begeleidingstraject met een onafhankelijk toegankelijkheidsadviseur","Vrij","Voldaan",{"$f":"IF(VLOOKUP(C119,'Doc Load_Aanvraag'!$B$49:$C$386,2,FALSE)=TRUE,1, 0)","v":0},{"$f":"IF(VLOOKUP(C119,'Doc Load_Aanvraag'!$B$49:$C$386,2,FALSE)=TRUE,Bron!$B$7,\"\")","v":""}]
[null,null,"SOC 3.4","Label toegankelijk kantoorgebouw A+ of A++","Vrij","Voldaan",{"$f":"IF(VLOOKUP(C120,'Doc Load_Aanvraag'!$B$49:$C$386,2,FALSE)=TRUE,1, 0)","v":0},{"$f":"IF(VLOOKUP(C120,'Doc Load_Aanvraag'!$B$49:$C$386,2,FALSE)=TRUE,Bron!$B$7,\"\")","v":""}]
[null,null,null,null,null,null,"* let op: dit kan wel verplicht zijn in het kader van een andere VIPA regelgeving"]
[null,"GEB 1","Invloed van de gebruiker"]
[null,null,"GEB 1.1","Invloedmogelijkheden","Verplicht ","Beter",{"$f":"IF(ABS(SUMPRODUCT(-(G124:G130<>\"\")))>4,1,0)","v":0},{"$f":"IF(ABS(SUMPRODUCT(-(G124:G130<>\"\")))=7,\"Uitstekend\",IF(ABS(SUMPRODUCT(-(G124:G130<>\"\")))>4,\"Beter\",IF(ABS(SUMPRODUCT(-(G124:G130<>\"\")))>2,\"Goed\",\"Niet voldaan\")))","v":"Niet voldaan"},"GEB11 Uitstekend","GEB11 beter","GEB11 goed"]
[null,null,"A","Zonwering",null,null,{"$f":"IF(OR(VLOOKUP(I124,'Doc Load_Aanvraag'!$B$49:$C$600,2,FALSE)=TRUE,VLOOKUP(J124,'Doc Load_Aanvraag'!$B$49:$C$600,2,FALSE)=TRUE),\"x\",\"\")","v":""},null,"Zonwering A","Zonwering B"]
[null,null,"B","Verblinding",null,null,{"$f":"IF(OR(VLOOKUP(I125,'Doc Load_Aanvraag'!$B$49:$C$600,2,FALSE)=TRUE,VLOOKUP(J125,'Doc Load_Aanvraag'!$B$49:$C$600,2,FALSE)=TRUE),\"x\",\"\")","v":""},null,"Verblinding A","Verblinding B"]
[null,null,"C","Temperatuur winter",null,null,{"$f":"IF(OR(VLOOKUP(I126,'Doc Load_Aanvraag'!$B$49:$C$600,2,FALSE)=TRUE,VLOOKUP(J126,'Doc Load_Aanvraag'!$B$49:$C$600,2,FALSE)=TRUE),\"x\",\"\")","v":""},null,"Temp a","Temp B","Temp C"]
[null,null,"D","Temperatuur zomer",null,null,{"$f":"IF(VLOOKUP(K126,'Doc Load_Aanvraag'!$B$49:$C$600,2,FALSE)=TRUE,\"x\",\"\")","v":""}]
[null,null,"E","Algemene verlichting - regeling per ruimte of zone",null,null,{"$f":"IF(OR(VLOOKUP(I128,'Doc Load_Aanvraag'!$B$49:$C$600,2,FALSE)=TRUE,VLOOKUP(J128,'Doc Load_Aanvraag'!$B$49:$C$600,2,FALSE)=TRUE),\"x\",\"\")","v":""},null,"Verlichting A","Verlichting B","Verlichting C"]
[null,null,"F","Individuele verlichting - individuele regeling werkplek",null,null,{"$f":"IF(VLOOKUP(K128,'Doc Load_Aanvraag'!$B$49:$C$600,2,FALSE)=TRUE,\"x\",\"\")","v":""}]
[null,null,"G","Ventilatie",null,null,{"$f":"IF(OR(VLOOKUP(I130,'Doc Load_Aanvraag'!$B$49:$C$600,2,FALSE)=TRUE,VLOOKUP(J130,'Doc Load_Aanvraag'!$B$49:$C$600,2,FALSE)=TRUE),\"x\",\"\")","v":""},null,"Ventilatie A","Ventilatie B"]
[null,null,"GEB 1.2","Innovatieve oplossingen","Vrij","Voldaan",{"$f":"IF(VLOOKUP(C131,'Doc Load_Aanvraag'!$B$49:$C$386,2,FALSE)=TRUE,1, 0)","v":0},{"$f":"IF(VLOOKUP(C131,'Doc Load_Aanvraag'!$B$49:$C$600,2,FALSE)=TRUE,Bron!$B$7,\"\")","v":""}]
[]
[null,"PEOPLE",null,"aantal vrije criteria",19,null,{"$f":"G131+G120+G119+G118+G114+G113+G107+G106+G105+G104+G99+G98+G83+G82+G81+G79+G80+G117+G88","v":0}]
[null,null,null,"aantal verplichte criteria",8,null,{"$f":"G123+G112+G95+G92+G87+G86+G71+G61","v":0}]
[null,null,null,null,{"$f":"E133+E134","v":27},null,{"$f":"SUM(G133:G134)","v":0}]
[]
[null,"DEEL III [B]: GEBOUW - planet"]
[]
[null,"ENE 1","Energieprestatie",null,null,""]
[null,null,"ENE 1.1","Energieprestatie","Verplicht","Goed*",{"$f":"IF(OR(H140=Bron!$B$2,H140=Bron!$B$3,H140=Bron!$B$4),1,0)","v":0},{"$f":"IF(VLOOKUP(I140,'Doc Load_Aanvraag'!$B$49:$C$724,2,FALSE)=TRUE, Bron!$B$2,IF(VLOOKUP(J140,'Doc Load_Aanvraag'!$B$49:$C$724,2,FALSE)=TRUE,Bron!$B$3,IF(VLOOKUP(K140,'Doc Load_Aanvraag'!$B$49:$C$724,2,FALSE)=TRUE,Bron!$B$4,\"Niet ingevuld\")))","v":"Niet ingevuld"},"ENE11 nieuw Uitstekend","ENE11 nieuw beter","ENE11 nieuw goed"]
[null,null,"ENE 1.2","Koeling","Verplicht","Voldaan",{"$f":"IF(VLOOKUP(C141,'Doc Load_Aanvraag'!$B$49:$C$386,2,FALSE)=TRUE,1, 0)","v":0},{"$f":"IF(VLOOKUP(C141,'Doc Load_Aanvraag'!$B$49:$C$600,2,FALSE)=TRUE,Bron!$B$7,Bron!$B$8)","v":"Niet voldaan"},"ENE11 ier Uitstekend","ENE11 ier beter","ENE11 ier goed"]
[null,null,"ENE 1.3","Luchtdichtheidsproef","Vrij","Voldaan",{"$f":"IF(VLOOKUP(C142,'Doc Load_Aanvraag'!$B$49:$C$386,2,FALSE)=TRUE,1, 0)","v":0},{"$f":"IF(VLOOKUP(C142,'Doc Load_Aanvraag'!$B$49:$C$600,2,FALSE)=TRUE,Bron!$B$7,\"\")","v":""},"ENE11 verb Uitstekend","ENE11 verb beter","ENE11 verb goed"]
[null,null,null,null,null,null,"* Voor residentiële gebouwen (EPW) conform EPB"]
[null,"ENE 2","Hernieuwbare energie",null,null,""]
[null,null,"ENE 2.1","Haalbaarheid hernieuwbare energieën","Verplicht","Voldaan",{"$f":"IF(VLOOKUP(C145,'Doc Load_Aanvraag'!$B$49:$C$386,2,FALSE)=TRUE,1, 0)","v":0},{"$f":"IF(VLOOKUP(C145,'Doc Load_Aanvraag'!$B$49:$C$600,2,FALSE)=TRUE,Bron!$B$7,Bron!$B$8)","v":"Niet voldaan"}]
[null,null,"ENE 2.2","Aandeel primair energieverbruik hernieuwbaar","Verplicht","Uitstekend",{"$f":"IF(H146=Bron!$B$2,1,0)","v":0},{"$f":"IF(VLOOKUP(I146,'Doc Load_Aanvraag'!$B$49:$C$724,2,FALSE)=TRUE, Bron!$B$2,IF(VLOOKUP(J146,'Doc Load_Aanvraag'!$B$49:$C$724,2,FALSE)=TRUE,Bron!$B$8,IF(VLOOKUP(K146,'Doc Load_Aanvraag'!$B$49:$C$724,2,FALSE)=TRUE,Bron!$B$8,\"Niet ingevuld\")))","v":"Niet ingevuld"},"ENE22 Uitstekend","ENE22 beter","ENE22 goed"]
[null,null,"ENE 2.3","Aandeel primair energieverbruik hernieuwbaar > 35% ","Vrij","Voldaan",{"$f":"IF(VLOOKUP(C147,'Doc Load_Aanvraag'!$B$49:$C$686,2,FALSE)=TRUE,1, 0)","v":0},{"$f":"IF(VLOOKUP(C147,'Doc Load_Aanvraag'!$B$49:$C$600,2,FALSE)=TRUE,Bron!$B$7,\"\")","v":""}]
[null,null,"ENE 2.4","Aandeel primair energieverbruik hernieuwbaar > 50%","Vrij","Voldaan",{"$f":"IF(VLOOKUP(C148,'Doc Load_Aanvraag'!$B$49:$C$686,2,FALSE)=TRUE,1, 0)","v":0},{"$f":"IF(VLOOKUP(C148,'Doc Load_Aanvraag'!$B$49:$C$600,2,FALSE)=TRUE,Bron!$B$7,\"\")","v":""}]
[null,null,"ENE 2.5","Aandeel primair energieverbruik hernieuwbaar > 75%","Vrij","Voldaan",{"$f":"IF(VLOOKUP(C149,'Doc Load_Aanvraag'!$B$49:$C$686,2,FALSE)=TRUE,1, 0)","v":0},{"$f":"IF(VLOOKUP(C149,'Doc Load_Aanvraag'!$B$49:$C$600,2,FALSE)=TRUE,Bron!$B$7,\"\")","v":""}]
[]
[null,"ENE 3","Energiezuinige installaties en toestellen"]
[null,null,"ENE 3.1","Buitenverlichting","Verplicht","Voldaan",{"$f":"IF(VLOOKUP(C152,'Doc Load_Aanvraag'!$B$49:$C$600,2,FALSE)=TRUE,1, 0)","v":0},{"$f":"IF(VLOOKUP(C152,'Doc Load_Aanvraag'!$B$49:$C$600,2,FALSE)=TRUE,Bron!$B$7,Bron!$B$8)","v":"Niet voldaan"}]
[null,null,"ENE 3.2","Binnenverlichting","Verplicht","Voldaan",{"$f":"IF(VLOOKUP(C153,'Doc Load_Aanvraag'!$B$49:$C$600,2,FALSE)=TRUE,1, 0)","v":0},{"$f":"IF(VLOOKUP(C153,'Doc Load_Aanvraag'!$B$49:$C$600,2,FALSE)=TRUE,Bron!$B$7,Bron!$B$8)","v":"Niet voldaan"}]
[null,null,"ENE 3.3","Elektrische huishoudelijke toestellen","Verplicht","Voldaan",{"$f":"IF(VLOOKUP(C154,'Doc Load_Aanvraag'!$B$49:$C$600,2,FALSE)=TRUE,1, 0)","v":0},{"$f":"IF(VLOOKUP(C154,'Doc Load_Aanvraag'!$B$49:$C$600,2,FALSE)=TRUE,Bron!$B$7,Bron!$B$8)","v":"Niet voldaan"}]
[null,null,"ENE 3.4","Liften","Verplicht","Voldaan",{"$f":"IF(VLOOKUP(C155,'Doc Load_Aanvraag'!$B$49:$C$600,2,FALSE)=TRUE,1, 0)","v":0},{"$f":"IF(VLOOKUP(C155,'Doc Load_Aanvraag'!$B$49:$C$600,2,FALSE)=TRUE,Bron!$B$7,Bron!$B$8)","v":"Niet voldaan"}]
[null,null,"ENE 3.5","Verwarmingstoestellen en warmwaterbereiders","Verplicht","Voldaan",{"$f":"IF(VLOOKUP(C156,'Doc Load_Aanvraag'!$B$49:$C$600,2,FALSE)=TRUE,1, 0)","v":0},{"$f":"IF(VLOOKUP(C156,'Doc Load_Aanvraag'!$B$49:$C$600,2,FALSE)=TRUE,Bron!$B$7,Bron!$B$8)","v":"Niet voldaan"}]
[null,null,"ENE 3.6","Automatische regeling - niet-verblijfsruimten","Verplicht","Voldaan",{"$f":"IF(VLOOKUP(C157,'Doc Load_Aanvraag'!$B$49:$C$600,2,FALSE)=TRUE,1, 0)","v":0},{"$f":"IF(VLOOKUP(C157,'Doc Load_Aanvraag'!$B$49:$C$600,2,FALSE)=TRUE,Bron!$B$7,Bron!$B$8)","v":"Niet voldaan"}]
[null,null,"ENE 3.7","Automatische regeling – andere ruimten","Vrij","Voldaan",{"$f":"IF(VLOOKUP(C158,'Doc Load_Aanvraag'!$B$49:$C$600,2,FALSE)=TRUE,1, 0)","v":0},{"$f":"IF(VLOOKUP(C158,'Doc Load_Aanvraag'!$B$49:$C$600,2,FALSE)=TRUE,Bron!$B$7,\"\")","v":""}]
[null,null,"ENE 3.8","Energie-efficiëntie niet-huishoudelijke toestellen ","Verplicht ","Voldaan",{"$f":"IF(VLOOKUP(C159,'Doc Load_Aanvraag'!$B$49:$C$600,2,FALSE)=TRUE,1, 0)","v":0},{"$f":"IF(VLOOKUP(C159,'Doc Load_Aanvraag'!$B$49:$C$600,2,FALSE)=TRUE,Bron!$B$7,Bron!$B$8)","v":"Niet voldaan"}]
[]
[null,"MAT 2","Materiaalkeuze"]
[null,null,"MAT 2.1","TOTEM-analyse","Vrij","Voldaan ",{"$f":"IF(VLOOKUP(C162,'Doc Load_Aanvraag'!$B$49:$C$600,2,FALSE)=TRUE,1, 0)","v":0},{"$f":"IF(VLOOKUP(C162,'Doc Load_Aanvraag'!$B$49:$C$600,2,FALSE)=TRUE,Bron!$B$7,\"\")","v":""}]
[null,null,"MAT 2.2","Hout uit duurzaam bosbeheer","Verplicht","Uitstekend",{"$f":"IF(H163=Bron!$B$2,1,0)","v":0},{"$f":"IF(VLOOKUP(I163,'Doc Load_Aanvraag'!$B$49:$C$724,2,FALSE)=TRUE, Bron!$B$2,IF(VLOOKUP(J163,'Doc Load_Aanvraag'!$B$49:$C$724,2,FALSE)=TRUE,Bron!$B$8,IF(VLOOKUP(K163,'Doc Load_Aanvraag'!$B$49:$C$724,2,FALSE)=TRUE,Bron!$B$8,\"Niet ingevuld\")))","v":"Niet ingevuld"},"MAT22 Uitstekend","MAT22 beter","MAT22 goed"]
[]
[null,"WAT 1","Waterverbruik beperken"]
[null,null,null,"Waterverbruik beperken","Verplicht ","Beter",{"$f":"IF(ABS(SUMPRODUCT(-(G167:G169<>\"\")))>1,1,0)","v":0},{"$f":"IF(ABS(SUMPRODUCT(-(G167:G169<>\"\")))=3,\"Uitstekend\",IF(ABS(SUMPRODUCT(-(G167:G169<>\"\")))>1,\"Beter\",IF(ABS(SUMPRODUCT(-(G167:G169<>\"\")))>0,\"Goed\",\"Niet voldaan\")))","v":"Niet voldaan"},"WAT 1 Uitstekend","WAT 1 beter","WAT 1 goed"]
[null,null,"WAT 1.1","Waterbesparende toestellen en kraanwerk",null,null,{"$f":"IF(VLOOKUP(C167,'Doc Load_Aanvraag'!$B$49:$C$724,2,FALSE)=TRUE,\"x\",\"\")","v":""}]
[null,null,"WAT 1.2","Watermeter",null,null,{"$f":"IF(VLOOKUP(C168,'Doc Load_Aanvraag'!$B$49:$C$724,2,FALSE)=TRUE,\"x\",\"\")","v":""}]
[null,null,"WAT 1.3","Ontwerp waterdistributie",null,null,{"$f":"IF(VLOOKUP(C169,'Doc Load_Aanvraag'!$B$49:$C$724,2,FALSE)=TRUE,\"x\",\"\")","v":""}]
[]
[null,"WAT 2","Hergebruik van water"]
[null,null,"WAT 2.1","Dekkingsgraad door waterhergebruik","Verplicht","Goed",{"$f":"IF(OR(H172=Bron!$B$2,H172=Bron!$B$3,H172=Bron!$B$4),1,0)","v":0},{"$f":"IF(VLOOKUP(I172,'Doc Load_Aanvraag'!$B$49:$C$724,2,FALSE)=TRUE, Bron!$B$2,IF(VLOOKUP(J172,'Doc Load_Aanvraag'!$B$49:$C$724,2,FALSE)=TRUE,Bron!$B$3,IF(VLOOKUP(K172,'Doc Load_Aanvraag'!$B$49:$C$724,2,FALSE)=TRUE,Bron!$B$4,\"Niet ingevuld\")))","v":"Niet ingevuld"},"WAT 2.1 Uitstekend","WAT 2.1 beter","WAT 2.1 goed"]
[null,null,"WAT 2.2","Effectief benut potentieel","Vrij","Goed",{"$f":"IF(OR(H173=Bron!$B$2,H173=Bron!$B$3,H173=Bron!$B$4),1,0)","v":0},{"$f":"IF(VLOOKUP(I173,'Doc Load_Aanvraag'!$B$49:$C$724,2,FALSE)=TRUE, Bron!$B$2,IF(VLOOKUP(J173,'Doc Load_Aanvraag'!$B$49:$C$724,2,FALSE)=TRUE,Bron!$B$3,IF(VLOOKUP(K173,'Doc Load_Aanvraag'!$B$49:$C$724,2,FALSE)=TRUE,Bron!$B$4,\"\")))","v":""},"WAT 2.2 Uitstekend","WAT 2.2 beter","WAT 2.2 goed"]
[null,null,"WAT 2.3","Optimale afstemming van de beschikbare waterkwaliteit aan de benodigde waterkwaliteit ","Vrij","Voldaan ",{"$f":"IF(VLOOKUP(C174,'Doc Load_Aanvraag'!$B$49:$C$600,2,FALSE)=TRUE,1, 0)","v":0},{"$f":"IF(VLOOKUP(C174,'Doc Load_Aanvraag'!$B$49:$C$600,2,FALSE)=TRUE,Bron!$B$7,\"\")","v":""}]
[]
[null,"WAT 3","Afvoer van water"]
[null,null,"WAT 3.1","Lekdebiet naar riolering","Vrij","Goed",{"$f":"IF(OR(H177=Bron!$B$2,H177=Bron!$B$3,H177=Bron!$B$4),1,0)","v":0},{"$f":"IF(VLOOKUP(I177,'Doc Load_Aanvraag'!$B$49:$C$724,2,FALSE)=TRUE, Bron!$B$2,IF(VLOOKUP(J177,'Doc Load_Aanvraag'!$B$49:$C$724,2,FALSE)=TRUE,Bron!$B$3,IF(VLOOKUP(K177,'Doc Load_Aanvraag'!$B$49:$C$724,2,FALSE)=TRUE,Bron!$B$4,\"\")))","v":""},"WAT 3.1 Uitstekend","WAT 3.1 beter","WAT 3.1 goed"]
[null,null,"WAT 3.2","Ledigingstijd infiltratievoorziening","Vrij","Goed",{"$f":"IF(OR(H178=Bron!$B$2,H178=Bron!$B$3,H178=Bron!$B$4),1,0)","v":0},{"$f":"IF(VLOOKUP(I178,'Doc Load_Aanvraag'!$B$49:$C$724,2,FALSE)=TRUE, Bron!$B$2,IF(VLOOKUP(J178,'Doc Load_Aanvraag'!$B$49:$C$724,2,FALSE)=TRUE,Bron!$B$3,IF(VLOOKUP(K178,'Doc Load_Aanvraag'!$B$49:$C$724,2,FALSE)=TRUE,Bron!$B$4,\"\")))","v":""},"WAT 3.2 Uitstekend","WAT 3.2 beter","WAT 3.2 goed"]
[null,null,"WAT 3.3","Vermijden van vervuiling van water","Vrij","Voldaan",{"$f":"IF(VLOOKUP(C179,'Doc Load_Aanvraag'!$B$49:$C$600,2,FALSE)=TRUE,1, 0)","v":0},{"$f":"IF(VLOOKUP(C179,'Doc Load_Aanvraag'!$B$49:$C$600,2,FALSE)=TRUE,Bron!$B$7,\"\")","v":""}]
[]
[null,"OMG 1","Biodiversiteit",null,null,""]
[null,null,"OMG 1.1","Opmaak inrichtings- en beheersplan","Vrij","Voldaan",{"$f":"IF(VLOOKUP(C182,'Doc Load_Aanvraag'!$B$49:$C$600,2,FALSE)=TRUE,1, 0)","v":0},{"$f":"IF(VLOOKUP(C182,'Doc Load_Aanvraag'!$B$49:$C$600,2,FALSE)=TRUE,Bron!$B$7,\"\")","v":""}]
[null,null,"OMG 1.2","Verbetering BAF+ indicator","Vrij","Voldaan",{"$f":"IF(VLOOKUP(C183,'Doc Load_Aanvraag'!$B$49:$C$600,2,FALSE)=TRUE,1, 0)","v":0},{"$f":"IF(VLOOKUP(C183,'Doc Load_Aanvraag'!$B$49:$C$600,2,FALSE)=TRUE,Bron!$B$7,\"\")","v":""}]
[null,null,"OMG 1.3","Buitenruimte ","Verplicht","Voldaan ",{"$f":"IF(VLOOKUP(C184,'Doc Load_Aanvraag'!$B$49:$C$600,2,FALSE)=TRUE,1, 0)","v":0},{"$f":"IF(VLOOKUP(C184,'Doc Load_Aanvraag'!$B$49:$C$600,2,FALSE)=TRUE,Bron!$B$7,Bron!$B$8)","v":"Niet voldaan"}]
[]
[null,"OMG 2","Impact op de omgeving",null,null,""]
[null,null,"OMG 2.1","Lichtpollutie","Vrij","Beter",{"$f":"IF(ABS(SUMPRODUCT(-(G189:G191<>\"\")))>1,1,0)","v":0},{"$f":"IF(ABS(SUMPRODUCT(-(G189:G191<>\"\")))=3,\"Uitstekend\",IF(ABS(SUMPRODUCT(-(G189:G191<>\"\")))>1,\"Beter\",IF(ABS(SUMPRODUCT(-(G189:G191<>\"\")))>0,\"Goed\",\"\")))","v":""},"OMG 2.1 Uitstekend","OMG 2.1 beter","OMG 2.1 goed"]
[null,null,"A","Bepaling gebiedstype",null,null,null,null,"OMG 2.1 A"]
[null,null,"B","Beperken van hemelgloed",null,null,null,null,"OMG 2.1 B"]
[null,null,"C","Beperken van licht op naburige eigendommen",null,null,null,null,"OMG 2.1 C"]
[null,null,"D","Lichtbeheersysteem",null,null,null,null,"OMG 2.1 D"]
[null,null,"OMG 2.2","Beschaduwing van de directe omgeving","Vrij","Goed",{"$f":"IF(OR(H192=Bron!$B$2,H192=Bron!$B$3,H192=Bron!$B$4),1,0)","v":0},{"$f":"IF(VLOOKUP(I192,'Doc Load_Aanvraag'!$B$49:$C$724,2,FALSE)=TRUE, Bron!$B$2,IF(VLOOKUP(J192,'Doc Load_Aanvraag'!$B$49:$C$724,2,FALSE)=TRUE,Bron!$B$3,IF(VLOOKUP(K192,'Doc Load_Aanvraag'!$B$49:$C$724,2,FALSE)=TRUE,Bron!$B$4,\"\")))","v":""},"OMG 2.2 Uitstekend","OMG 2.2 Beter","OMG 2.2 Goed"]
[null,null,"OMG 2.3","Windhinder","Vrij","Goed",{"$f":"IF(OR(H193=Bron!$B$2,H193=Bron!$B$3,H193=Bron!$B$4),1,0)","v":0},{"$f":"IF(VLOOKUP(I193,'Doc Load_Aanvraag'!$B$49:$C$724,2,FALSE)=TRUE, Bron!$B$2,IF(VLOOKUP(J193,'Doc Load_Aanvraag'!$B$49:$C$724,2,FALSE)=TRUE,Bron!$B$3,IF(VLOOKUP(K193,'Doc Load_Aanvraag'!$B$49:$C$724,2,FALSE)=TRUE,Bron!$B$4,\"\")))","v":""},"OMG 2.3 Uitstekend","OMG 2.3 Beter","OMG 2.3 Goed"]
[null,null,"OMG 2.4","Hitte-eilandeffect","Vrij","Goed",{"$f":"IF(OR(H194=Bron!$B$2,H194=Bron!$B$3,H194=Bron!$B$4),1,0)","v":0},{"$f":"IF(VLOOKUP(I194,'Doc Load_Aanvraag'!$B$49:$C$724,2,FALSE)=TRUE, Bron!$B$2,IF(VLOOKUP(J194,'Doc Load_Aanvraag'!$B$49:$C$724,2,FALSE)=TRUE,Bron!$B$3,IF(VLOOKUP(K194,'Doc Load_Aanvraag'!$B$49:$C$724,2,FALSE)=TRUE,Bron!$B$4,\"\")))","v":""},"OMG 2.4 Uitstekend","OMG 2.4 Beter","OMG 2.4 Goed"]
[]
[null,"PLANET",null,"aantal vrije criteria",{"$f":"COUNTIFS(E187:E194,\"Vrij\")+COUNTIFS(E177:E179,\"Vrij\")+COUNTIFS(E172:E174,\"Vrij\")+COUNTIFS(E166:E169,\"Vrij\")+COUNTIFS(E162:E163,\"Vrij\")+COUNTIFS(E152:E159,\"Vrij\")+COUNTIFS(E140:E142,\"Vrij\")+COUNTIFS(E145:E149,\"Vrij\")+COUNTIFS(E182:E184,\"Vrij\")","v":17},null,{"$f":"G194+G193+G192+G183+G182+G179+G178+G177+G174+G173+G162+G158+G149+G148+G147+G142+G187","v":0}]
[null,null,null,"aantal verplichte criteria",{"$f":"E198-E196","v":15},null,{"$f":"G184+G172+G166+G163+G159+G157+G156+G155+G154+G153+G152+G146+G145+G141+G140","v":0}]
[null,null,null,"totaal",32,null,{"$f":"SUM(G196:G197)","v":0}]
[]
[null,"DEEL III [C]: GEBOUW - profit"]
[]
[null,"LCC 3","Energieverbruik"]
[null,null,"LCC 3.1","Rekenblad LCC3","Vrij","Voldaan ",{"$f":"IF(VLOOKUP(C203,'Doc Load_Aanvraag'!$B$49:$C$600,2,FALSE)=TRUE,1, 0)","v":0},{"$f":"IF(VLOOKUP(C203,'Doc Load_Aanvraag'!$B$49:$C$600,2,FALSE)=TRUE,Bron!$B$7,Bron!$B$8)","v":"Niet voldaan"}]
[]
[null,"TOE 1","Circulair en toekomstgericht ontwerpen",null,null,""]
[null,null,"TOE 1.1","Checklist toekomstgericht ontwerpen","Vrij","Goed",{"$f":"IF(OR(H206=Bron!$B$2,H206=Bron!$B$3,H206=Bron!$B$4),1,0)","v":0},{"$f":"IF(VLOOKUP(I206,'Doc Load_Aanvraag'!$B$49:$C$724,2,FALSE)=TRUE, Bron!$B$2,IF(VLOOKUP(J206,'Doc Load_Aanvraag'!$B$49:$C$724,2,FALSE)=TRUE,Bron!$B$3,IF(VLOOKUP(K206,'Doc Load_Aanvraag'!$B$49:$C$724,2,FALSE)=TRUE,Bron!$B$4,\"Niet ingevuld\")))","v":"Niet ingevuld"},"TOE 1.1 Uitstekend","TOE 1.1 Beter","TOE 1.1 Goed"]
[null,null,"TOE 1.2","Plan van aanpak circulair en toekomstgericht ontwerpen","Vrij","Voldaan",{"$f":"IF(VLOOKUP(C207,'Doc Load_Aanvraag'!$B$49:$C$600,2,FALSE)=TRUE,1, 0)","v":0},{"$f":"IF(VLOOKUP(C207,'Doc Load_Aanvraag'!$B$49:$C$600,2,FALSE)=TRUE,Bron!$B$7,Bron!$B$8)","v":"Niet voldaan"}]
[null,null,"TOE 1.3","Demontageplan","Vrij","Voldaan",{"$f":"IF(VLOOKUP(C208,'Doc Load_Aanvraag'!$B$49:$C$600,2,FALSE)=TRUE,1, 0)","v":0},{"$f":"IF(VLOOKUP(C208,'Doc Load_Aanvraag'!$B$49:$C$600,2,FALSE)=TRUE,Bron!$B$7,Bron!$B$8)","v":"Niet voldaan"}]
[]
[null,"TOE 2","Gebruik door derden en multifunctionaliteit"]
[null,null,"TOE 2.1","In welke mate is het project multifunctioneel en/of toegankelijk voor derden?","Vrij","Voldaan",{"$f":"IF(ABS(SUMPRODUCT(-(G212:G218<>\"\")))>1,1,0)","v":0},{"$f":"IF(ABS(SUMPRODUCT(-(G212:G218<>\"\")))>3,\"Voldaan\",\"\")","v":""}]
[null,null,"A","Is de omgevingsaanleg toegankelijk voor derden? ",null,null,{"$f":"IF(VLOOKUP(I212,'Doc Load_Aanvraag'!$B$49:$C$600,2,FALSE)=TRUE,\"x\",\"\")","v":""},null,"TOE 2.1 A"]
[null,null,"B","Zijn er ruimtes/functies in het gebouw, die toegankelijk zijn voor derden?",null,null,{"$f":"IF(VLOOKUP(I213,'Doc Load_Aanvraag'!$B$49:$C$600,2,FALSE)=TRUE,\"x\",\"\")","v":""},null,"TOE 2.1 B"]
[null,null,"C","Is het voor derden mogelijk om ruimten tijdelijk in te huren?   ",null,null,{"$f":"IF(VLOOKUP(I214,'Doc Load_Aanvraag'!$B$49:$C$600,2,FALSE)=TRUE,\"x\",\"\")","v":""},null,"TOE 2.1 C"]
[null,null,"D","Zijn er eenheden die op lange termijn ingehuurd kunnen worden?",null,null,{"$f":"IF(VLOOKUP(I215,'Doc Load_Aanvraag'!$B$49:$C$600,2,FALSE)=TRUE,\"x\",\"\")","v":""},null,"TOE 2.1 D"]
[null,null,"E","Zijn deze eenheden verschillend van aard (functiemix)?   ",null,null,{"$f":"IF(VLOOKUP(I216,'Doc Load_Aanvraag'!$B$49:$C$600,2,FALSE)=TRUE,\"x\",\"\")","v":""},null,"TOE 2.1 E"]
[null,null,"F","Wordt het multifunctionele gebouw gerealiseerd door verschillende actoren samen?",null,null,{"$f":"IF(VLOOKUP(I217,'Doc Load_Aanvraag'!$B$49:$C$600,2,FALSE)=TRUE,\"x\",\"\")","v":""},null,"TOE 2.1 F"]
[null,null,"G ","Zijn er functionele (buiten)ruimten die gedeeld worden door verschillende actoren? ",null,null,{"$f":"IF(VLOOKUP(I218,'Doc Load_Aanvraag'!$B$49:$C$600,2,FALSE)=TRUE,\"x\",\"\")","v":""},null,"TOE 2.1 G"]
[]
[null,"BEH 1","Energiemonitoring"]
[null,null,"BEH 1.1","Basis energiemonitoring","Verplicht","Voldaan",{"$f":"IF(VLOOKUP(C221,'Doc Load_Aanvraag'!$B$49:$C$600,2,FALSE)=TRUE,1, 0)","v":0},{"$f":"IF(VLOOKUP(C221,'Doc Load_Aanvraag'!$B$2:$C$600,2,FALSE)=TRUE,Bron!$B$7,Bron!$B$8)","v":"Niet voldaan"}]
[null,null,"BEH 1.2","Update energiemonitoring","Verplicht","Voldaan",{"$f":"IF(VLOOKUP(C222,'Doc Load_Aanvraag'!$B$49:$C$600,2,FALSE)=TRUE,1, 0)","v":0},{"$f":"IF(VLOOKUP(C222,'Doc Load_Aanvraag'!$B$2:$C$600,2,FALSE)=TRUE,Bron!$B$7,Bron!$B$8)","v":"Niet voldaan"}]
[null,null,"BEH 1.3","Submetering van de grootste verbruikers, gebruikers en zones","Verplicht","Voldaan",{"$f":"IF(VLOOKUP(C223,'Doc Load_Aanvraag'!$B$49:$C$600,2,FALSE)=TRUE,1, 0)","v":0},{"$f":"IF(VLOOKUP(C223,'Doc Load_Aanvraag'!$B$2:$C$600,2,FALSE)=TRUE,Bron!$B$7,Bron!$B$8)","v":"Niet voldaan"}]
[null,null,"BEH 1.4","Basis kwaliteitsopvolging ","Verplicht","Voldaan",{"$f":"IF(VLOOKUP(C224,'Doc Load_Aanvraag'!$B$49:$C$600,2,FALSE)=TRUE,1, 0)","v":0},{"$f":"IF(VLOOKUP(C224,'Doc Load_Aanvraag'!$B$2:$C$600,2,FALSE)=TRUE,Bron!$B$7,Bron!$B$8)","v":"Niet voldaan"}]
[null,null,"BEH 1.5","Opleiding i.f.v. beheer","Verplicht","Voldaan",{"$f":"IF(VLOOKUP(C225,'Doc Load_Aanvraag'!$B$49:$C$600,2,FALSE)=TRUE,1, 0)","v":0},{"$f":"IF(VLOOKUP(C225,'Doc Load_Aanvraag'!$B$2:$C$600,2,FALSE)=TRUE,Bron!$B$7,Bron!$B$8)","v":"Niet voldaan"}]
[null,null,"BEH 1.6","Visualisatietool","Verplicht","Voldaan",{"$f":"IF(VLOOKUP(C226,'Doc Load_Aanvraag'!$B$49:$C$600,2,FALSE)=TRUE,1, 0)","v":0},{"$f":"IF(VLOOKUP(C226,'Doc Load_Aanvraag'!$B$2:$C$600,2,FALSE)=TRUE,Bron!$B$7,Bron!$B$8)","v":"Niet voldaan"}]
[]
[null,"PROFIT",null,"aantal vrije criteria",5,null,{"$f":"G203+G206+G207+G208+G211","v":0}]
[null,null,null,"aantal verplichte criteria",6,null,{"$f":"G221+G222+G223+G224+G225+G226","v":0}]
[null,null,null,"totaal",{"$f":"E228+E229","v":11},null,{"$f":"G228+G229","v":0}]
[]
[]
[null,"OVERZICHT GEREALISEERDE CRITERIA",null,null,null,null,"PROJECT"]
[null,"DEEL I: BASISPRINCIPES"]
[null,null,null,"aantal vrije criteria",{"$f":"E23","v":0},null,{"$f":"G23","v":0}]
[null,null,null,"aantal verplichte criteria",{"$f":"E24","v":6},null,{"$f":"G24","v":0}]
[null,"DEEL II: SITE"]
[null,null,null,"aantal vrije criteria",{"$f":"E54","v":6},null,{"$f":"G54","v":0}]
[null,null,null,"aantal verplichte criteria",{"$f":"E55","v":4},null,{"$f":"G55","v":0}]
[null,"DEEL III [A]: GEBOUW - people"]
[null,null,null,"aantal vrije criteria",{"$f":"E133","v":19},null,{"$f":"G133","v":0}]
[null,null,null,"aantal verplichte criteria",{"$f":"E134","v":8},null,{"$f":"G134","v":0}]
[null,"DEEL III [B]: GEBOUW - planet"]
[null,null,null,"aantal vrije criteria",{"$f":"E196","v":17},null,{"$f":"G196","v":0}]
[null,null,null,"aantal verplichte criteria",{"$f":"E197","v":15},null,{"$f":"G197","v":0}]
[null,"DEEL III [C]: GEBOUW - profit"]
[null,null,null,"aantal vrije criteria",{"$f":"E228","v":5},null,{"$f":"G228","v":0}]
[null,null,null,"aantal verplichte criteria",{"$f":"E229","v":6},null,{"$f":"G229","v":0}]
[null,"TOTAAL"]
[null,null,null,"aantal vrije criteria",{"$f":"E235+E238+E241+E244+E247","v":47},null,{"$f":"G235+G238+G241+G244+G247","v":0}]
[null,null,null,"aantal verplichte criteria",{"$f":"E236+E239+E242+E245+E248","v":39},null,{"$f":"G236+G239+G242+G245+G248","v":0}]
[null,null,null,null,{"$f":"E250+E251","v":86}]
[]
[null,null,null,"min. te behalen vrije criteria",10,null,{"$f":"G250","v":0}]
[null,null,null,"totaal aantal te realiseren criteria",{"$f":"E251+E254","v":49},null,{"$f":"G251+G250","v":0}]

{"sheet":"Bijlage3_Evaluatie 2","index":2,"n_rows":255,"n_cols":14,"rows_kept":255,"cut":false,"hidden":false,"merged":[[115,2,115,7],[17,1,17,7],[28,2,28,7],[33,2,33,7],[38,2,38,7],[46,2,46,7],[48,2,48,7],[50,2,50,7],[59,2,59,7],[69,2,69,7],[84,2,84,7],[93,2,93,7],[204,2,204,7],[121,2,121,7],[138,2,138,7],[143,2,143,7],[150,2,150,7],[160,2,160,7],[164,2,164,7],[170,2,170,7],[175,2,175,7],[180,2,180,7],[185,2,185,7],[201,2,201,7],[245,1,245,7],[209,2,209,7],[219,2,219,7],[233,1,233,7],[236,1,236,7],[239,1,239,7],[242,1,242,7]]}
[]
[null,"VIPA criteria duurzaamheid ",null,null,null,null,null,"ANDERE SECTOREN"]
[]
[null,"Thema","Criterium","Deeleis ","Verplicht / vrij","Minimaal prestatieniveau of voldaan","Criteria project ","Behaald prestatieniveau"]
[]
[null,"DEEL I: BASISPRINCIPES"]
[]
[null,"CON 1: Duurzaam concept"]
[null,null,"CON 1.1","Duurzaam ruimtegebruik: pas de principes van de Trias toponoma toe","Verplicht ","Voldaan",{"$f":"IF(VLOOKUP(C9,'Doc Load_Evaluatie 2'!$B$49:$C$386,2,FALSE)=TRUE,1, 0)","v":0},{"$f":"IF(VLOOKUP(C9,'Doc Load_Evaluatie 2'!$B$49:$C$386,2,FALSE)=TRUE,Bron!$B$7,Bron!$B$8)","v":"Niet voldaan"}]
[null,null,"CON 1.2","Pas de principes van climate responsive design en de Penta Energetica toe","Verplicht","Voldaan",{"$f":"IF(VLOOKUP(C10,'Doc Load_Evaluatie 2'!$B$49:$C$386,2,FALSE)=TRUE,1, 0)","v":0},{"$f":"IF(VLOOKUP(C10,'Doc Load_Evaluatie 2'!$B$49:$C$386,2,FALSE)=TRUE,Bron!$B$7,Bron!$B$8)","v":"Niet voldaan"}]
[null,null,"A","Keep it warm"]
[null,null,"B","Keep it cool"]
[null,null,"C","Turn of the light "]
[null,null,"CON 1.3","Pas de principes van Healthy Design en Reduce, reuse, recyle toe","Verplicht ","Voldaan",{"$f":"IF(VLOOKUP(C14,'Doc Load_Evaluatie 2'!$B$49:$C$386,2,FALSE)=TRUE,1, 0)","v":0},{"$f":"IF(VLOOKUP(C14,'Doc Load_Evaluatie 2'!$B$49:$C$386,2,FALSE)=TRUE,Bron!$B$7,Bron!$B$8)","v":"Niet voldaan"}]
[null,null,"A","Healthy design"]
[null,null,"B","Reduce, reuse, recycle"]
[]
[null,"PRO 1: Geïntegreerd proces"]
[null,null,"PRO 1.1","Multidisciplinair ontwerpteam","Verplicht","Voldaan",{"$f":"IF(VLOOKUP(C19,'Doc Load_Evaluatie 2'!$B$49:$C$386,2,FALSE)=TRUE,1, 0)","v":0},{"$f":"IF(VLOOKUP(C19,'Doc Load_Evaluatie 2'!$B$49:$C$386,2,FALSE)=TRUE,Bron!$B$7,Bron!$B$8)","v":"Niet voldaan"}]
[null,null,"PRO 1.2","Programma van eisen als leidraad ","Verplicht","Voldaan",{"$f":"IF(VLOOKUP(C20,'Doc Load_Evaluatie 2'!$B$49:$C$386,2,FALSE)=TRUE,1, 0)","v":0},{"$f":"IF(VLOOKUP(C20,'Doc Load_Evaluatie 2'!$B$49:$C$386,2,FALSE)=TRUE,Bron!$B$7,Bron!$B$8)","v":"Niet voldaan"}]
[null,null,"PRO 1.3","Duurzaamheid als ontwerpprincipe doorheen alle fasen van het ontwerp- en bouwtraject","Verplicht","Voldaan",{"$f":"IF(VLOOKUP(C21,'Doc Load_Evaluatie 2'!$B$49:$C$386,2,FALSE)=TRUE,1, 0)","v":0},{"$f":"IF(VLOOKUP(C21,'Doc Load_Evaluatie 2'!$B$49:$C$386,2,FALSE)=TRUE,Bron!$B$7,Bron!$B$8)","v":"Niet voldaan"}]
[]
[null,"PROCES",null,"aantal vrije",0,null,0]
[null,null,null,"aantal verplichte",6,null,{"$f":"G9+G10+G14+G19+G20+G21","v":0}]
[null,null,null,null,{"$f":"E23+E24","v":6},null,{"$f":"G24","v":0}]
[]
[null,"DEEL II: SITE"]
[]
[null,"MOB 1","Bereikbaarheid van de site"]
[null,null,"MOB 1.1","Met het openbaar vervoer","Vrij","Goed",{"$f":"IF(VLOOKUP(I30,'Doc Load_Evaluatie 2'!$B$49:$C$724,2,FALSE)=TRUE, 1,IF(VLOOKUP(J30,'Doc Load_Evaluatie 2'!$B$49:$C$724,2,FALSE)=TRUE,1,IF(VLOOKUP(K30,'Doc Load_Evaluatie 2'!$B$49:$C$724,2,FALSE)=TRUE,1,IF(VLOOKUP(L30,'Doc Load_Evaluatie 2'!$B$49:$C$724,2,FALSE)=TRUE,0,0))))","v":0},{"$f":"IF(VLOOKUP(I30,'Doc Load_Evaluatie 2'!$B$49:$C$724,2,FALSE)=TRUE, Bron!$B$2,IF(VLOOKUP(J30,'Doc Load_Evaluatie 2'!$B$49:$C$724,2,FALSE)=TRUE,Bron!$B$3,IF(VLOOKUP(K30,'Doc Load_Evaluatie 2'!$B$49:$C$724,2,FALSE)=TRUE,Bron!$B$4,\"\")))","v":""},"MOB 1.1 Uitstekend","MOB 1.1 Beter","MOB 1.1 Goed","MOB 1.1 Matig"]
[null,null,"MOB 1.2","Met de fiets","Vrij","Goed",{"$f":"IF(VLOOKUP(I31,'Doc Load_Evaluatie 2'!$B$49:$C$724,2,FALSE)=TRUE, 1,IF(VLOOKUP(J31,'Doc Load_Evaluatie 2'!$B$49:$C$724,2,FALSE)=TRUE,1,IF(VLOOKUP(K31,'Doc Load_Evaluatie 2'!$B$49:$C$724,2,FALSE)=TRUE,1,0)))","v":0},{"$f":"IF(VLOOKUP(I31,'Doc Load_Evaluatie 2'!$B$49:$C$724,2,FALSE)=TRUE, Bron!$B$2,IF(VLOOKUP(J31,'Doc Load_Evaluatie 2'!$B$49:$C$724,2,FALSE)=TRUE,Bron!$B$3,IF(VLOOKUP(K31,'Doc Load_Evaluatie 2'!$B$49:$C$724,2,FALSE)=TRUE,Bron!$B$4,\"\")))","v":""},"MOB 1.2 Uitstekend","MOB 1.2 Beter","MOB 1.2 Goed"]
[null,null,"MOB 1.3","Te voet","Vrij","Goed",{"$f":"IF(VLOOKUP(I32,'Doc Load_Evaluatie 2'!$B$2:$C$724,2,FALSE)=TRUE, 1,IF(VLOOKUP(J32,'Doc Load_Evaluatie 2'!$B$2:$C$724,2,FALSE)=TRUE,1,IF(VLOOKUP(K32,'Doc Load_Evaluatie 2'!$B$2:$C$724,2,FALSE)=TRUE,1,0)))","v":0},{"$f":"IF(VLOOKUP(I32,'Doc Load_Evaluatie 2'!$B$49:$C$724,2,FALSE)=TRUE, Bron!$B$2,IF(VLOOKUP(J32,'Doc Load_Evaluatie 2'!$B$49:$C$724,2,FALSE)=TRUE,Bron!$B$3,IF(VLOOKUP(K32,'Doc Load_Evaluatie 2'!$B$49:$C$724,2,FALSE)=TRUE,Bron!$B$4,\"\")))","v":""},"MOB 1.3 Uitstekend","MOB 1.3 Beter","MOB 1.3 Goed"]
[]
[null,"MA 1","Maatschappelijke kwaliteit - Ruimtelijke Kwaliteit"]
[null,null,"MA 1.1","Aftoetsing aan beleidskader ruimtelijke structuur","Verplicht","Voldaan",{"$f":"IF(VLOOKUP(C35,'Doc Load_Evaluatie 2'!$B$49:$C$386,2,FALSE)=TRUE,1, 0)","v":0},{"$f":"IF(VLOOKUP(C35,'Doc Load_Evaluatie 2'!$B$49:$C$386,2,FALSE)=TRUE,Bron!$B$7,Bron!$B$8)","v":"Niet voldaan"}]
[null,null,"MA 1.2","Inventaris van de bestaande netwerken","Verplicht","Voldaan",{"$f":"IF(VLOOKUP(C36,'Doc Load_Evaluatie 2'!$B$49:$C$386,2,FALSE)=TRUE,1, 0)","v":0},{"$f":"IF(VLOOKUP(C36,'Doc Load_Evaluatie 2'!$B$49:$C$386,2,FALSE)=TRUE,Bron!$B$7,Bron!$B$8)","v":"Niet voldaan"}]
[null,null,"MA 1.3","Potentiële synergieën met de omgeving en versterking van de ruimtelijke kwaliteit","Vrij","Beter",{"$f":"IF(VLOOKUP(I37,'Doc Load_Evaluatie 2'!$B$49:$C$724,2,FALSE)=TRUE, 1,IF(VLOOKUP(J37,'Doc Load_Evaluatie 2'!$B$49:$C$724,2,FALSE)=TRUE,1,IF(VLOOKUP(K37,'Doc Load_Evaluatie 2'!$B$49:$C$724,2,FALSE)=TRUE,0,0)))","v":0},{"$f":"IF(VLOOKUP(I37,'Doc Load_Evaluatie 2'!$B$49:$C$724,2,FALSE)=TRUE, Bron!$B$2,IF(VLOOKUP(J37,'Doc Load_Evaluatie 2'!$B$49:$C$724,2,FALSE)=TRUE,Bron!$B$3,IF(VLOOKUP(K37,'Doc Load_Evaluatie 2'!$B$49:$C$724,2,FALSE)=TRUE,Bron!$B$8,\"\")))","v":""},"MA13 uit","MA13 beter","MA13 goed"]
[]
[null,"MA 2","Maatschappelijke kwaliteit - Bodem- en ruimtegebruik"]
[null,null,null,"Bodem- en ruimtegebruik","Vrij ","Voldaan",{"$f":"IF(SUMPRODUCT(-(G41:G45 <> \"\"))=0,0,1)","v":0},{"$f":"IF(G40=1,Bron!$B$7,Bron!$B$8)","v":"Niet voldaan"}]
[null,null,"MA 2.1","Biologische waarde terrein",null,null,{"$f":"IF(VLOOKUP(C41,'Doc Load_Evaluatie 2'!$B$49:$C$386,2,FALSE)=TRUE,\"x\", \"\")","v":""},{"$f":"IF(VLOOKUP(C41,'Doc Load_Evaluatie 2'!$B$49:$C$386,2,FALSE)=TRUE,Bron!$B$7, \"\")","v":""}]
[null,null,"MA 2.2","Bodemgebruik",null,null,{"$f":"IF(VLOOKUP(C42,'Doc Load_Evaluatie 2'!$B$49:$C$386,2,FALSE)=TRUE,\"x\", \"\")","v":""},{"$f":"IF(VLOOKUP(C42,'Doc Load_Evaluatie 2'!$B$49:$C$386,2,FALSE)=TRUE,Bron!$B$7, \"\")","v":""}]
[null,null,"MA 2.3","Brownfield",null,null,{"$f":"IF(VLOOKUP(C43,'Doc Load_Evaluatie 2'!$B$49:$C$386,2,FALSE)=TRUE,\"x\", \"\")","v":""},{"$f":"IF(VLOOKUP(C43,'Doc Load_Evaluatie 2'!$B$49:$C$386,2,FALSE)=TRUE,Bron!$B$7, \"\")","v":""}]
[null,null,"MA 2.4","Gebruik van gesaneerde vervuilde gronden",null,null,{"$f":"IF(VLOOKUP(C44,'Doc Load_Evaluatie 2'!$B$49:$C$386,2,FALSE)=TRUE,\"x\", \"\")","v":""},{"$f":"IF(VLOOKUP(C44,'Doc Load_Evaluatie 2'!$B$49:$C$386,2,FALSE)=TRUE,Bron!$B$7, \"\")","v":""}]
[null,null,"MA 2.5","Hergebruik van de bestaande bouwing",null,null,{"$f":"IF(VLOOKUP(C45,'Doc Load_Evaluatie 2'!$B$49:$C$386,2,FALSE)=TRUE,\"x\", \"\")","v":""},{"$f":"IF(VLOOKUP(C45,'Doc Load_Evaluatie 2'!$B$49:$C$386,2,FALSE)=TRUE,Bron!$B$7, \"\")","v":""}]
[]
[null,"MIL 1","Milieutechnische kwaliteit - Overstromingsrisico",null,null,""]
[null,null,"MIL 1","Overstromingsrisico","Verplicht ","Beter",{"$f":"IF(OR(H48=Bron!B2,'Bijlage3_Evaluatie 2'!H48=Bron!B3),1,0)","v":0},{"$f":"IF(OR(VLOOKUP(L48,'Doc Load_Evaluatie 2'!$B$49:$C$724,2,FALSE)=TRUE,VLOOKUP(I48,'Doc Load_Evaluatie 2'!$B$49:$C$724,2,FALSE)=TRUE), Bron!$B$2,IF(OR(VLOOKUP(M48,'Doc Load_Evaluatie 2'!$B$49:$C$724,2,FALSE)=TRUE,VLOOKUP(J48,'Doc Load_Evaluatie 2'!$B$49:$C$724,2,FALSE)=TRUE),Bron!$B$3,IF(OR(VLOOKUP(K48,'Doc Load_Evaluatie 2'!$B$49:$C$724,2,FALSE)=TRUE,VLOOKUP(N48,'Doc Load_Evaluatie 2'!$B$49:$C$724,2,FALSE)=TRUE),Bron!$B$8,\"Niet ingevuld\")))","v":"Niet ingevuld"},"MIL 1.3 Uitstekend vla","MIL 1.3 Beter vla","MIL 1.3 Goed vla","MIL 1.3 Uitstekend bru","MIL 1.3 Beter bru","MIL 1.3 Goed bru"]
[null,"MIL 2","Milieutechnische kwaliteit - Buitenluchtkwaliteit",null,null,""]
[null,null,"MIL 2","Stikstofconcentratie NO2","Verplicht ","Goed",{"$f":"IF(VLOOKUP(I50,'Doc Load_Evaluatie 2'!$B$49:$C$724,2,FALSE)=TRUE, 1,IF(VLOOKUP(J50,'Doc Load_Evaluatie 2'!$B$49:$C$724,2,FALSE)=TRUE,1,IF(VLOOKUP(K50,'Doc Load_Evaluatie 2'!$B$49:$C$724,2,FALSE)=TRUE,0,0)))","v":0},{"$f":"IF(VLOOKUP(I50,'Doc Load_Evaluatie 2'!$B$49:$C$724,2,FALSE)=TRUE, Bron!$B$2,IF(VLOOKUP(J50,'Doc Load_Evaluatie 2'!$B$49:$C$724,2,FALSE)=TRUE,Bron!$B$3,IF(VLOOKUP(K50,'Doc Load_Evaluatie 2'!$B$49:$C$724,2,FALSE)=TRUE,Bron!$B$4,\"Niet ingevuld\")))","v":"Niet ingevuld"},"MIL 2 Uitstekend","MIL 2 Beter","MIL 2 Goed"]
[null,"MIL 3","Milieutechnische kwaliteit - Buitengeluid",null,null,""]
[null,null,"MIL 3","Geluidsniveau LAeq","Vrij ","Goed",{"$f":"IF(OR(H52=Bron!$B$2,'Bijlage3_Evaluatie 2'!H52=Bron!$B$3,H52=Bron!$B$4),1,0)","v":0},{"$f":"IF(VLOOKUP(I52,'Doc Load_Evaluatie 2'!$B$49:$C$724,2,FALSE)=TRUE, Bron!$B$2,IF(VLOOKUP(J52,'Doc Load_Evaluatie 2'!$B$49:$C$724,2,FALSE)=TRUE,Bron!$B$3,IF(VLOOKUP(K52,'Doc Load_Evaluatie 2'!$B$49:$C$724,2,FALSE)=TRUE,Bron!$B$4,\"\")))","v":""},"MIL 3 Uitstekend","MIL 3 Beter","MIL 3 Goed"]
[]
[null,"SITE",null,"aantal vrije",6,null,{"$f":"G52+G40+G37+G30+G31+G32","v":0}]
[null,null,null,"aantal verplichte",4,null,{"$f":"G35+G36+G48+G50","v":0}]
[null,null,null,null,{"$f":"E54+E55","v":10},null,{"$f":"G55+G54","v":0}]
[]
[null,"DEEL III [A]: GEBOUW - people"]
[]
[null,"BIN 1","Akoestisch comfort"]
[null,null,null,"Akoestiek","Verplicht","Goed",{"$f":"IF(AND(ABS(SUMPRODUCT(-(G62:G68 <> \"\")))>2,G66=\"x\",G67=\"x\"),1,0)","v":0},{"$f":"IF(ABS(SUMPRODUCT(-(G62:G68<>\"\")))=7,\"Uitstekend\",IF(ABS(SUMPRODUCT(-(G62:G68<>\"\")))>4,\"Beter\",IF(ABS(SUMPRODUCT(-(G62:G68<>\"\")))>2,\"Goed\",\"Niet voldaan\")))","v":"Niet voldaan"},"BIN1 uitstekend","BIN1 beter","BIN1 goed"]
[null,null,"BIN 1.1","Luchtgeluidsisolatie",null,"Voldaan",{"$f":"IF(VLOOKUP(C62,'Doc Load_Evaluatie 2'!$B$49:$C$486,2,FALSE)=TRUE,\"x\",\"\")","v":""}]
[null,null,"BIN 1.2","Contactgeluidsisolatie",null,"Voldaan",{"$f":"IF(VLOOKUP(C63,'Doc Load_Evaluatie 2'!$B$49:$C$486,2,FALSE)=TRUE,\"x\",\"\")","v":""}]
[null,null,"BIN 1.3","Gevelgeluidsisolatie",null,"Voldaan",{"$f":"IF(VLOOKUP(C64,'Doc Load_Evaluatie 2'!$B$49:$C$486,2,FALSE)=TRUE,\"x\",\"\")","v":""}]
[null,null,"BIN 1.4","Installatielawaai",null,"Voldaan",{"$f":"IF(VLOOKUP(C65,'Doc Load_Evaluatie 2'!$B$49:$C$486,2,FALSE)=TRUE,\"x\",\"\")","v":""}]
[null,null,"BIN 1.5","Ruimteakoestiek (nagalm)","Verplicht ","Voldaan",{"$f":"IF(VLOOKUP(C66,'Doc Load_Evaluatie 2'!$B$49:$C$486,2,FALSE)=TRUE,\"x\",\"\")","v":""}]
[null,null,"BIN 1.6","Geluiduitstraling naar de omgeving  ","Verplicht ","Voldaan",{"$f":"IF(VLOOKUP(C67,'Doc Load_Evaluatie 2'!$B$49:$C$486,2,FALSE)=TRUE,\"x\",\"\")","v":""}]
[null,null,"BIN 1.7","Buitengeluid in de onmiddellijke omgeving van het gebouw",null,"Voldaan",{"$f":"IF(VLOOKUP(C68,'Doc Load_Evaluatie 2'!$B$49:$C$486,2,FALSE)=TRUE,\"x\",\"\")","v":""}]
[]
[null,"BIN 2","Thermisch comfort",null,null,""]
[null,null,"BIN 2.1","Zomercomfort ","Verplicht",null,{"$f":"IF(OR(G72=\"x\",G75=\"x\"),1,0)","v":0},{"$f":"IF(G71=1,Bron!$B$7,Bron!$B$8)","v":"Niet voldaan"}]
[null,null,"Optie 1","Zomercomfort",null,null,{"$f":"IF(VLOOKUP(I72,'Doc Load_Evaluatie 2'!$B$49:$C$486,2,FALSE)=TRUE,\"x\", \"\")","v":""},{"$f":"IF(VLOOKUP(I72,'Doc Load_Evaluatie 2'!$B$49:$C$386,2,FALSE)=TRUE,Bron!$B$7, \"\")","v":""},"BIN 2.1 opt1"]
[null,null,"A","Zonwering ",null,null,{"$f":"IF(AND(VLOOKUP('Bijlage3_Evaluatie 2'!I73,'Doc Load_Aanvraag'!$B$49:$C$600,2,FALSE)=TRUE,VLOOKUP('Bijlage3_Evaluatie 2'!$J$73,'Doc Load_Aanvraag'!$B$49:$C$600,2,FALSE)=TRUE),\"x\",\"\")","v":""},null,"BIN 2.1 opt1 A1","BIN 2.1 opt1 A2"]
[null,null,"B","Zomercomfort via dynamische simulatie ",null,"Beter",{"$f":"IF(OR(VLOOKUP($I$74,'Doc Load_Evaluatie 2'!$B$49:$C$724,2,FALSE)=TRUE, VLOOKUP($L$74,'Doc Load_Evaluatie 2'!$B$49:$C$724,2,FALSE)=TRUE),\"x\",IF(OR(VLOOKUP('Bijlage3_Evaluatie 2'!$J$74,'Doc Load_Evaluatie 2'!$B$49:$C$724,2,FALSE)=TRUE,VLOOKUP('Bijlage3_Evaluatie 2'!$M$74,'Doc Load_Evaluatie 2'!$B$49:$C$724,2,FALSE)=TRUE),\"x\",IF(OR(VLOOKUP('Bijlage3_Evaluatie 2'!$K$74,'Doc Load_Evaluatie 2'!$B$49:$C$724,2,FALSE)=TRUE,VLOOKUP('Bijlage3_Evaluatie 2'!$K$74,'Doc Load_Evaluatie 2'!$B$49:$C$724,2,FALSE)=TRUE),\"x\",\"\")))","v":""},{"$f":"IF(OR(VLOOKUP($I$74,'Doc Load_Evaluatie 2'!$B$49:$C$724,2,FALSE)=TRUE, VLOOKUP($L$74,'Doc Load_Evaluatie 2'!$B$49:$C$724,2,FALSE)=TRUE),Bron!$B$49,IF(OR(VLOOKUP('Bijlage3_Evaluatie 2'!$J$74,'Doc Load_Evaluatie 2'!$B$49:$C$724,2,FALSE)=TRUE,VLOOKUP('Bijlage3_Evaluatie 2'!$M$74,'Doc Load_Evaluatie 2'!$B$49:$C$724,2,FALSE)=TRUE),Bron!$B$3,IF(OR(VLOOKUP('Bijlage3_Evaluatie 2'!$K$74,'Doc Load_Evaluatie 2'!$B$49:$C$724,2,FALSE)=TRUE,VLOOKUP('Bijlage3_Evaluatie 2'!$K$74,'Doc Load_Evaluatie 2'!$B$49:$C$724,2,FALSE)=TRUE),Bron!$B$8,\"\")))","v":""},"BIN 2.1 opt1 B Uitstekend","BIN 2.1 opt1 B Beter","BIN 2.1 opt1 B Goed","BIN 2.1 actief uitstekend","BIN 2.1 actief beter","BIN 2.1 actief goed"]
[null,null,"Optie 2","Zomercomfort - ontwerprichtlijnen ",null,null,{"$f":"IF(VLOOKUP(I75,'Doc Load_Evaluatie 2'!$B$49:$C$600,2,FALSE)=TRUE,\"x\", \"\")","v":""},"","BIN 2.1 opt2"]
[null,null,"A","Zomercomfort algemeen",null,null,{"$f":"IF(AND(VLOOKUP('Bijlage3_Evaluatie 2'!I76,'Doc Load_Aanvraag'!$B$49:$C$600,2,FALSE)=TRUE,VLOOKUP('Bijlage3_Evaluatie 2'!$J$76,'Doc Load_Aanvraag'!$B$2:$C$600,2,FALSE)=TRUE),\"x\",\"\")","v":""},null,"BIN 2.1 opt2 A1","BIN 2.1 opt2 A2"]
[null,null,"B","Zomercomfort zorg (individuele kamers) ",null,null,{"$f":"IF(VLOOKUP(I77,'Doc Load_Evaluatie 2'!$B$49:$C$600,2,FALSE)=TRUE,\"x\", \"\")","v":""},null,"BIN 2.1 opt2 B"]
[null,null,"BIN 2.2","Lokale thermische behaaglijkheid",""]
[null,null,"A","Verticale temperatuurgradiënt","Vrij ","Beter",{"$f":"IF(VLOOKUP(I79,'Doc Load_Evaluatie 2'!$B$49:$C$724,2,FALSE)=TRUE, 1,IF(VLOOKUP(J79,'Doc Load_Evaluatie 2'!$B$49:$C$724,2,FALSE)=TRUE,1,IF(VLOOKUP(K79,'Doc Load_Evaluatie 2'!$B$49:$C$724,2,FALSE)=TRUE,0,0)))","v":0},{"$f":"IF(VLOOKUP(I79,'Doc Load_Evaluatie 2'!$B$49:$C$724,2,FALSE)=TRUE, Bron!$B$2,IF(VLOOKUP(J79,'Doc Load_Evaluatie 2'!$B$49:$C$724,2,FALSE)=TRUE,Bron!$B$3,IF(VLOOKUP(K79,'Doc Load_Evaluatie 2'!$B$49:$C$724,2,FALSE)=TRUE,Bron!$B$8,\"\")))","v":""},"BIN22 A Uitstekend","BIN22 A beter","BIN22 A goed"]
[null,null,"B","Vloertemperatuur","Vrij ","Beter",{"$f":"IF(VLOOKUP(I80,'Doc Load_Evaluatie 2'!$B$49:$C$724,2,FALSE)=TRUE, 1,IF(VLOOKUP(J80,'Doc Load_Evaluatie 2'!$B$49:$C$724,2,FALSE)=TRUE,1,IF(VLOOKUP(K80,'Doc Load_Evaluatie 2'!$B$49:$C$724,2,FALSE)=TRUE,0,0)))","v":0},{"$f":"IF(VLOOKUP(I80,'Doc Load_Evaluatie 2'!$B$49:$C$724,2,FALSE)=TRUE, Bron!$B$2,IF(VLOOKUP(J80,'Doc Load_Evaluatie 2'!$B$49:$C$724,2,FALSE)=TRUE,Bron!$B$3,IF(VLOOKUP(K80,'Doc Load_Evaluatie 2'!$B$49:$C$724,2,FALSE)=TRUE,Bron!$B$8,\"\")))","v":""},"BIN22 B Uitstekend","BIN22 B beter","BIN22 B goed"]
[null,null,"C","Stralingsasymmetrie","Vrij ","Beter",{"$f":"IF(VLOOKUP(I81,'Doc Load_Evaluatie 2'!$B$49:$C$724,2,FALSE)=TRUE, 1,IF(VLOOKUP(J81,'Doc Load_Evaluatie 2'!$B$49:$C$724,2,FALSE)=TRUE,1,IF(VLOOKUP(K81,'Doc Load_Evaluatie 2'!$B$49:$C$724,2,FALSE)=TRUE,0,0)))","v":0},{"$f":"IF(VLOOKUP(I81,'Doc Load_Evaluatie 2'!$B$49:$C$724,2,FALSE)=TRUE, Bron!$B$2,IF(VLOOKUP(J81,'Doc Load_Evaluatie 2'!$B$49:$C$724,2,FALSE)=TRUE,Bron!$B$3,IF(VLOOKUP(K81,'Doc Load_Evaluatie 2'!$B$49:$C$724,2,FALSE)=TRUE,Bron!$B$8,\"\")))","v":""},"BIN22 C Uitstekend","BIN22 C beter","BIN22 C goed"]
[null,null,"D ","Tocht","Vrij ","Beter",{"$f":"IF(VLOOKUP(I82,'Doc Load_Evaluatie 2'!$B$49:$C$724,2,FALSE)=TRUE, 1,IF(VLOOKUP(J82,'Doc Load_Evaluatie 2'!$B$49:$C$724,2,FALSE)=TRUE,1,IF(VLOOKUP(K82,'Doc Load_Evaluatie 2'!$B$49:$C$724,2,FALSE)=TRUE,0,0)))","v":0},{"$f":"IF(VLOOKUP(I82,'Doc Load_Evaluatie 2'!$B$49:$C$724,2,FALSE)=TRUE, Bron!$B$2,IF(VLOOKUP(J82,'Doc Load_Evaluatie 2'!$B$49:$C$724,2,FALSE)=TRUE,Bron!$B$3,IF(VLOOKUP(K82,'Doc Load_Evaluatie 2'!$B$49:$C$724,2,FALSE)=TRUE,Bron!$B$8,\"\")))","v":""},"BIN22 D Uitstekend","BIN22 D beter","BIN22 D goed"]
[null,null,"BIN 2.3","Relatieve luchtvochtigheid","Vrij ","Beter",{"$f":"IF(VLOOKUP(I83,'Doc Load_Evaluatie 2'!$B$49:$C$724,2,FALSE)=TRUE, 1,IF(VLOOKUP(J83,'Doc Load_Evaluatie 2'!$B$49:$C$724,2,FALSE)=TRUE,1,IF(VLOOKUP(K83,'Doc Load_Evaluatie 2'!$B$49:$C$724,2,FALSE)=TRUE,0,0)))","v":0},{"$f":"IF(VLOOKUP(I83,'Doc Load_Evaluatie 2'!$B$49:$C$724,2,FALSE)=TRUE, Bron!$B$2,IF(VLOOKUP(J83,'Doc Load_Evaluatie 2'!$B$49:$C$724,2,FALSE)=TRUE,Bron!$B$3,IF(VLOOKUP(K83,'Doc Load_Evaluatie 2'!$B$49:$C$724,2,FALSE)=TRUE,Bron!$B$8,\"\")))","v":""},"BIN23 Uitstekend","BIN23 beter","BIN23 goed"]
[]
[null,"BIN 3","Binnenluchtkwaliteit",null,null,""]
[null,null,"BIN 3.1","Klassen van de binnenluchtkwaliteit","Verplicht","Beter",{"$f":"IF(VLOOKUP(I86,'Doc Load_Evaluatie 2'!$B$49:$C$724,2,FALSE)=TRUE, 1,IF(VLOOKUP(J86,'Doc Load_Evaluatie 2'!$B$49:$C$724,2,FALSE)=TRUE,1,IF(VLOOKUP(K86,'Doc Load_Evaluatie 2'!$B$49:$C$724,2,FALSE)=TRUE,0,0)))","v":0},{"$f":"IF(VLOOKUP(I86,'Doc Load_Evaluatie 2'!$B$49:$C$724,2,FALSE)=TRUE, Bron!$B$2,IF(VLOOKUP(J86,'Doc Load_Evaluatie 2'!$B$49:$C$724,2,FALSE)=TRUE,Bron!$B$3,IF(VLOOKUP(K86,'Doc Load_Evaluatie 2'!$B$49:$C$724,2,FALSE)=TRUE,Bron!$B$8,\"Niet ingevuld\")))","v":"Niet ingevuld"},"BIN31 Uitstekend","BIN31 beter","BIN31 goed"]
[null,null,"BIN 3.2","Voorkomen van vervuilings- en verontreinigingsbronnen","Verplicht","Uitstekend ",{"$f":"IF(VLOOKUP($I$87,'Doc Load_Evaluatie 2'!$B$49:$C$724,2,FALSE)=TRUE, 1,IF(VLOOKUP($J$87,'Doc Load_Evaluatie 2'!$B$49:$C$724,2,FALSE)=TRUE,1,IF(VLOOKUP($K$87,'Doc Load_Evaluatie 2'!$B$49:$C$724,2,FALSE)=TRUE,0,0)))","v":0},{"$f":"IF(VLOOKUP($I$87,'Doc Load_Evaluatie 2'!$B$49:$C$724,2,FALSE)=TRUE, Bron!$B$2,IF(VLOOKUP($J$87,'Doc Load_Evaluatie 2'!$B$49:$C$724,2,FALSE)=TRUE,Bron!$B$8,IF(VLOOKUP($K$87,'Doc Load_Evaluatie 2'!$B$49:$C$724,2,FALSE)=TRUE,Bron!$B$8,\"Niet ingevuld\")))","v":"Niet ingevuld"},"BIN 32 Uitstekend","BIN32 beter","BIN32 goed"]
[null,null,"BIN 3.3","Beperken van de emissies van bouwproducten in het binnenmilieu","Vrij","Voldaan ",{"$f":"IF(SUMPRODUCT(-(G89:G91<>\"\"))=0,0,1)","v":0},{"$f":"IF(G88=0,\"\",Bron!$B$7)","v":""}]
[null,null,"Optie 1","Ontwerpen naar een zeer laag emissief gebouw",null,null,{"$f":"IF(VLOOKUP(I89,'Doc Load_Evaluatie 2'!$B$49:$C$600,2,FALSE),\"x\",\"\")","v":""},null,"BIN 3.3 opt1"]
[null,null,"Optie 2","Meting TVOS en formaldehyde",null,null,{"$f":"IF(VLOOKUP($I$90,'Doc Load_Evaluatie 2'!$B$49:$C$600,2,FALSE),\"x\",\"\")","v":""},null,"BIN 3.3 opt2"]
[null,null,"Optie 3","Labels ",null,null,{"$f":"IF(VLOOKUP($I$91,'Doc Load_Evaluatie 2'!$B$49:$C$600,2,FALSE),\"x\",\"\")","v":""},null,"BIN 3.3 opt3"]
[null,null,"BIN 3.4","Openen van ramen","Verplicht ","Voldaan ",{"$f":"IF(VLOOKUP(C92,'Doc Load_Evaluatie 2'!$B$49:$C$386,2,FALSE)=TRUE,1, 0)","v":0},{"$f":"IF(VLOOKUP(C92,'Doc Load_Evaluatie 2'!$B$49:$C$386,2,FALSE)=TRUE,Bron!B7,Bron!B8)","v":"Niet voldaan"}]
[]
[null,"BIN 4","Visueel comfort",null,null,""]
[null,null,"BIN 4.1","Daglichttoetreding ","Verplicht ",null,{"$f":"IF(OR(G96=\"x\",G97=\"x\"),1,0)","v":0},{"$f":"IF(G95=1,Bron!$B$7,Bron!$B$8)","v":"Niet voldaan"}]
[null,null,"Optie 1","Daglichttoetreding ",null,"Uitstekend",{"$f":"IF(VLOOKUP($I$96,'Doc Load_Evaluatie 2'!$B$49:$C$724,2,FALSE)=TRUE, \"x\",IF(VLOOKUP($J$96,'Doc Load_Evaluatie 2'!$B$49:$C$724,2,FALSE)=TRUE,0,IF(VLOOKUP($K$96,'Doc Load_Evaluatie 2'!$B$49:$C$724,2,FALSE)=TRUE,0,\"\")))","v":""},{"$f":"IF(VLOOKUP(I96,'Doc Load_Evaluatie 2'!$B$49:$C$724,2,FALSE)=TRUE, Bron!$B$2,IF(VLOOKUP(J96,'Doc Load_Evaluatie 2'!$B$49:$C$724,2,FALSE)=TRUE,Bron!$B$8,IF(VLOOKUP(K96,'Doc Load_Evaluatie 2'!$B$49:$C$724,2,FALSE)=TRUE,Bron!$B$8,\"\")))","v":""},"BIN41 Uitstekend","BIN41 beter","BIN41 goed"]
[null,null,"Optie 2","Daglichttoetreding - ontwerprichtlijn",null,"Voldaan",{"$f":"IF(VLOOKUP(I97,'Doc Load_Evaluatie 2'!$B$49:$C$386,2,FALSE)=TRUE,\"x\", \"\")","v":""},{"$f":"IF(VLOOKUP(I97,'Doc Load_Evaluatie 2'!$B$49:$C$386,2,FALSE)=TRUE,Bron!B7,\"\")","v":""},"BIN 4.1 opt2"]
[null,null,"BIN 4.2","Verblinding","Vrij ","Beter",{"$f":"IF(OR(H98=Bron!$B$2,H98=Bron!$B$3),1,0)","v":0},{"$f":"IF(VLOOKUP(I98,'Doc Load_Evaluatie 2'!$B$49:$C$724,2,FALSE)=TRUE, Bron!$B$2,IF(VLOOKUP(J98,'Doc Load_Evaluatie 2'!$B$49:$C$724,2,FALSE)=TRUE,Bron!$B$3,IF(VLOOKUP(K98,'Doc Load_Evaluatie 2'!$B$49:$C$724,2,FALSE)=TRUE,Bron!$B$8,\"\")))","v":""},"BIN 4.2 Uitstekend","BIN 4.2 beter","BIN 4.2 goed"]
[null,null,"BIN 4.3","Basiseisen werkplekverlichting ","Vrij ","Voldaan",{"$f":"IF(VLOOKUP(C99,'Doc Load_Evaluatie 2'!$B$49:$C$386,2,FALSE)=TRUE,1, 0)","v":0},{"$f":"IF(VLOOKUP(C99,'Doc Load_Evaluatie 2'!$B$49:$C$386,2,FALSE)=TRUE,Bron!$B$7,\"\")","v":""}]
[null,null,"A","Verlichtingsniveau",null,null,{"$f":"IF(G99=1,\"x\",\"\")","v":""},null,"BIN 4.3 A"]
[null,null,"B","Uniformiteit",null,null,{"$f":"IF(G100=1,\"x\",\"\")","v":""},null,"BIN 4.3 B"]
[null,null,"C","UGR",null,null,"",null,"BIN 4.3 C"]
[null,null,"D","Kleurweergave",null,null,"",null,"BIN 4.3 D"]
[null,null,"BIN 4.4","(Uit)Zicht","Vrij ","Voldaan",{"$f":"IF(VLOOKUP(C104,'Doc Load_Evaluatie 2'!$B$49:$C$386,2,FALSE)=TRUE,1, 0)","v":0},{"$f":"IF(VLOOKUP(C104,'Doc Load_Evaluatie 2'!$B$49:$C$386,2,FALSE)=TRUE,Bron!$B$7,\"\")","v":""}]
[null,null,"BIN 4.5","Zonlichttoetreding","Vrij ","Voldaan",{"$f":"IF(VLOOKUP(C105,'Doc Load_Evaluatie 2'!$B$49:$C$386,2,FALSE)=TRUE,1, 0)","v":0},{"$f":"IF(VLOOKUP(C105,'Doc Load_Evaluatie 2'!$B$49:$C$386,2,FALSE)=TRUE,Bron!$B$7,\"\")","v":""}]
[null,null,"BIN 4.6","Zicht naar buiten bij gesloten zonwering","Vrij ","Voldaan",{"$f":"IF(VLOOKUP(C106,'Doc Load_Evaluatie 2'!$B$49:$C$386,2,FALSE)=TRUE,1, 0)","v":0},{"$f":"IF(VLOOKUP(C106,'Doc Load_Evaluatie 2'!$B$49:$C$386,2,FALSE)=TRUE,Bron!$B$7,\"\")","v":""}]
[null,null,"BIN 4.7","Aanvullende maatregelen voor goed visueel comfort","Vrij ","Voldaan",{"$f":"IF(SUMPRODUCT(-(G108:G110<>\"\"))=0,0,1)","v":0},{"$f":"IF('Bijlage3_Evaluatie 2'!G107=1,Bron!$B$7,\"\")","v":""}]
[null,null,"A","Betere kleurweergave kunstlicht",null,null,{"$f":"IF(VLOOKUP(I108,'Doc Load_Evaluatie 2'!$B$49:$C$600,2,FALSE),\"x\",\"\")","v":""},null,"BIN 4.7 A"]
[null,null,"B","Kleurtemperatuur kunstlicht",null,null,{"$f":"IF(VLOOKUP(I109,'Doc Load_Evaluatie 2'!$B$49:$C$600,2,FALSE),\"x\",\"\")","v":""},null,"BIN 4.7 B"]
[null,null,"C","Glaskwaliteit i.f.v. kleurweergave",null,null,{"$f":"IF(VLOOKUP(I110,'Doc Load_Evaluatie 2'!$B$49:$C$600,2,FALSE),\"x\",\"\")","v":""},null,"BIN 4.7 C"]
[null,null,"BIN 4.8","Visueel contact met de buitenomgeving en daglichttoetreding",null,null,{"$f":"IF(G112=1,1,0)","v":0},{"$f":"IF(G111=1,Bron!$B$7,\"\")","v":""}]
[null,null,"A","Ongehinderd visueel contact - verblijfsruimten","Verplicht ","Voldaan ",{"$f":"IF(VLOOKUP(I112,'Doc Load_Evaluatie 2'!$B$49:$C$386,2,FALSE)=TRUE,1, 0)","v":0},{"$f":"IF(VLOOKUP(I112,'Doc Load_Evaluatie 2'!$B$49:$C$386,2,FALSE)=TRUE,Bron!$B$7,\"Niet voldaan\")","v":"Niet voldaan"},"BIN 4.8 A"]
[null,null,"B","Visueel contact - personeelsruimten","Vrij ","Voldaan",{"$f":"IF(VLOOKUP(I113,'Doc Load_Evaluatie 2'!$B$49:$C$386,2,FALSE)=TRUE,1, 0)","v":0},{"$f":"IF(VLOOKUP(I113,'Doc Load_Evaluatie 2'!$B$49:$C$386,2,FALSE)=TRUE,Bron!$B$7,\"\")","v":""},"BIN 4.8 B"]
[null,null,"C","Daglicht (secundaire ruimten)","Vrij ","Voldaan",{"$f":"IF(VLOOKUP(I114,'Doc Load_Evaluatie 2'!$B$49:$C$386,2,FALSE)=TRUE,1, 0)","v":0},{"$f":"IF(VLOOKUP(I114,'Doc Load_Evaluatie 2'!$B$49:$C$386,2,FALSE)=TRUE,Bron!$B$7,\"\")","v":""},"BIN 4.8 C"]
[]
[null,"SOC 3","Integrale toegankelijkheid"]
[null,null,"SOC 3.1","Advies toegankelijkheid ","Vrij*",null,{"$f":"IF(VLOOKUP(C117,'Doc Load_Evaluatie 2'!$B$49:$C$386,2,FALSE)=TRUE,1, 0)","v":0},{"$f":"IF(VLOOKUP(C117,'Doc Load_Evaluatie 2'!$B$49:$C$386,2,FALSE)=TRUE,Bron!$B$7,\"\")","v":""}]
[null,null,"SOC 3.2","Graad van integrale toegankelijkheid: checklist","Vrij","Uitstekend ",{"$f":"IF(H118=Bron!$B$2,1,0)","v":0},{"$f":"IF(VLOOKUP(I118,'Doc Load_Evaluatie 2'!$B$49:$C$724,2,FALSE)=TRUE, Bron!$B$2,IF(VLOOKUP(J118,'Doc Load_Evaluatie 2'!$B$49:$C$724,2,FALSE)=TRUE,Bron!$B$8,IF(VLOOKUP(K118,'Doc Load_Evaluatie 2'!$B$49:$C$724,2,FALSE)=TRUE,Bron!$B$8,\"\")))","v":""},"SOC32 Uitstekend","SOC32 beter","SOC32 goed"]
[null,null,"SOC 3.3","Begeleidingstraject met een onafhankelijk toegankelijkheidsadviseur","Vrij","Voldaan",{"$f":"IF(VLOOKUP(C119,'Doc Load_Evaluatie 2'!$B$49:$C$386,2,FALSE)=TRUE,1, 0)","v":0},{"$f":"IF(VLOOKUP(C119,'Doc Load_Evaluatie 2'!$B$49:$C$386,2,FALSE)=TRUE,Bron!$B$7,\"\")","v":""}]
[null,null,"SOC 3.4","Label toegankelijk kantoorgebouw A+ of A++","Vrij","Voldaan",{"$f":"IF(VLOOKUP(C120,'Doc Load_Evaluatie 2'!$B$49:$C$386,2,FALSE)=TRUE,1, 0)","v":0},{"$f":"IF(VLOOKUP(C120,'Doc Load_Evaluatie 2'!$B$49:$C$386,2,FALSE)=TRUE,Bron!$B$7,\"\")","v":""}]
[null,null,null,null,null,null,"* let op: dit kan wel verplicht zijn in het kader van een andere VIPA regelgeving"]
[null,"GEB 1","Invloed van de gebruiker"]
[null,null,"GEB 1.1","Invloedmogelijkheden","Verplicht ","Beter",{"$f":"IF(ABS(SUMPRODUCT(-(G124:G130<>\"\")))>4,1,0)","v":0},{"$f":"IF(ABS(SUMPRODUCT(-(G124:G130<>\"\")))=7,\"Uitstekend\",IF(ABS(SUMPRODUCT(-(G124:G130<>\"\")))>4,\"Beter\",IF(ABS(SUMPRODUCT(-(G124:G130<>\"\")))>2,\"Goed\",\"Niet voldaan\")))","v":"Niet voldaan"},"GEB11 Uitstekend","GEB11 beter","GEB11 goed"]
[null,null,"A","Zonwering",null,null,{"$f":"IF(OR(VLOOKUP(I124,'Doc Load_Evaluatie 2'!$B$49:$C$600,2,FALSE)=TRUE,VLOOKUP(J124,'Doc Load_Evaluatie 2'!$B$49:$C$600,2,FALSE)=TRUE),\"x\",\"\")","v":""},null,"Zonwering A","Zonwering B"]
[null,null,"B","Verblinding",null,null,{"$f":"IF(OR(VLOOKUP(I125,'Doc Load_Evaluatie 2'!$B$49:$C$600,2,FALSE)=TRUE,VLOOKUP(J125,'Doc Load_Evaluatie 2'!$B$49:$C$600,2,FALSE)=TRUE),\"x\",\"\")","v":""},null,"Verblinding A","Verblinding B"]
[null,null,"C","Temperatuur winter",null,null,{"$f":"IF(OR(VLOOKUP(I126,'Doc Load_Evaluatie 2'!$B$49:$C$600,2,FALSE)=TRUE,VLOOKUP(J126,'Doc Load_Evaluatie 2'!$B$49:$C$600,2,FALSE)=TRUE),\"x\",\"\")","v":""},null,"Temp a","Temp B","Temp C"]
[null,null,"D","Temperatuur zomer",null,null,{"$f":"IF(VLOOKUP(K126,'Doc Load_Evaluatie 2'!$B$49:$C$600,2,FALSE)=TRUE,\"x\",\"\")","v":""}]
[null,null,"E","Algemene verlichting - regeling per ruimte of zone",null,null,{"$f":"IF(OR(VLOOKUP(I128,'Doc Load_Evaluatie 2'!$B$49:$C$600,2,FALSE)=TRUE,VLOOKUP(J128,'Doc Load_Evaluatie 2'!$B$49:$C$600,2,FALSE)=TRUE),\"x\",\"\")","v":""},null,"Verlichting A","Verlichting B","Verlichting C"]
[null,null,"F","Individuele verlichting - individuele regeling werkplek",null,null,{"$f":"IF(VLOOKUP(K128,'Doc Load_Evaluatie 2'!$B$49:$C$600,2,FALSE)=TRUE,\"x\",\"\")","v":""}]
[null,null,"G","Ventilatie",null,null,{"$f":"IF(OR(VLOOKUP(I130,'Doc Load_Evaluatie 2'!$B$49:$C$600,2,FALSE)=TRUE,VLOOKUP(J130,'Doc Load_Evaluatie 2'!$B$49:$C$600,2,FALSE)=TRUE),\"x\",\"\")","v":""},null,"Ventilatie A","Ventilatie B"]
[null,null,"GEB 1.2","Innovatieve oplossingen","Vrij","Voldaan",{"$f":"IF(VLOOKUP(C131,'Doc Load_Evaluatie 2'!$B$49:$C$386,2,FALSE)=TRUE,1, 0)","v":0},{"$f":"IF(VLOOKUP(C131,'Doc Load_Evaluatie 2'!$B$49:$C$600,2,FALSE)=TRUE,Bron!$B$7,\"\")","v":""}]
[]
[null,"PEOPLE",null,"aantal vrije criteria",19,null,{"$f":"G131+G120+G119+G118+G114+G113+G107+G106+G105+G104+G99+G98+G83+G82+G81+G79+G80+G117+G88","v":0}]
[null,null,null,"aantal verplichte criteria",8,null,{"$f":"G123+G112+G95+G92+G87+G86+G71+G61","v":0}]
[null,null,null,null,{"$f":"E133+E134","v":27},null,{"$f":"SUM(G133:G134)","v":0}]
[]
[null,"DEEL III [B]: GEBOUW - planet"]
[]
[null,"ENE 1","Energieprestatie",null,null,""]
[null,null,"ENE 1.1","Energieprestatie","Verplicht","Goed*",{"$f":"IF(OR(H140=Bron!$B$2,H140=Bron!$B$3,H140=Bron!$B$4),1,0)","v":0},{"$f":"IF(VLOOKUP(I141,'Doc Load_Evaluatie 2'!$B$49:$C$724,2,FALSE)=TRUE, Bron!$B$2,IF(VLOOKUP(J141,'Doc Load_Evaluatie 2'!$B$49:$C$724,2,FALSE)=TRUE,Bron!$B$3,IF(VLOOKUP(K141,'Doc Load_Evaluatie 2'!$B$49:$C$724,2,FALSE)=TRUE,Bron!$B$4,IF(VLOOKUP(I142,'Doc Load_Evaluatie 2'!$B$49:$C$724,2,FALSE)=TRUE, Bron!$B$2,IF(VLOOKUP(J142,'Doc Load_Evaluatie 2'!$B$49:$C$724,2,FALSE)=TRUE,Bron!$B$3,IF(VLOOKUP(K142,'Doc Load_Evaluatie 2'!$B$49:$C$724,2,FALSE)=TRUE,Bron!$B$4,IF(VLOOKUP(I143,'Doc Load_Evaluatie 2'!$B$49:$C$724,2,FALSE)=TRUE, Bron!$B$2,IF(VLOOKUP(J143,'Doc Load_Evaluatie 2'!$B$49:$C$724,2,FALSE)=TRUE,Bron!$B$3,IF(VLOOKUP(K143,'Doc Load_Evaluatie 2'!$B$49:$C$724,2,FALSE)=TRUE,Bron!$B$4,IF(VLOOKUP(I140,'Doc Load_Evaluatie 2'!$B$49:$C$724,2,FALSE)=TRUE, Bron!$B$2,IF(VLOOKUP(J140,'Doc Load_Evaluatie 2'!$B$49:$C$724,2,FALSE)=TRUE,Bron!$B$3,IF(VLOOKUP(K140,'Doc Load_Evaluatie 2'!$B$49:$C$724,2,FALSE)=TRUE,Bron!$B$4,\"Niet ingevuld\"))))))))))))","v":"Niet ingevuld"},"ENE11 nieuw Uitstekend","ENE11 nieuw beter","ENE11 nieuw goed"]
[null,null,"ENE 1.2","Koeling","Verplicht","Voldaan",{"$f":"IF(VLOOKUP(C141,'Doc Load_Evaluatie 2'!$B$49:$C$386,2,FALSE)=TRUE,1, 0)","v":0},{"$f":"IF(VLOOKUP(C141,'Doc Load_Evaluatie 2'!$B$49:$C$600,2,FALSE)=TRUE,Bron!$B$7,Bron!$B$8)","v":"Niet voldaan"},"ENE11 ier Uitstekend","ENE11 ier beter","ENE11 ier goed"]
[null,null,"ENE 1.3","Luchtdichtheidsproef","Vrij","Voldaan",{"$f":"IF(VLOOKUP(C142,'Doc Load_Evaluatie 2'!$B$49:$C$386,2,FALSE)=TRUE,1, 0)","v":0},{"$f":"IF(VLOOKUP(C142,'Doc Load_Evaluatie 2'!$B$49:$C$600,2,FALSE)=TRUE,Bron!$B$7,\"\")","v":""},"ENE11 verb Uitstekend","ENE11 verb beter","ENE11 verb goed"]
[null,null,null,null,null,null,"* Voor residentiële gebouwen (EPW) conform EPB",null,"ENE11 nieuw BR Uitstekend","ENE11 nieuw BR beter","ENE11 nieuw BR goed"]
[null,"ENE 2","Hernieuwbare energie",null,null,""]
[null,null,"ENE 2.1","Haalbaarheid hernieuwbare energieën","Verplicht","Voldaan",{"$f":"IF(VLOOKUP(C145,'Doc Load_Evaluatie 2'!$B$49:$C$386,2,FALSE)=TRUE,1, 0)","v":0},{"$f":"IF(VLOOKUP(C145,'Doc Load_Evaluatie 2'!$B$49:$C$600,2,FALSE)=TRUE,Bron!$B$7,Bron!$B$8)","v":"Niet voldaan"}]
[null,null,"ENE 2.2","Aandeel primair energieverbruik hernieuwbaar","Verplicht","Uitstekend",{"$f":"IF(H146=Bron!$B$2,1,0)","v":0},{"$f":"IF(VLOOKUP(I146,'Doc Load_Evaluatie 2'!$B$49:$C$724,2,FALSE)=TRUE, Bron!$B$2,IF(VLOOKUP(J146,'Doc Load_Evaluatie 2'!$B$49:$C$724,2,FALSE)=TRUE,Bron!$B$8,IF(VLOOKUP(K146,'Doc Load_Evaluatie 2'!$B$49:$C$724,2,FALSE)=TRUE,Bron!$B$8,\"Niet ingevuld\")))","v":"Niet ingevuld"},"ENE22 Uitstekend","ENE22 beter","ENE22 goed"]
[null,null,"ENE 2.3","Aandeel primair energieverbruik hernieuwbaar > 35% ","Vrij","Voldaan",{"$f":"IF(VLOOKUP(C147,'Doc Load_Evaluatie 2'!$B$49:$C$686,2,FALSE)=TRUE,1, 0)","v":0},{"$f":"IF(VLOOKUP(C147,'Doc Load_Evaluatie 2'!$B$49:$C$600,2,FALSE)=TRUE,Bron!$B$7,\"\")","v":""}]
[null,null,"ENE 2.4","Aandeel primair energieverbruik hernieuwbaar > 50%","Vrij","Voldaan",{"$f":"IF(VLOOKUP(C148,'Doc Load_Evaluatie 2'!$B$49:$C$686,2,FALSE)=TRUE,1, 0)","v":0},{"$f":"IF(VLOOKUP(C148,'Doc Load_Evaluatie 2'!$B$49:$C$600,2,FALSE)=TRUE,Bron!$B$7,\"\")","v":""}]
[null,null,"ENE 2.5","Aandeel primair energieverbruik hernieuwbaar > 75%","Vrij","Voldaan",{"$f":"IF(VLOOKUP(C149,'Doc Load_Evaluatie 2'!$B$49:$C$686,2,FALSE)=TRUE,1, 0)","v":0},{"$f":"IF(VLOOKUP(C149,'Doc Load_Evaluatie 2'!$B$49:$C$600,2,FALSE)=TRUE,Bron!$B$7,\"\")","v":""}]
[]
[null,"ENE 3","Energiezuinige installaties en toestellen"]
[null,null,"ENE 3.1","Buitenverlichting","Verplicht","Voldaan",{"$f":"IF(VLOOKUP(C152,'Doc Load_Evaluatie 2'!$B$49:$C$600,2,FALSE)=TRUE,1, 0)","v":0},{"$f":"IF(VLOOKUP(C152,'Doc Load_Evaluatie 2'!$B$49:$C$600,2,FALSE)=TRUE,Bron!$B$7,Bron!$B$8)","v":"Niet voldaan"}]
[null,null,"ENE 3.2","Binnenverlichting","Verplicht","Voldaan",{"$f":"IF(VLOOKUP(C153,'Doc Load_Evaluatie 2'!$B$49:$C$600,2,FALSE)=TRUE,1, 0)","v":0},{"$f":"IF(VLOOKUP(C153,'Doc Load_Evaluatie 2'!$B$49:$C$600,2,FALSE)=TRUE,Bron!$B$7,Bron!$B$8)","v":"Niet voldaan"}]
[null,null,"ENE 3.3","Elektrische huishoudelijke toestellen","Verplicht","Voldaan",{"$f":"IF(VLOOKUP(C154,'Doc Load_Evaluatie 2'!$B$49:$C$600,2,FALSE)=TRUE,1, 0)","v":0},{"$f":"IF(VLOOKUP(C154,'Doc Load_Evaluatie 2'!$B$49:$C$600,2,FALSE)=TRUE,Bron!$B$7,Bron!$B$8)","v":"Niet voldaan"}]
[null,null,"ENE 3.4","Liften","Verplicht","Voldaan",{"$f":"IF(VLOOKUP(C155,'Doc Load_Evaluatie 2'!$B$49:$C$600,2,FALSE)=TRUE,1, 0)","v":0},{"$f":"IF(VLOOKUP(C155,'Doc Load_Evaluatie 2'!$B$49:$C$600,2,FALSE)=TRUE,Bron!$B$7,Bron!$B$8)","v":"Niet voldaan"}]
[null,null,"ENE 3.5","Verwarmingstoestellen en warmwaterbereiders","Verplicht","Voldaan",{"$f":"IF(VLOOKUP(C156,'Doc Load_Evaluatie 2'!$B$49:$C$600,2,FALSE)=TRUE,1, 0)","v":0},{"$f":"IF(VLOOKUP(C156,'Doc Load_Evaluatie 2'!$B$49:$C$600,2,FALSE)=TRUE,Bron!$B$7,Bron!$B$8)","v":"Niet voldaan"}]
[null,null,"ENE 3.6","Automatische regeling - niet-verblijfsruimten","Verplicht","Voldaan",{"$f":"IF(VLOOKUP(C157,'Doc Load_Evaluatie 2'!$B$49:$C$600,2,FALSE)=TRUE,1, 0)","v":0},{"$f":"IF(VLOOKUP(C157,'Doc Load_Evaluatie 2'!$B$49:$C$600,2,FALSE)=TRUE,Bron!$B$7,Bron!$B$8)","v":"Niet voldaan"}]
[null,null,"ENE 3.7","Automatische regeling – andere ruimten","Vrij","Voldaan",{"$f":"IF(VLOOKUP(C158,'Doc Load_Evaluatie 2'!$B$49:$C$600,2,FALSE)=TRUE,1, 0)","v":0},{"$f":"IF(VLOOKUP(C158,'Doc Load_Evaluatie 2'!$B$49:$C$600,2,FALSE)=TRUE,Bron!$B$7,\"\")","v":""}]
[null,null,"ENE 3.8","Energie-efficiëntie niet-huishoudelijke toestellen ","Verplicht ","Voldaan",{"$f":"IF(VLOOKUP(C159,'Doc Load_Evaluatie 2'!$B$49:$C$600,2,FALSE)=TRUE,1, 0)","v":0},{"$f":"IF(VLOOKUP(C159,'Doc Load_Evaluatie 2'!$B$49:$C$600,2,FALSE)=TRUE,Bron!$B$7,Bron!$B$8)","v":"Niet voldaan"}]
[]
[null,"MAT 2","Materiaalkeuze"]
[null,null,"MAT 2.1","TOTEM-analyse","Vrij","Voldaan ",{"$f":"IF(VLOOKUP(C162,'Doc Load_Evaluatie 2'!$B$49:$C$600,2,FALSE)=TRUE,1, 0)","v":0},{"$f":"IF(VLOOKUP(C162,'Doc Load_Evaluatie 2'!$B$49:$C$600,2,FALSE)=TRUE,Bron!$B$7,\"\")","v":""}]
[null,null,"MAT 2.2","Hout uit duurzaam bosbeheer","Verplicht","Uitstekend",{"$f":"IF(H163=Bron!$B$2,1,0)","v":0},{"$f":"IF(VLOOKUP(I163,'Doc Load_Evaluatie 2'!$B$49:$C$724,2,FALSE)=TRUE, Bron!$B$2,IF(VLOOKUP(J163,'Doc Load_Evaluatie 2'!$B$49:$C$724,2,FALSE)=TRUE,Bron!$B$8,IF(VLOOKUP(K163,'Doc Load_Evaluatie 2'!$B$49:$C$724,2,FALSE)=TRUE,Bron!$B$8,\"Niet ingevuld\")))","v":"Niet ingevuld"},"MAT22 Uitstekend","MAT22 beter","MAT22 goed"]
[]
[null,"WAT 1","Waterverbruik beperken"]
[null,null,null,"Waterverbruik beperken","Verplicht ","Beter",{"$f":"IF(ABS(SUMPRODUCT(-(G167:G169<>\"\")))>1,1,0)","v":0},{"$f":"IF(ABS(SUMPRODUCT(-(G167:G169<>\"\")))=3,\"Uitstekend\",IF(ABS(SUMPRODUCT(-(G167:G169<>\"\")))>1,\"Beter\",IF(ABS(SUMPRODUCT(-(G167:G169<>\"\")))>0,\"Goed\",\"Niet voldaan\")))","v":"Niet voldaan"},"WAT 1 Uitstekend","WAT 1 beter","WAT 1 goed"]
[null,null,"WAT 1.1","Waterbesparende toestellen en kraanwerk",null,null,{"$f":"IF(VLOOKUP(C167,'Doc Load_Evaluatie 2'!$B$49:$C$724,2,FALSE)=TRUE,\"x\",\"\")","v":""}]
[null,null,"WAT 1.2","Watermeter",null,null,{"$f":"IF(VLOOKUP(C168,'Doc Load_Evaluatie 2'!$B$49:$C$724,2,FALSE)=TRUE,\"x\",\"\")","v":""}]
[null,null,"WAT 1.3","Ontwerp waterdistributie",null,null,{"$f":"IF(VLOOKUP(C169,'Doc Load_Evaluatie 2'!$B$49:$C$724,2,FALSE)=TRUE,\"x\",\"\")","v":""}]
[]
[null,"WAT 2","Hergebruik van water"]
[null,null,"WAT 2.1","Dekkingsgraad door waterhergebruik","Verplicht","Goed",{"$f":"IF(OR(H172=Bron!$B$2,H172=Bron!$B$3,H172=Bron!$B$4),1,0)","v":0},{"$f":"IF(VLOOKUP(I172,'Doc Load_Evaluatie 2'!$B$49:$C$724,2,FALSE)=TRUE, Bron!$B$2,IF(VLOOKUP(J172,'Doc Load_Evaluatie 2'!$B$49:$C$724,2,FALSE)=TRUE,Bron!$B$3,IF(VLOOKUP(K172,'Doc Load_Evaluatie 2'!$B$49:$C$724,2,FALSE)=TRUE,Bron!$B$4,\"Niet ingevuld\")))","v":"Niet ingevuld"},"WAT 2.1 Uitstekend","WAT 2.1 beter","WAT 2.1 goed"]
[null,null,"WAT 2.2","Effectief benut potentieel","Vrij","Goed",{"$f":"IF(OR(H173=Bron!$B$2,H173=Bron!$B$3,H173=Bron!$B$4),1,0)","v":0},{"$f":"IF(VLOOKUP(I173,'Doc Load_Evaluatie 2'!$B$49:$C$724,2,FALSE)=TRUE, Bron!$B$2,IF(VLOOKUP(J173,'Doc Load_Evaluatie 2'!$B$49:$C$724,2,FALSE)=TRUE,Bron!$B$3,IF(VLOOKUP(K173,'Doc Load_Evaluatie 2'!$B$49:$C$724,2,FALSE)=TRUE,Bron!$B$4,\"\")))","v":""},"WAT 2.2 Uitstekend","WAT 2.2 beter","WAT 2.2 goed"]
[null,null,"WAT 2.3","Optimale afstemming van de beschikbare waterkwaliteit aan de benodigde waterkwaliteit ","Vrij","Voldaan ",{"$f":"IF(VLOOKUP(C174,'Doc Load_Evaluatie 2'!$B$49:$C$600,2,FALSE)=TRUE,1, 0)","v":0},{"$f":"IF(VLOOKUP(C174,'Doc Load_Evaluatie 2'!$B$49:$C$600,2,FALSE)=TRUE,Bron!$B$7,\"\")","v":""}]
[]
[null,"WAT 3","Afvoer van water"]
[null,null,"WAT 3.1","Lekdebiet naar riolering","Vrij","Goed",{"$f":"IF(OR(H177=Bron!$B$2,H177=Bron!$B$3,H177=Bron!$B$4),1,0)","v":0},{"$f":"IF(VLOOKUP(I177,'Doc Load_Evaluatie 2'!$B$49:$C$724,2,FALSE)=TRUE, Bron!$B$2,IF(VLOOKUP(J177,'Doc Load_Evaluatie 2'!$B$49:$C$724,2,FALSE)=TRUE,Bron!$B$3,IF(VLOOKUP(K177,'Doc Load_Evaluatie 2'!$B$49:$C$724,2,FALSE)=TRUE,Bron!$B$4,\"\")))","v":""},"WAT 3.1 Uitstekend","WAT 3.1 beter","WAT 3.1 goed"]
[null,null,"WAT 3.2","Ledigingstijd infiltratievoorziening","Vrij","Goed",{"$f":"IF(OR(H178=Bron!$B$2,H178=Bron!$B$3,H178=Bron!$B$4),1,0)","v":0},{"$f":"IF(VLOOKUP(I178,'Doc Load_Evaluatie 2'!$B$49:$C$724,2,FALSE)=TRUE, Bron!$B$2,IF(VLOOKUP(J178,'Doc Load_Evaluatie 2'!$B$49:$C$724,2,FALSE)=TRUE,Bron!$B$3,IF(VLOOKUP(K178,'Doc Load_Evaluatie 2'!$B$49:$C$724,2,FALSE)=TRUE,Bron!$B$4,\"\")))","v":""},"WAT 3.2 Uitstekend","WAT 3.2 beter","WAT 3.2 goed"]
[null,null,"WAT 3.3","Vermijden van vervuiling van water","Vrij","Voldaan",{"$f":"IF(VLOOKUP(C179,'Doc Load_Evaluatie 2'!$B$49:$C$600,2,FALSE)=TRUE,1, 0)","v":0},{"$f":"IF(VLOOKUP(C179,'Doc Load_Evaluatie 2'!$B$49:$C$600,2,FALSE)=TRUE,Bron!$B$7,\"\")","v":""}]
[]
[null,"OMG 1","Biodiversiteit",null,null,""]
[null,null,"OMG 1.1","Opmaak inrichtings- en beheersplan","Vrij","Voldaan",{"$f":"IF(VLOOKUP(C182,'Doc Load_Evaluatie 2'!$B$49:$C$600,2,FALSE)=TRUE,1, 0)","v":0},{"$f":"IF(VLOOKUP(C182,'Doc Load_Evaluatie 2'!$B$49:$C$600,2,FALSE)=TRUE,Bron!$B$7,\"\")","v":""}]
[null,null,"OMG 1.2","Verbetering BAF+ indicator","Vrij","Voldaan",{"$f":"IF(VLOOKUP(C183,'Doc Load_Evaluatie 2'!$B$49:$C$600,2,FALSE)=TRUE,1, 0)","v":0},{"$f":"IF(VLOOKUP(C183,'Doc Load_Evaluatie 2'!$B$49:$C$600,2,FALSE)=TRUE,Bron!$B$7,\"\")","v":""}]
[null,null,"OMG 1.3","Buitenruimte ","Verplicht","Voldaan ",{"$f":"IF(VLOOKUP(C184,'Doc Load_Evaluatie 2'!$B$49:$C$600,2,FALSE)=TRUE,1, 0)","v":0},{"$f":"IF(VLOOKUP(C184,'Doc Load_Evaluatie 2'!$B$49:$C$600,2,FALSE)=TRUE,Bron!$B$7,Bron!$B$8)","v":"Niet voldaan"}]
[]
[null,"OMG 2","Impact op de omgeving",null,null,""]
[null,null,"OMG 2.1","Lichtpollutie","Vrij","Beter",{"$f":"IF(ABS(SUMPRODUCT(-(G189:G191<>\"\")))>1,1,0)","v":0},{"$f":"IF(ABS(SUMPRODUCT(-(G189:G191<>\"\")))=3,\"Uitstekend\",IF(ABS(SUMPRODUCT(-(G189:G191<>\"\")))>1,\"Beter\",IF(ABS(SUMPRODUCT(-(G189:G191<>\"\")))>0,\"Goed\",\"\")))","v":""},"OMG 2.1 Uitstekend","OMG 2.1 beter","OMG 2.1 goed"]
[null,null,"A","Bepaling gebiedstype",null,null,null,null,"OMG 2.1 A"]
[null,null,"B","Beperken van hemelgloed",null,null,null,null,"OMG 2.1 B"]
[null,null,"C","Beperken van licht op naburige eigendommen",null,null,null,null,"OMG 2.1 C"]
[null,null,"D","Lichtbeheersysteem",null,null,null,null,"OMG 2.1 D"]
[null,null,"OMG 2.2","Beschaduwing van de directe omgeving","Vrij","Goed",{"$f":"IF(OR(H192=Bron!$B$2,H192=Bron!$B$3,H192=Bron!$B$4),1,0)","v":0},{"$f":"IF(VLOOKUP(I192,'Doc Load_Evaluatie 2'!$B$49:$C$724,2,FALSE)=TRUE, Bron!$B$2,IF(VLOOKUP(J192,'Doc Load_Evaluatie 2'!$B$49:$C$724,2,FALSE)=TRUE,Bron!$B$3,IF(VLOOKUP(K192,'Doc Load_Evaluatie 2'!$B$49:$C$724,2,FALSE)=TRUE,Bron!$B$4,\"\")))","v":""},"OMG 2.2 Uitstekend","OMG 2.2 Beter","OMG 2.2 Goed"]
[null,null,"OMG 2.3","Windhinder","Vrij","Goed",{"$f":"IF(OR(H193=Bron!$B$2,H193=Bron!$B$3,H193=Bron!$B$4),1,0)","v":0},{"$f":"IF(VLOOKUP(I193,'Doc Load_Evaluatie 2'!$B$49:$C$724,2,FALSE)=TRUE, Bron!$B$2,IF(VLOOKUP(J193,'Doc Load_Evaluatie 2'!$B$49:$C$724,2,FALSE)=TRUE,Bron!$B$3,IF(VLOOKUP(K193,'Doc Load_Evaluatie 2'!$B$49:$C$724,2,FALSE)=TRUE,Bron!$B$4,\"\")))","v":""},"OMG 2.3 Uitstekend","OMG 2.3 Beter","OMG 2.3 Goed"]
[null,null,"OMG 2.4","Hitte-eilandeffect","Vrij","Goed",{"$f":"IF(OR(H194=Bron!$B$2,H194=Bron!$B$3,H194=Bron!$B$4),1,0)","v":0},{"$f":"IF(VLOOKUP(I194,'Doc Load_Evaluatie 2'!$B$49:$C$724,2,FALSE)=TRUE, Bron!$B$2,IF(VLOOKUP(J194,'Doc Load_Evaluatie 2'!$B$49:$C$724,2,FALSE)=TRUE,Bron!$B$3,IF(VLOOKUP(K194,'Doc Load_Evaluatie 2'!$B$49:$C$724,2,FALSE)=TRUE,Bron!$B$4,\"\")))","v":""},"OMG 2.4 Uitstekend","OMG 2.4 Beter","OMG 2.4 Goed"]
[]
[null,"PLANET",null,"aantal vrije criteria",{"$f":"COUNTIFS(E187:E194,\"Vrij\")+COUNTIFS(E177:E179,\"Vrij\")+COUNTIFS(E172:E174,\"Vrij\")+COUNTIFS(E166:E169,\"Vrij\")+COUNTIFS(E162:E163,\"Vrij\")+COUNTIFS(E152:E159,\"Vrij\")+COUNTIFS(E140:E142,\"Vrij\")+COUNTIFS(E145:E149,\"Vrij\")+COUNTIFS(E182:E184,\"Vrij\")","v":17},null,{"$f":"G194+G193+G192+G183+G182+G179+G178+G177+G174+G173+G162+G158+G149+G148+G147+G142+G187","v":0}]
[null,null,null,"aantal verplichte criteria",{"$f":"E198-E196","v":15},null,{"$f":"G184+G172+G166+G163+G159+G157+G156+G155+G154+G153+G152+G146+G145+G141+G140","v":0}]
[null,null,null,"totaal",32,null,{"$f":"SUM(G196:G197)","v":0}]
[]
[null,"DEEL III [C]: GEBOUW - profit"]
[]
[null,"LCC 3","Energieverbruik"]
[null,null,"LCC 3.1","Rekenblad LCC3","Vrij","Voldaan ",{"$f":"IF(VLOOKUP(C203,'Doc Load_Evaluatie 2'!$B$49:$C$600,2,FALSE)=TRUE,1, 0)","v":0},{"$f":"IF(VLOOKUP(C203,'Doc Load_Evaluatie 2'!$B$49:$C$600,2,FALSE)=TRUE,Bron!$B$7,Bron!$B$8)","v":"Niet voldaan"}]
[]
[null,"TOE 1","Circulair en toekomstgericht ontwerpen",null,null,""]
[null,null,"TOE 1.1","Checklist toekomstgericht ontwerpen","Vrij","Goed",{"$f":"IF(OR(H206=Bron!$B$2,H206=Bron!$B$3,H206=Bron!$B$4),1,0)","v":0},{"$f":"IF(VLOOKUP(I206,'Doc Load_Evaluatie 2'!$B$49:$C$724,2,FALSE)=TRUE, Bron!$B$2,IF(VLOOKUP(J206,'Doc Load_Evaluatie 2'!$B$49:$C$724,2,FALSE)=TRUE,Bron!$B$3,IF(VLOOKUP(K206,'Doc Load_Evaluatie 2'!$B$49:$C$724,2,FALSE)=TRUE,Bron!$B$4,\"Niet ingevuld\")))","v":"Niet ingevuld"},"TOE 1.1 Uitstekend","TOE 1.1 Beter","TOE 1.1 Goed"]
[null,null,"TOE 1.2","Plan van aanpak circulair en toekomstgericht ontwerpen","Vrij","Voldaan",{"$f":"IF(VLOOKUP(C207,'Doc Load_Evaluatie 2'!$B$49:$C$600,2,FALSE)=TRUE,1, 0)","v":0},{"$f":"IF(VLOOKUP(C207,'Doc Load_Evaluatie 2'!$B$49:$C$600,2,FALSE)=TRUE,Bron!$B$7,Bron!$B$8)","v":"Niet voldaan"}]
[null,null,"TOE 1.3","Demontageplan","Vrij","Voldaan",{"$f":"IF(VLOOKUP(C208,'Doc Load_Evaluatie 2'!$B$49:$C$600,2,FALSE)=TRUE,1, 0)","v":0},{"$f":"IF(VLOOKUP(C208,'Doc Load_Evaluatie 2'!$B$49:$C$600,2,FALSE)=TRUE,Bron!$B$7,Bron!$B$8)","v":"Niet voldaan"}]
[]
[null,"TOE 2","Gebruik door derden en multifunctionaliteit"]
[null,null,"TOE 2.1","In welke mate is het project multifunctioneel en/of toegankelijk voor derden?","Vrij","Voldaan",{"$f":"IF(ABS(SUMPRODUCT(-(G212:G218<>\"\")))>1,1,0)","v":0},{"$f":"IF(ABS(SUMPRODUCT(-(G212:G218<>\"\")))>3,\"Voldaan\",\"\")","v":""}]
[null,null,"A","Is de omgevingsaanleg toegankelijk voor derden? ",null,null,{"$f":"IF(VLOOKUP(I212,'Doc Load_Evaluatie 2'!$B$49:$C$600,2,FALSE)=TRUE,\"x\",\"\")","v":""},null,"TOE 2.1 A"]
[null,null,"B","Zijn er ruimtes/functies in het gebouw, die toegankelijk zijn voor derden?",null,null,{"$f":"IF(VLOOKUP(I213,'Doc Load_Evaluatie 2'!$B$49:$C$600,2,FALSE)=TRUE,\"x\",\"\")","v":""},null,"TOE 2.1 B"]
[null,null,"C","Is het voor derden mogelijk om ruimten tijdelijk in te huren?   ",null,null,{"$f":"IF(VLOOKUP(I214,'Doc Load_Evaluatie 2'!$B$49:$C$600,2,FALSE)=TRUE,\"x\",\"\")","v":""},null,"TOE 2.1 C"]
[null,null,"D","Zijn er eenheden die op lange termijn ingehuurd kunnen worden?",null,null,{"$f":"IF(VLOOKUP(I215,'Doc Load_Evaluatie 2'!$B$49:$C$600,2,FALSE)=TRUE,\"x\",\"\")","v":""},null,"TOE 2.1 D"]
[null,null,"E","Zijn deze eenheden verschillend van aard (functiemix)?   ",null,null,{"$f":"IF(VLOOKUP(I216,'Doc Load_Evaluatie 2'!$B$49:$C$600,2,FALSE)=TRUE,\"x\",\"\")","v":""},null,"TOE 2.1 E"]
[null,null,"F","Wordt het multifunctionele gebouw gerealiseerd door verschillende actoren samen?",null,null,{"$f":"IF(VLOOKUP(I217,'Doc Load_Evaluatie 2'!$B$49:$C$600,2,FALSE)=TRUE,\"x\",\"\")","v":""},null,"TOE 2.1 F"]
[null,null,"G ","Zijn er functionele (buiten)ruimten die gedeeld worden door verschillende actoren? ",null,null,{"$f":"IF(VLOOKUP(I218,'Doc Load_Evaluatie 2'!$B$49:$C$600,2,FALSE)=TRUE,\"x\",\"\")","v":""},null,"TOE 2.1 G"]
[]
[null,"BEH 1","Energiemonitoring"]
[null,null,"BEH 1.1","Basis energiemonitoring","Verplicht","Voldaan",{"$f":"IF(VLOOKUP(C221,'Doc Load_Evaluatie 2'!$B$49:$C$600,2,FALSE)=TRUE,1, 0)","v":0},{"$f":"IF(VLOOKUP(C221,'Doc Load_Evaluatie 2'!$B$2:$C$600,2,FALSE)=TRUE,Bron!$B$7,Bron!$B$8)","v":"Niet voldaan"}]
[null,null,"BEH 1.2","Update energiemonitoring","Verplicht","Voldaan",{"$f":"IF(VLOOKUP(C222,'Doc Load_Evaluatie 2'!$B$49:$C$600,2,FALSE)=TRUE,1, 0)","v":0},{"$f":"IF(VLOOKUP(C222,'Doc Load_Evaluatie 2'!$B$2:$C$600,2,FALSE)=TRUE,Bron!$B$7,Bron!$B$8)","v":"Niet voldaan"}]
[null,null,"BEH 1.3","Submetering van de grootste verbruikers, gebruikers en zones","Verplicht","Voldaan",{"$f":"IF(VLOOKUP(C223,'Doc Load_Evaluatie 2'!$B$49:$C$600,2,FALSE)=TRUE,1, 0)","v":0},{"$f":"IF(VLOOKUP(C223,'Doc Load_Evaluatie 2'!$B$2:$C$600,2,FALSE)=TRUE,Bron!$B$7,Bron!$B$8)","v":"Niet voldaan"}]
[null,null,"BEH 1.4","Basis kwaliteitsopvolging ","Verplicht","Voldaan",{"$f":"IF(VLOOKUP(C224,'Doc Load_Evaluatie 2'!$B$49:$C$600,2,FALSE)=TRUE,1, 0)","v":0},{"$f":"IF(VLOOKUP(C224,'Doc Load_Evaluatie 2'!$B$2:$C$600,2,FALSE)=TRUE,Bron!$B$7,Bron!$B$8)","v":"Niet voldaan"}]
[null,null,"BEH 1.5","Opleiding i.f.v. beheer","Verplicht","Voldaan",{"$f":"IF(VLOOKUP(C225,'Doc Load_Evaluatie 2'!$B$49:$C$600,2,FALSE)=TRUE,1, 0)","v":0},{"$f":"IF(VLOOKUP(C225,'Doc Load_Evaluatie 2'!$B$2:$C$600,2,FALSE)=TRUE,Bron!$B$7,Bron!$B$8)","v":"Niet voldaan"}]
[null,null,"BEH 1.6","Visualisatietool","Verplicht","Voldaan",{"$f":"IF(VLOOKUP(C226,'Doc Load_Evaluatie 2'!$B$49:$C$600,2,FALSE)=TRUE,1, 0)","v":0},{"$f":"IF(VLOOKUP(C226,'Doc Load_Evaluatie 2'!$B$2:$C$600,2,FALSE)=TRUE,Bron!$B$7,Bron!$B$8)","v":"Niet voldaan"}]
[]
[null,"PROFIT",null,"aantal vrije criteria",5,null,{"$f":"G203+G206+G207+G208+G211","v":0}]
[null,null,null,"aantal verplichte criteria",6,null,{"$f":"G221+G222+G223+G224+G225+G226","v":0}]
[null,null,null,"totaal",{"$f":"E228+E229","v":11},null,{"$f":"G228+G229","v":0}]
[]
[]
[null,"OVERZICHT GEREALISEERDE CRITERIA",null,null,null,null,"PROJECT"]
[null,"DEEL I: BASISPRINCIPES"]
[null,null,null,"aantal vrije criteria",{"$f":"E23","v":0},null,{"$f":"G23","v":0}]
[null,null,null,"aantal verplichte criteria",{"$f":"E24","v":6},null,{"$f":"G24","v":0}]
[null,"DEEL II: SITE"]
[null,null,null,"aantal vrije criteria",{"$f":"E54","v":6},null,{"$f":"G54","v":0}]
[null,null,null,"aantal verplichte criteria",{"$f":"E55","v":4},null,{"$f":"G55","v":0}]
[null,"DEEL III [A]: GEBOUW - people"]
[null,null,null,"aantal vrije criteria",{"$f":"E133","v":19},null,{"$f":"G133","v":0}]
[null,null,null,"aantal verplichte criteria",{"$f":"E134","v":8},null,{"$f":"G134","v":0}]
[null,"DEEL III [B]: GEBOUW - planet"]
[null,null,null,"aantal vrije criteria",{"$f":"E196","v":17},null,{"$f":"G196","v":0}]
[null,null,null,"aantal verplichte criteria",{"$f":"E197","v":15},null,{"$f":"G197","v":0}]
[null,"DEEL III [C]: GEBOUW - profit"]
[null,null,null,"aantal vrije criteria",{"$f":"E228","v":5},null,{"$f":"G228","v":0}]
[null,null,null,"aantal verplichte criteria",{"$f":"E229","v":6},null,{"$f":"G229","v":0}]
[null,"TOTAAL"]
[null,null,null,"aantal vrije criteria",{"$f":"E235+E238+E241+E244+E247","v":47},null,{"$f":"G235+G238+G241+G244+G247","v":0}]
[null,null,null,"aantal verplichte criteria",{"$f":"E236+E239+E242+E245+E248","v":39},null,{"$f":"G236+G239+G242+G245+G248","v":0}]
[null,null,null,null,{"$f":"E250+E251","v":86}]
[]
[null,null,null,"min. te behalen vrije criteria",10,null,{"$f":"G250","v":0}]
[null,null,null,"totaal aantal te realiseren criteria",{"$f":"E251+E254","v":49},null,{"$f":"G251+G250","v":0}]

{"sheet":"Bijlage3_Evaluatie 3","index":3,"n_rows":255,"n_cols":14,"rows_kept":255,"cut":false,"hidden":false,"merged":[[115,2,115,7],[17,1,17,7],[28,2,28,7],[33,2,33,7],[38,2,38,7],[46,2,46,7],[48,2,48,7],[50,2,50,7],[59,2,59,7],[69,2,69,7],[84,2,84,7],[93,2,93,7],[204,2,204,7],[121,2,121,7],[138,2,138,7],[143,2,143,7],[150,2,150,7],[160,2,160,7],[164,2,164,7],[170,2,170,7],[175,2,175,7],[180,2,180,7],[185,2,185,7],[201,2,201,7],[245,1,245,7],[209,2,209,7],[219,2,219,7],[233,1,233,7],[236,1,236,7],[239,1,239,7],[242,1,242,7]]}
[]
[null,"VIPA criteria duurzaamheid ",null,null,null,null,null,"ANDERE SECTOREN"]
[]
[null,"Thema","Criterium","Deeleis ","Verplicht / vrij","Minimaal prestatieniveau of voldaan","Criteria project ","Behaald prestatieniveau"]
[]
[null,"DEEL I: BASISPRINCIPES"]
[]
[null,"CON 1: Duurzaam concept"]
[null,null,"CON 1.1","Duurzaam ruimtegebruik: pas de principes van de Trias toponoma toe","Verplicht ","Voldaan",{"$f":"IF(VLOOKUP(C9,'Doc Load_Evaluatie 3'!$B$49:$C$386,2,FALSE)=TRUE,1, 0)","v":0},{"$f":"IF(VLOOKUP(C9,'Doc Load_Evaluatie 3'!$B$49:$C$386,2,FALSE)=TRUE,Bron!$B$7,Bron!$B$8)","v":"Niet voldaan"}]
[null,null,"CON 1.2","Pas de principes van climate responsive design en de Penta Energetica toe","Verplicht","Voldaan",{"$f":"IF(VLOOKUP(C10,'Doc Load_Evaluatie 3'!$B$49:$C$386,2,FALSE)=TRUE,1, 0)","v":0},{"$f":"IF(VLOOKUP(C10,'Doc Load_Evaluatie 3'!$B$49:$C$386,2,FALSE)=TRUE,Bron!$B$7,Bron!$B$8)","v":"Niet voldaan"}]
[null,null,"A","Keep it warm"]
[null,null,"B","Keep it cool"]
[null,null,"C","Turn of the light "]
[null,null,"CON 1.3","Pas de principes van Healthy Design en Reduce, reuse, recyle toe","Verplicht ","Voldaan",{"$f":"IF(VLOOKUP(C14,'Doc Load_Evaluatie 3'!$B$49:$C$386,2,FALSE)=TRUE,1, 0)","v":0},{"$f":"IF(VLOOKUP(C14,'Doc Load_Evaluatie 3'!$B$49:$C$386,2,FALSE)=TRUE,Bron!$B$7,Bron!$B$8)","v":"Niet voldaan"}]
[null,null,"A","Healthy design"]
[null,null,"B","Reduce, reuse, recycle"]
[]
[null,"PRO 1: Geïntegreerd proces"]
[null,null,"PRO 1.1","Multidisciplinair ontwerpteam","Verplicht","Voldaan",{"$f":"IF(VLOOKUP(C19,'Doc Load_Evaluatie 3'!$B$49:$C$386,2,FALSE)=TRUE,1, 0)","v":0},{"$f":"IF(VLOOKUP(C19,'Doc Load_Evaluatie 3'!$B$49:$C$386,2,FALSE)=TRUE,Bron!$B$7,Bron!$B$8)","v":"Niet voldaan"}]
[null,null,"PRO 1.2","Programma van eisen als leidraad ","Verplicht","Voldaan",{"$f":"IF(VLOOKUP(C20,'Doc Load_Evaluatie 3'!$B$49:$C$386,2,FALSE)=TRUE,1, 0)","v":0},{"$f":"IF(VLOOKUP(C20,'Doc Load_Evaluatie 3'!$B$49:$C$386,2,FALSE)=TRUE,Bron!$B$7,Bron!$B$8)","v":"Niet voldaan"}]
[null,null,"PRO 1.3","Duurzaamheid als ontwerpprincipe doorheen alle fasen van het ontwerp- en bouwtraject","Verplicht","Voldaan",{"$f":"IF(VLOOKUP(C21,'Doc Load_Evaluatie 3'!$B$49:$C$386,2,FALSE)=TRUE,1, 0)","v":0},{"$f":"IF(VLOOKUP(C21,'Doc Load_Evaluatie 3'!$B$49:$C$386,2,FALSE)=TRUE,Bron!$B$7,Bron!$B$8)","v":"Niet voldaan"}]
[]
[null,"PROCES",null,"aantal vrije",0,null,0]
[null,null,null,"aantal verplichte",6,null,{"$f":"G9+G10+G14+G19+G20+G21","v":0}]
[null,null,null,null,{"$f":"E23+E24","v":6},null,{"$f":"G24","v":0}]
[]
[null,"DEEL II: SITE"]
[]
[null,"MOB 1","Bereikbaarheid van de site"]
[null,null,"MOB 1.1","Met het openbaar vervoer","Vrij","Goed",{"$f":"IF(VLOOKUP(I30,'Doc Load_Evaluatie 3'!$B$49:$C$724,2,FALSE)=TRUE, 1,IF(VLOOKUP(J30,'Doc Load_Evaluatie 3'!$B$49:$C$724,2,FALSE)=TRUE,1,IF(VLOOKUP(K30,'Doc Load_Evaluatie 3'!$B$49:$C$724,2,FALSE)=TRUE,1,IF(VLOOKUP(L30,'Doc Load_Evaluatie 3'!$B$49:$C$724,2,FALSE)=TRUE,0,0))))","v":0},{"$f":"IF(VLOOKUP(I30,'Doc Load_Evaluatie 3'!$B$49:$C$724,2,FALSE)=TRUE, Bron!$B$2,IF(VLOOKUP(J30,'Doc Load_Evaluatie 3'!$B$49:$C$724,2,FALSE)=TRUE,Bron!$B$3,IF(VLOOKUP(K30,'Doc Load_Evaluatie 3'!$B$49:$C$724,2,FALSE)=TRUE,Bron!$B$4,\"\")))","v":""},"MOB 1.1 Uitstekend","MOB 1.1 Beter","MOB 1.1 Goed","MOB 1.1 Matig"]
[null,null,"MOB 1.2","Met de fiets","Vrij","Goed",{"$f":"IF(VLOOKUP(I31,'Doc Load_Evaluatie 3'!$B$49:$C$724,2,FALSE)=TRUE, 1,IF(VLOOKUP(J31,'Doc Load_Evaluatie 3'!$B$49:$C$724,2,FALSE)=TRUE,1,IF(VLOOKUP(K31,'Doc Load_Evaluatie 3'!$B$49:$C$724,2,FALSE)=TRUE,1,0)))","v":0},{"$f":"IF(VLOOKUP(I31,'Doc Load_Evaluatie 3'!$B$49:$C$724,2,FALSE)=TRUE, Bron!$B$2,IF(VLOOKUP(J31,'Doc Load_Evaluatie 3'!$B$49:$C$724,2,FALSE)=TRUE,Bron!$B$3,IF(VLOOKUP(K31,'Doc Load_Evaluatie 3'!$B$49:$C$724,2,FALSE)=TRUE,Bron!$B$4,\"\")))","v":""},"MOB 1.2 Uitstekend","MOB 1.2 Beter","MOB 1.2 Goed"]
[null,null,"MOB 1.3","Te voet","Vrij","Goed",{"$f":"IF(VLOOKUP(I32,'Doc Load_Evaluatie 3'!$B$2:$C$724,2,FALSE)=TRUE, 1,IF(VLOOKUP(J32,'Doc Load_Evaluatie 3'!$B$2:$C$724,2,FALSE)=TRUE,1,IF(VLOOKUP(K32,'Doc Load_Evaluatie 3'!$B$2:$C$724,2,FALSE)=TRUE,1,0)))","v":0},{"$f":"IF(VLOOKUP(I32,'Doc Load_Evaluatie 3'!$B$49:$C$724,2,FALSE)=TRUE, Bron!$B$2,IF(VLOOKUP(J32,'Doc Load_Evaluatie 3'!$B$49:$C$724,2,FALSE)=TRUE,Bron!$B$3,IF(VLOOKUP(K32,'Doc Load_Evaluatie 3'!$B$49:$C$724,2,FALSE)=TRUE,Bron!$B$4,\"\")))","v":""},"MOB 1.3 Uitstekend","MOB 1.3 Beter","MOB 1.3 Goed"]
[]
[null,"MA 1","Maatschappelijke kwaliteit - Ruimtelijke Kwaliteit"]
[null,null,"MA 1.1","Aftoetsing aan beleidskader ruimtelijke structuur","Verplicht","Voldaan",{"$f":"IF(VLOOKUP(C35,'Doc Load_Evaluatie 3'!$B$49:$C$386,2,FALSE)=TRUE,1, 0)","v":0},{"$f":"IF(VLOOKUP(C35,'Doc Load_Evaluatie 3'!$B$49:$C$386,2,FALSE)=TRUE,Bron!$B$7,Bron!$B$8)","v":"Niet voldaan"}]
[null,null,"MA 1.2","Inventaris van de bestaande netwerken","Verplicht","Voldaan",{"$f":"IF(VLOOKUP(C36,'Doc Load_Evaluatie 3'!$B$49:$C$386,2,FALSE)=TRUE,1, 0)","v":0},{"$f":"IF(VLOOKUP(C36,'Doc Load_Evaluatie 3'!$B$49:$C$386,2,FALSE)=TRUE,Bron!$B$7,Bron!$B$8)","v":"Niet voldaan"}]
[null,null,"MA 1.3","Potentiële synergieën met de omgeving en versterking van de ruimtelijke kwaliteit","Vrij","Beter",{"$f":"IF(VLOOKUP(I37,'Doc Load_Evaluatie 3'!$B$49:$C$724,2,FALSE)=TRUE, 1,IF(VLOOKUP(J37,'Doc Load_Evaluatie 3'!$B$49:$C$724,2,FALSE)=TRUE,1,IF(VLOOKUP(K37,'Doc Load_Evaluatie 3'!$B$49:$C$724,2,FALSE)=TRUE,0,0)))","v":0},{"$f":"IF(VLOOKUP(I37,'Doc Load_Evaluatie 3'!$B$49:$C$724,2,FALSE)=TRUE, Bron!$B$2,IF(VLOOKUP(J37,'Doc Load_Evaluatie 3'!$B$49:$C$724,2,FALSE)=TRUE,Bron!$B$3,IF(VLOOKUP(K37,'Doc Load_Evaluatie 3'!$B$49:$C$724,2,FALSE)=TRUE,Bron!$B$8,\"\")))","v":""},"MA13 uit","MA13 beter","MA13 goed"]
[]
[null,"MA 2","Maatschappelijke kwaliteit - Bodem- en ruimtegebruik"]
[null,null,null,"Bodem- en ruimtegebruik","Vrij ","Voldaan",{"$f":"IF(SUMPRODUCT(-(G41:G45 <> \"\"))=0,0,1)","v":0},{"$f":"IF(G40=1,Bron!$B$7,Bron!$B$8)","v":"Niet voldaan"}]
[null,null,"MA 2.1","Biologische waarde terrein",null,null,{"$f":"IF(VLOOKUP(C41,'Doc Load_Evaluatie 3'!$B$49:$C$386,2,FALSE)=TRUE,\"x\", \"\")","v":""},{"$f":"IF(VLOOKUP(C41,'Doc Load_Evaluatie 3'!$B$49:$C$386,2,FALSE)=TRUE,Bron!$B$7, \"\")","v":""}]
[null,null,"MA 2.2","Bodemgebruik",null,null,{"$f":"IF(VLOOKUP(C42,'Doc Load_Evaluatie 3'!$B$49:$C$386,2,FALSE)=TRUE,\"x\", \"\")","v":""},{"$f":"IF(VLOOKUP(C42,'Doc Load_Evaluatie 3'!$B$49:$C$386,2,FALSE)=TRUE,Bron!$B$7, \"\")","v":""}]
[null,null,"MA 2.3","Brownfield",null,null,{"$f":"IF(VLOOKUP(C43,'Doc Load_Evaluatie 3'!$B$49:$C$386,2,FALSE)=TRUE,\"x\", \"\")","v":""},{"$f":"IF(VLOOKUP(C43,'Doc Load_Evaluatie 3'!$B$49:$C$386,2,FALSE)=TRUE,Bron!$B$7, \"\")","v":""}]
[null,null,"MA 2.4","Gebruik van gesaneerde vervuilde gronden",null,null,{"$f":"IF(VLOOKUP(C44,'Doc Load_Evaluatie 3'!$B$49:$C$386,2,FALSE)=TRUE,\"x\", \"\")","v":""},{"$f":"IF(VLOOKUP(C44,'Doc Load_Evaluatie 3'!$B$49:$C$386,2,FALSE)=TRUE,Bron!$B$7, \"\")","v":""}]
[null,null,"MA 2.5","Hergebruik van de bestaande bouwing",null,null,{"$f":"IF(VLOOKUP(C45,'Doc Load_Evaluatie 3'!$B$49:$C$386,2,FALSE)=TRUE,\"x\", \"\")","v":""},{"$f":"IF(VLOOKUP(C45,'Doc Load_Evaluatie 3'!$B$49:$C$386,2,FALSE)=TRUE,Bron!$B$7, \"\")","v":""}]
[]
[null,"MIL 1","Milieutechnische kwaliteit - Overstromingsrisico",null,null,""]
[null,null,"MIL 1","Overstromingsrisico","Verplicht ","Beter",{"$f":"IF(OR(H48=Bron!B2,'Bijlage3_Evaluatie 3'!H48=Bron!B3),1,0)","v":0},{"$f":"IF(OR(VLOOKUP(L48,'Doc Load_Evaluatie 3'!$B$49:$C$724,2,FALSE)=TRUE,VLOOKUP(I48,'Doc Load_Evaluatie 3'!$B$49:$C$724,2,FALSE)=TRUE), Bron!$B$2,IF(OR(VLOOKUP(M48,'Doc Load_Evaluatie 3'!$B$49:$C$724,2,FALSE)=TRUE,VLOOKUP(J48,'Doc Load_Evaluatie 3'!$B$49:$C$724,2,FALSE)=TRUE),Bron!$B$3,IF(OR(VLOOKUP(K48,'Doc Load_Evaluatie 3'!$B$49:$C$724,2,FALSE)=TRUE,VLOOKUP(N48,'Doc Load_Evaluatie 3'!$B$49:$C$724,2,FALSE)=TRUE),Bron!$B$8,\"Niet ingevuld\")))","v":"Niet ingevuld"},"MIL 1.3 Uitstekend vla","MIL 1.3 Beter vla","MIL 1.3 Goed vla","MIL 1.3 Uitstekend bru","MIL 1.3 Beter bru","MIL 1.3 Goed bru"]
[null,"MIL 2","Milieutechnische kwaliteit - Buitenluchtkwaliteit",null,null,""]
[null,null,"MIL 2","Stikstofconcentratie NO2","Verplicht ","Goed",{"$f":"IF(VLOOKUP(I50,'Doc Load_Evaluatie 3'!$B$49:$C$724,2,FALSE)=TRUE, 1,IF(VLOOKUP(J50,'Doc Load_Evaluatie 3'!$B$49:$C$724,2,FALSE)=TRUE,1,IF(VLOOKUP(K50,'Doc Load_Evaluatie 3'!$B$49:$C$724,2,FALSE)=TRUE,0,0)))","v":0},{"$f":"IF(VLOOKUP(I50,'Doc Load_Evaluatie 3'!$B$49:$C$724,2,FALSE)=TRUE, Bron!$B$2,IF(VLOOKUP(J50,'Doc Load_Evaluatie 3'!$B$49:$C$724,2,FALSE)=TRUE,Bron!$B$3,IF(VLOOKUP(K50,'Doc Load_Evaluatie 3'!$B$49:$C$724,2,FALSE)=TRUE,Bron!$B$4,\"Niet ingevuld\")))","v":"Niet ingevuld"},"MIL 2 Uitstekend","MIL 2 Beter","MIL 2 Goed"]
[null,"MIL 3","Milieutechnische kwaliteit - Buitengeluid",null,null,""]
[null,null,"MIL 3","Geluidsniveau LAeq","Vrij ","Goed",{"$f":"IF(OR(H52=Bron!$B$2,'Bijlage3_Evaluatie 3'!H52=Bron!$B$3,H52=Bron!$B$4),1,0)","v":0},{"$f":"IF(VLOOKUP(I52,'Doc Load_Evaluatie 3'!$B$49:$C$724,2,FALSE)=TRUE, Bron!$B$2,IF(VLOOKUP(J52,'Doc Load_Evaluatie 3'!$B$49:$C$724,2,FALSE)=TRUE,Bron!$B$3,IF(VLOOKUP(K52,'Doc Load_Evaluatie 3'!$B$49:$C$724,2,FALSE)=TRUE,Bron!$B$4,\"\")))","v":""},"MIL 3 Uitstekend","MIL 3 Beter","MIL 3 Goed"]
[]
[null,"SITE",null,"aantal vrije",6,null,{"$f":"G52+G40+G37+G30+G31+G32","v":0}]
[null,null,null,"aantal verplichte",4,null,{"$f":"G35+G36+G48+G50","v":0}]
[null,null,null,null,{"$f":"E54+E55","v":10},null,{"$f":"G55+G54","v":0}]
[]
[null,"DEEL III [A]: GEBOUW - people"]
[]
[null,"BIN 1","Akoestisch comfort"]
[null,null,null,"Akoestiek","Verplicht","Goed",{"$f":"IF(AND(ABS(SUMPRODUCT(-(G62:G68 <> \"\")))>2,G66=\"x\",G67=\"x\"),1,0)","v":0},{"$f":"IF(ABS(SUMPRODUCT(-(G62:G68<>\"\")))=7,\"Uitstekend\",IF(ABS(SUMPRODUCT(-(G62:G68<>\"\")))>4,\"Beter\",IF(ABS(SUMPRODUCT(-(G62:G68<>\"\")))>2,\"Goed\",\"Niet voldaan\")))","v":"Niet voldaan"},"BIN1 uitstekend","BIN1 beter","BIN1 goed"]
[null,null,"BIN 1.1","Luchtgeluidsisolatie",null,"Voldaan",{"$f":"IF(VLOOKUP(C62,'Doc Load_Evaluatie 3'!$B$49:$C$486,2,FALSE)=TRUE,\"x\",\"\")","v":""}]
[null,null,"BIN 1.2","Contactgeluidsisolatie",null,"Voldaan",{"$f":"IF(VLOOKUP(C63,'Doc Load_Evaluatie 3'!$B$49:$C$486,2,FALSE)=TRUE,\"x\",\"\")","v":""}]
[null,null,"BIN 1.3","Gevelgeluidsisolatie",null,"Voldaan",{"$f":"IF(VLOOKUP(C64,'Doc Load_Evaluatie 3'!$B$49:$C$486,2,FALSE)=TRUE,\"x\",\"\")","v":""}]
[null,null,"BIN 1.4","Installatielawaai",null,"Voldaan",{"$f":"IF(VLOOKUP(C65,'Doc Load_Evaluatie 3'!$B$49:$C$486,2,FALSE)=TRUE,\"x\",\"\")","v":""}]
[null,null,"BIN 1.5","Ruimteakoestiek (nagalm)","Verplicht ","Voldaan",{"$f":"IF(VLOOKUP(C66,'Doc Load_Evaluatie 3'!$B$49:$C$486,2,FALSE)=TRUE,\"x\",\"\")","v":""}]
[null,null,"BIN 1.6","Geluiduitstraling naar de omgeving  ","Verplicht ","Voldaan",{"$f":"IF(VLOOKUP(C67,'Doc Load_Evaluatie 3'!$B$49:$C$486,2,FALSE)=TRUE,\"x\",\"\")","v":""}]
[null,null,"BIN 1.7","Buitengeluid in de onmiddellijke omgeving van het gebouw",null,"Voldaan",{"$f":"IF(VLOOKUP(C68,'Doc Load_Evaluatie 3'!$B$49:$C$486,2,FALSE)=TRUE,\"x\",\"\")","v":""}]
[]
[null,"BIN 2","Thermisch comfort",null,null,""]
[null,null,"BIN 2.1","Zomercomfort ","Verplicht",null,{"$f":"IF(OR(G72=\"x\",G75=\"x\"),1,0)","v":0},{"$f":"IF(G71=1,Bron!$B$7,Bron!$B$8)","v":"Niet voldaan"}]
[null,null,"Optie 1","Zomercomfort",null,null,{"$f":"IF(VLOOKUP(I72,'Doc Load_Evaluatie 3'!$B$49:$C$486,2,FALSE)=TRUE,\"x\", \"\")","v":""},{"$f":"IF(VLOOKUP(I72,'Doc Load_Evaluatie 3'!$B$49:$C$386,2,FALSE)=TRUE,Bron!$B$7, \"\")","v":""},"BIN 2.1 opt1"]
[null,null,"A","Zonwering ",null,null,{"$f":"IF(AND(VLOOKUP('Bijlage3_Evaluatie 3'!I73,'Doc Load_Aanvraag'!$B$49:$C$600,2,FALSE)=TRUE,VLOOKUP('Bijlage3_Evaluatie 3'!$J$73,'Doc Load_Aanvraag'!$B$49:$C$600,2,FALSE)=TRUE),\"x\",\"\")","v":""},null,"BIN 2.1 opt1 A1","BIN 2.1 opt1 A2"]
[null,null,"B","Zomercomfort via dynamische simulatie ",null,"Beter",{"$f":"IF(OR(VLOOKUP($I$74,'Doc Load_Evaluatie 3'!$B$49:$C$724,2,FALSE)=TRUE, VLOOKUP($L$74,'Doc Load_Evaluatie 3'!$B$49:$C$724,2,FALSE)=TRUE),\"x\",IF(OR(VLOOKUP('Bijlage3_Evaluatie 3'!$J$74,'Doc Load_Evaluatie 3'!$B$49:$C$724,2,FALSE)=TRUE,VLOOKUP('Bijlage3_Evaluatie 3'!$M$74,'Doc Load_Evaluatie 3'!$B$49:$C$724,2,FALSE)=TRUE),\"x\",IF(OR(VLOOKUP('Bijlage3_Evaluatie 3'!$K$74,'Doc Load_Evaluatie 3'!$B$49:$C$724,2,FALSE)=TRUE,VLOOKUP('Bijlage3_Evaluatie 3'!$K$74,'Doc Load_Evaluatie 3'!$B$49:$C$724,2,FALSE)=TRUE),\"x\",\"\")))","v":""},{"$f":"IF(OR(VLOOKUP($I$74,'Doc Load_Evaluatie 3'!$B$49:$C$724,2,FALSE)=TRUE, VLOOKUP($L$74,'Doc Load_Evaluatie 3'!$B$49:$C$724,2,FALSE)=TRUE),Bron!$B$49,IF(OR(VLOOKUP('Bijlage3_Evaluatie 3'!$J$74,'Doc Load_Evaluatie 3'!$B$49:$C$724,2,FALSE)=TRUE,VLOOKUP('Bijlage3_Evaluatie 3'!$M$74,'Doc Load_Evaluatie 3'!$B$49:$C$724,2,FALSE)=TRUE),Bron!$B$3,IF(OR(VLOOKUP('Bijlage3_Evaluatie 3'!$K$74,'Doc Load_Evaluatie 3'!$B$49:$C$724,2,FALSE)=TRUE,VLOOKUP('Bijlage3_Evaluatie 3'!$K$74,'Doc Load_Evaluatie 3'!$B$49:$C$724,2,FALSE)=TRUE),Bron!$B$8,\"\")))","v":""},"BIN 2.1 opt1 B Uitstekend","BIN 2.1 opt1 B Beter","BIN 2.1 opt1 B Goed","BIN 2.1 actief uitstekend","BIN 2.1 actief beter","BIN 2.1 actief goed"]
[null,null,"Optie 2","Zomercomfort - ontwerprichtlijnen ",null,null,{"$f":"IF(VLOOKUP(I75,'Doc Load_Evaluatie 3'!$B$49:$C$600,2,FALSE)=TRUE,\"x\", \"\")","v":""},"","BIN 2.1 opt2"]
[null,null,"A","Zomercomfort algemeen",null,null,{"$f":"IF(AND(VLOOKUP('Bijlage3_Evaluatie 3'!I76,'Doc Load_Aanvraag'!$B$49:$C$600,2,FALSE)=TRUE,VLOOKUP('Bijlage3_Evaluatie 3'!$J$76,'Doc Load_Aanvraag'!$B$2:$C$600,2,FALSE)=TRUE),\"x\",\"\")","v":""},null,"BIN 2.1 opt2 A1","BIN 2.1 opt2 A2"]
[null,null,"B","Zomercomfort zorg (individuele kamers) ",null,null,{"$f":"IF(VLOOKUP(I77,'Doc Load_Evaluatie 3'!$B$49:$C$600,2,FALSE)=TRUE,\"x\", \"\")","v":""},null,"BIN 2.1 opt2 B"]
[null,null,"BIN 2.2","Lokale thermische behaaglijkheid",""]
[null,null,"A","Verticale temperatuurgradiënt","Vrij ","Beter",{"$f":"IF(VLOOKUP(I79,'Doc Load_Evaluatie 3'!$B$49:$C$724,2,FALSE)=TRUE, 1,IF(VLOOKUP(J79,'Doc Load_Evaluatie 3'!$B$49:$C$724,2,FALSE)=TRUE,1,IF(VLOOKUP(K79,'Doc Load_Evaluatie 3'!$B$49:$C$724,2,FALSE)=TRUE,0,0)))","v":0},{"$f":"IF(VLOOKUP(I79,'Doc Load_Evaluatie 3'!$B$49:$C$724,2,FALSE)=TRUE, Bron!$B$2,IF(VLOOKUP(J79,'Doc Load_Evaluatie 3'!$B$49:$C$724,2,FALSE)=TRUE,Bron!$B$3,IF(VLOOKUP(K79,'Doc Load_Evaluatie 3'!$B$49:$C$724,2,FALSE)=TRUE,Bron!$B$8,\"\")))","v":""},"BIN22 A Uitstekend","BIN22 A beter","BIN22 A goed"]
[null,null,"B","Vloertemperatuur","Vrij ","Beter",{"$f":"IF(VLOOKUP(I80,'Doc Load_Evaluatie 3'!$B$49:$C$724,2,FALSE)=TRUE, 1,IF(VLOOKUP(J80,'Doc Load_Evaluatie 3'!$B$49:$C$724,2,FALSE)=TRUE,1,IF(VLOOKUP(K80,'Doc Load_Evaluatie 3'!$B$49:$C$724,2,FALSE)=TRUE,0,0)))","v":0},{"$f":"IF(VLOOKUP(I80,'Doc Load_Evaluatie 3'!$B$49:$C$724,2,FALSE)=TRUE, Bron!$B$2,IF(VLOOKUP(J80,'Doc Load_Evaluatie 3'!$B$49:$C$724,2,FALSE)=TRUE,Bron!$B$3,IF(VLOOKUP(K80,'Doc Load_Evaluatie 3'!$B$49:$C$724,2,FALSE)=TRUE,Bron!$B$8,\"\")))","v":""},"BIN22 B Uitstekend","BIN22 B beter","BIN22 B goed"]
[null,null,"C","Stralingsasymmetrie","Vrij ","Beter",{"$f":"IF(VLOOKUP(I81,'Doc Load_Evaluatie 3'!$B$49:$C$724,2,FALSE)=TRUE, 1,IF(VLOOKUP(J81,'Doc Load_Evaluatie 3'!$B$49:$C$724,2,FALSE)=TRUE,1,IF(VLOOKUP(K81,'Doc Load_Evaluatie 3'!$B$49:$C$724,2,FALSE)=TRUE,0,0)))","v":0},{"$f":"IF(VLOOKUP(I81,'Doc Load_Evaluatie 3'!$B$49:$C$724,2,FALSE)=TRUE, Bron!$B$2,IF(VLOOKUP(J81,'Doc Load_Evaluatie 3'!$B$49:$C$724,2,FALSE)=TRUE,Bron!$B$3,IF(VLOOKUP(K81,'Doc Load_Evaluatie 3'!$B$49:$C$724,2,FALSE)=TRUE,Bron!$B$8,\"\")))","v":""},"BIN22 C Uitstekend","BIN22 C beter","BIN22 C goed"]
[null,null,"D ","Tocht","Vrij ","Beter",{"$f":"IF(VLOOKUP(I82,'Doc Load_Evaluatie 3'!$B$49:$C$724,2,FALSE)=TRUE, 1,IF(VLOOKUP(J82,'Doc Load_Evaluatie 3'!$B$49:$C$724,2,FALSE)=TRUE,1,IF(VLOOKUP(K82,'Doc Load_Evaluatie 3'!$B$49:$C$724,2,FALSE)=TRUE,0,0)))","v":0},{"$f":"IF(VLOOKUP(I82,'Doc Load_Evaluatie 3'!$B$49:$C$724,2,FALSE)=TRUE, Bron!$B$2,IF(VLOOKUP(J82,'Doc Load_Evaluatie 3'!$B$49:$C$724,2,FALSE)=TRUE,Bron!$B$3,IF(VLOOKUP(K82,'Doc Load_Evaluatie 3'!$B$49:$C$724,2,FALSE)=TRUE,Bron!$B$8,\"\")))","v":""},"BIN22 D Uitstekend","BIN22 D beter","BIN22 D goed"]
[null,null,"BIN 2.3","Relatieve luchtvochtigheid","Vrij ","Beter",{"$f":"IF(VLOOKUP(I83,'Doc Load_Evaluatie 3'!$B$49:$C$724,2,FALSE)=TRUE, 1,IF(VLOOKUP(J83,'Doc Load_Evaluatie 3'!$B$49:$C$724,2,FALSE)=TRUE,1,IF(VLOOKUP(K83,'Doc Load_Evaluatie 3'!$B$49:$C$724,2,FALSE)=TRUE,0,0)))","v":0},{"$f":"IF(VLOOKUP(I83,'Doc Load_Evaluatie 3'!$B$49:$C$724,2,FALSE)=TRUE, Bron!$B$2,IF(VLOOKUP(J83,'Doc Load_Evaluatie 3'!$B$49:$C$724,2,FALSE)=TRUE,Bron!$B$3,IF(VLOOKUP(K83,'Doc Load_Evaluatie 3'!$B$49:$C$724,2,FALSE)=TRUE,Bron!$B$8,\"\")))","v":""},"BIN23 Uitstekend","BIN23 beter","BIN23 goed"]
[]
[null,"BIN 3","Binnenluchtkwaliteit",null,null,""]
[null,null,"BIN 3.1","Klassen van de binnenluchtkwaliteit","Verplicht","Beter",{"$f":"IF(VLOOKUP(I86,'Doc Load_Evaluatie 3'!$B$49:$C$724,2,FALSE)=TRUE, 1,IF(VLOOKUP(J86,'Doc Load_Evaluatie 3'!$B$49:$C$724,2,FALSE)=TRUE,1,IF(VLOOKUP(K86,'Doc Load_Evaluatie 3'!$B$49:$C$724,2,FALSE)=TRUE,0,0)))","v":0},{"$f":"IF(VLOOKUP(I86,'Doc Load_Evaluatie 3'!$B$49:$C$724,2,FALSE)=TRUE, Bron!$B$2,IF(VLOOKUP(J86,'Doc Load_Evaluatie 3'!$B$49:$C$724,2,FALSE)=TRUE,Bron!$B$3,IF(VLOOKUP(K86,'Doc Load_Evaluatie 3'!$B$49:$C$724,2,FALSE)=TRUE,Bron!$B$8,\"Niet ingevuld\")))","v":"Niet ingevuld"},"BIN31 Uitstekend","BIN31 beter","BIN31 goed"]
[null,null,"BIN 3.2","Voorkomen van vervuilings- en verontreinigingsbronnen","Verplicht","Uitstekend ",{"$f":"IF(VLOOKUP($I$87,'Doc Load_Evaluatie 3'!$B$49:$C$724,2,FALSE)=TRUE, 1,IF(VLOOKUP($J$87,'Doc Load_Evaluatie 3'!$B$49:$C$724,2,FALSE)=TRUE,1,IF(VLOOKUP($K$87,'Doc Load_Evaluatie 3'!$B$49:$C$724,2,FALSE)=TRUE,0,0)))","v":0},{"$f":"IF(VLOOKUP($I$87,'Doc Load_Evaluatie 3'!$B$49:$C$724,2,FALSE)=TRUE, Bron!$B$2,IF(VLOOKUP($J$87,'Doc Load_Evaluatie 3'!$B$49:$C$724,2,FALSE)=TRUE,Bron!$B$8,IF(VLOOKUP($K$87,'Doc Load_Evaluatie 3'!$B$49:$C$724,2,FALSE)=TRUE,Bron!$B$8,\"Niet ingevuld\")))","v":"Niet ingevuld"},"BIN 32 Uitstekend","BIN32 beter","BIN32 goed"]
[null,null,"BIN 3.3","Beperken van de emissies van bouwproducten in het binnenmilieu","Vrij","Voldaan ",{"$f":"IF(SUMPRODUCT(-(G89:G91<>\"\"))=0,0,1)","v":0},{"$f":"IF(G88=0,\"\",Bron!$B$7)","v":""}]
[null,null,"Optie 1","Ontwerpen naar een zeer laag emissief gebouw",null,null,{"$f":"IF(VLOOKUP(I89,'Doc Load_Evaluatie 3'!$B$49:$C$600,2,FALSE),\"x\",\"\")","v":""},null,"BIN 3.3 opt1"]
[null,null,"Optie 2","Meting TVOS en formaldehyde",null,null,{"$f":"IF(VLOOKUP($I$90,'Doc Load_Evaluatie 3'!$B$49:$C$600,2,FALSE),\"x\",\"\")","v":""},null,"BIN 3.3 opt2"]
[null,null,"Optie 3","Labels ",null,null,{"$f":"IF(VLOOKUP($I$91,'Doc Load_Evaluatie 3'!$B$49:$C$600,2,FALSE),\"x\",\"\")","v":""},null,"BIN 3.3 opt3"]
[null,null,"BIN 3.4","Openen van ramen","Verplicht ","Voldaan ",{"$f":"IF(VLOOKUP(C92,'Doc Load_Evaluatie 3'!$B$49:$C$386,2,FALSE)=TRUE,1, 0)","v":0},{"$f":"IF(VLOOKUP(C92,'Doc Load_Evaluatie 3'!$B$49:$C$386,2,FALSE)=TRUE,Bron!B7,Bron!B8)","v":"Niet voldaan"}]
[]
[null,"BIN 4","Visueel comfort",null,null,""]
[null,null,"BIN 4.1","Daglichttoetreding ","Verplicht ",null,{"$f":"IF(OR(G96=\"x\",G97=\"x\"),1,0)","v":0},{"$f":"IF(G95=1,Bron!$B$7,Bron!$B$8)","v":"Niet voldaan"}]
[null,null,"Optie 1","Daglichttoetreding ",null,"Uitstekend",{"$f":"IF(VLOOKUP($I$96,'Doc Load_Evaluatie 3'!$B$49:$C$724,2,FALSE)=TRUE, \"x\",IF(VLOOKUP($J$96,'Doc Load_Evaluatie 3'!$B$49:$C$724,2,FALSE)=TRUE,0,IF(VLOOKUP($K$96,'Doc Load_Evaluatie 3'!$B$49:$C$724,2,FALSE)=TRUE,0,\"\")))","v":""},{"$f":"IF(VLOOKUP(I96,'Doc Load_Evaluatie 3'!$B$49:$C$724,2,FALSE)=TRUE, Bron!$B$2,IF(VLOOKUP(J96,'Doc Load_Evaluatie 3'!$B$49:$C$724,2,FALSE)=TRUE,Bron!$B$8,IF(VLOOKUP(K96,'Doc Load_Evaluatie 3'!$B$49:$C$724,2,FALSE)=TRUE,Bron!$B$8,\"\")))","v":""},"BIN41 Uitstekend","BIN41 beter","BIN41 goed"]
[null,null,"Optie 2","Daglichttoetreding - ontwerprichtlijn",null,"Voldaan",{"$f":"IF(VLOOKUP(I97,'Doc Load_Evaluatie 3'!$B$49:$C$386,2,FALSE)=TRUE,\"x\", \"\")","v":""},{"$f":"IF(VLOOKUP(I97,'Doc Load_Evaluatie 3'!$B$49:$C$386,2,FALSE)=TRUE,Bron!B7,\"\")","v":""},"BIN 4.1 opt2"]
[null,null,"BIN 4.2","Verblinding","Vrij ","Beter",{"$f":"IF(OR(H98=Bron!$B$2,H98=Bron!$B$3),1,0)","v":0},{"$f":"IF(VLOOKUP(I98,'Doc Load_Evaluatie 3'!$B$49:$C$724,2,FALSE)=TRUE, Bron!$B$2,IF(VLOOKUP(J98,'Doc Load_Evaluatie 3'!$B$49:$C$724,2,FALSE)=TRUE,Bron!$B$3,IF(VLOOKUP(K98,'Doc Load_Evaluatie 3'!$B$49:$C$724,2,FALSE)=TRUE,Bron!$B$8,\"\")))","v":""},"BIN 4.2 Uitstekend","BIN 4.2 beter","BIN 4.2 goed"]
[null,null,"BIN 4.3","Basiseisen werkplekverlichting ","Vrij ","Voldaan",{"$f":"IF(VLOOKUP(C99,'Doc Load_Evaluatie 3'!$B$49:$C$386,2,FALSE)=TRUE,1, 0)","v":0},{"$f":"IF(VLOOKUP(C99,'Doc Load_Evaluatie 3'!$B$49:$C$386,2,FALSE)=TRUE,Bron!$B$7,\"\")","v":""}]
[null,null,"A","Verlichtingsniveau",null,null,{"$f":"IF(G99=1,\"x\",\"\")","v":""},null,"BIN 4.3 A"]
[null,null,"B","Uniformiteit",null,null,{"$f":"IF(G100=1,\"x\",\"\")","v":""},null,"BIN 4.3 B"]
[null,null,"C","UGR",null,null,"",null,"BIN 4.3 C"]
[null,null,"D","Kleurweergave",null,null,"",null,"BIN 4.3 D"]
[null,null,"BIN 4.4","(Uit)Zicht","Vrij ","Voldaan",{"$f":"IF(VLOOKUP(C104,'Doc Load_Evaluatie 3'!$B$49:$C$386,2,FALSE)=TRUE,1, 0)","v":0},{"$f":"IF(VLOOKUP(C104,'Doc Load_Evaluatie 3'!$B$49:$C$386,2,FALSE)=TRUE,Bron!$B$7,\"\")","v":""}]
[null,null,"BIN 4.5","Zonlichttoetreding","Vrij ","Voldaan",{"$f":"IF(VLOOKUP(C105,'Doc Load_Evaluatie 3'!$B$49:$C$386,2,FALSE)=TRUE,1, 0)","v":0},{"$f":"IF(VLOOKUP(C105,'Doc Load_Evaluatie 3'!$B$49:$C$386,2,FALSE)=TRUE,Bron!$B$7,\"\")","v":""}]
[null,null,"BIN 4.6","Zicht naar buiten bij gesloten zonwering","Vrij ","Voldaan",{"$f":"IF(VLOOKUP(C106,'Doc Load_Evaluatie 3'!$B$49:$C$386,2,FALSE)=TRUE,1, 0)","v":0},{"$f":"IF(VLOOKUP(C106,'Doc Load_Evaluatie 3'!$B$49:$C$386,2,FALSE)=TRUE,Bron!$B$7,\"\")","v":""}]
[null,null,"BIN 4.7","Aanvullende maatregelen voor goed visueel comfort","Vrij ","Voldaan",{"$f":"IF(SUMPRODUCT(-(G108:G110<>\"\"))=0,0,1)","v":0},{"$f":"IF('Bijlage3_Evaluatie 3'!G107=1,Bron!$B$7,\"\")","v":""}]
[null,null,"A","Betere kleurweergave kunstlicht",null,null,{"$f":"IF(VLOOKUP(I108,'Doc Load_Evaluatie 3'!$B$49:$C$600,2,FALSE),\"x\",\"\")","v":""},null,"BIN 4.7 A"]
[null,null,"B","Kleurtemperatuur kunstlicht",null,null,{"$f":"IF(VLOOKUP(I109,'Doc Load_Evaluatie 3'!$B$49:$C$600,2,FALSE),\"x\",\"\")","v":""},null,"BIN 4.7 B"]
[null,null,"C","Glaskwaliteit i.f.v. kleurweergave",null,null,{"$f":"IF(VLOOKUP(I110,'Doc Load_Evaluatie 3'!$B$49:$C$600,2,FALSE),\"x\",\"\")","v":""},null,"BIN 4.7 C"]
[null,null,"BIN 4.8","Visueel contact met de buitenomgeving en daglichttoetreding",null,null,{"$f":"IF(G112=1,1,0)","v":0},{"$f":"IF(G111=1,Bron!$B$7,\"\")","v":""}]
[null,null,"A","Ongehinderd visueel contact - verblijfsruimten","Verplicht ","Voldaan ",{"$f":"IF(VLOOKUP(I112,'Doc Load_Evaluatie 3'!$B$49:$C$386,2,FALSE)=TRUE,1, 0)","v":0},{"$f":"IF(VLOOKUP(I112,'Doc Load_Evaluatie 3'!$B$49:$C$386,2,FALSE)=TRUE,Bron!$B$7,\"Niet voldaan\")","v":"Niet voldaan"},"BIN 4.8 A"]
[null,null,"B","Visueel contact - personeelsruimten","Vrij ","Voldaan",{"$f":"IF(VLOOKUP(I113,'Doc Load_Evaluatie 3'!$B$49:$C$386,2,FALSE)=TRUE,1, 0)","v":0},{"$f":"IF(VLOOKUP(I113,'Doc Load_Evaluatie 3'!$B$49:$C$386,2,FALSE)=TRUE,Bron!$B$7,\"\")","v":""},"BIN 4.8 B"]
[null,null,"C","Daglicht (secundaire ruimten)","Vrij ","Voldaan",{"$f":"IF(VLOOKUP(I114,'Doc Load_Evaluatie 3'!$B$49:$C$386,2,FALSE)=TRUE,1, 0)","v":0},{"$f":"IF(VLOOKUP(I114,'Doc Load_Evaluatie 3'!$B$49:$C$386,2,FALSE)=TRUE,Bron!$B$7,\"\")","v":""},"BIN 4.8 C"]
[]
[null,"SOC 3","Integrale toegankelijkheid"]
[null,null,"SOC 3.1","Advies toegankelijkheid ","Vrij*",null,{"$f":"IF(VLOOKUP(C117,'Doc Load_Evaluatie 3'!$B$49:$C$386,2,FALSE)=TRUE,1, 0)","v":0},{"$f":"IF(VLOOKUP(C117,'Doc Load_Evaluatie 3'!$B$49:$C$386,2,FALSE)=TRUE,Bron!$B$7,\"\")","v":""}]
[null,null,"SOC 3.2","Graad van integrale toegankelijkheid: checklist","Vrij","Uitstekend ",{"$f":"IF(H118=Bron!$B$2,1,0)","v":0},{"$f":"IF(VLOOKUP(I118,'Doc Load_Evaluatie 3'!$B$49:$C$724,2,FALSE)=TRUE, Bron!$B$2,IF(VLOOKUP(J118,'Doc Load_Evaluatie 3'!$B$49:$C$724,2,FALSE)=TRUE,Bron!$B$8,IF(VLOOKUP(K118,'Doc Load_Evaluatie 3'!$B$49:$C$724,2,FALSE)=TRUE,Bron!$B$8,\"\")))","v":""},"SOC32 Uitstekend","SOC32 beter","SOC32 goed"]
[null,null,"SOC 3.3","Begeleidingstraject met een onafhankelijk toegankelijkheidsadviseur","Vrij","Voldaan",{"$f":"IF(VLOOKUP(C119,'Doc Load_Evaluatie 3'!$B$49:$C$386,2,FALSE)=TRUE,1, 0)","v":0},{"$f":"IF(VLOOKUP(C119,'Doc Load_Evaluatie 3'!$B$49:$C$386,2,FALSE)=TRUE,Bron!$B$7,\"\")","v":""}]
[null,null,"SOC 3.4","Label toegankelijk kantoorgebouw A+ of A++","Vrij","Voldaan",{"$f":"IF(VLOOKUP(C120,'Doc Load_Evaluatie 3'!$B$49:$C$386,2,FALSE)=TRUE,1, 0)","v":0},{"$f":"IF(VLOOKUP(C120,'Doc Load_Evaluatie 3'!$B$49:$C$386,2,FALSE)=TRUE,Bron!$B$7,\"\")","v":""}]
[null,null,null,null,null,null,"* let op: dit kan wel verplicht zijn in het kader van een andere VIPA regelgeving"]
[null,"GEB 1","Invloed van de gebruiker"]
[null,null,"GEB 1.1","Invloedmogelijkheden","Verplicht ","Beter",{"$f":"IF(ABS(SUMPRODUCT(-(G124:G130<>\"\")))>4,1,0)","v":0},{"$f":"IF(ABS(SUMPRODUCT(-(G124:G130<>\"\")))=7,\"Uitstekend\",IF(ABS(SUMPRODUCT(-(G124:G130<>\"\")))>4,\"Beter\",IF(ABS(SUMPRODUCT(-(G124:G130<>\"\")))>2,\"Goed\",\"Niet voldaan\")))","v":"Niet voldaan"},"GEB11 Uitstekend","GEB11 beter","GEB11 goed"]
[null,null,"A","Zonwering",null,null,{"$f":"IF(OR(VLOOKUP(I124,'Doc Load_Evaluatie 3'!$B$49:$C$600,2,FALSE)=TRUE,VLOOKUP(J124,'Doc Load_Evaluatie 3'!$B$49:$C$600,2,FALSE)=TRUE),\"x\",\"\")","v":""},null,"Zonwering A","Zonwering B"]
[null,null,"B","Verblinding",null,null,{"$f":"IF(OR(VLOOKUP(I125,'Doc Load_Evaluatie 3'!$B$49:$C$600,2,FALSE)=TRUE,VLOOKUP(J125,'Doc Load_Evaluatie 3'!$B$49:$C$600,2,FALSE)=TRUE),\"x\",\"\")","v":""},null,"Verblinding A","Verblinding B"]
[null,null,"C","Temperatuur winter",null,null,{"$f":"IF(OR(VLOOKUP(I126,'Doc Load_Evaluatie 3'!$B$49:$C$600,2,FALSE)=TRUE,VLOOKUP(J126,'Doc Load_Evaluatie 3'!$B$49:$C$600,2,FALSE)=TRUE),\"x\",\"\")","v":""},null,"Temp a","Temp B","Temp C"]
[null,null,"D","Temperatuur zomer",null,null,{"$f":"IF(VLOOKUP(K126,'Doc Load_Evaluatie 3'!$B$49:$C$600,2,FALSE)=TRUE,\"x\",\"\")","v":""}]
[null,null,"E","Algemene verlichting - regeling per ruimte of zone",null,null,{"$f":"IF(OR(VLOOKUP(I128,'Doc Load_Evaluatie 3'!$B$49:$C$600,2,FALSE)=TRUE,VLOOKUP(J128,'Doc Load_Evaluatie 3'!$B$49:$C$600,2,FALSE)=TRUE),\"x\",\"\")","v":""},null,"Verlichting A","Verlichting B","Verlichting C"]
[null,null,"F","Individuele verlichting - individuele regeling werkplek",null,null,{"$f":"IF(VLOOKUP(K128,'Doc Load_Evaluatie 3'!$B$49:$C$600,2,FALSE)=TRUE,\"x\",\"\")","v":""}]
[null,null,"G","Ventilatie",null,null,{"$f":"IF(OR(VLOOKUP(I130,'Doc Load_Evaluatie 3'!$B$49:$C$600,2,FALSE)=TRUE,VLOOKUP(J130,'Doc Load_Evaluatie 3'!$B$49:$C$600,2,FALSE)=TRUE),\"x\",\"\")","v":""},null,"Ventilatie A","Ventilatie B"]
[null,null,"GEB 1.2","Innovatieve oplossingen","Vrij","Voldaan",{"$f":"IF(VLOOKUP(C131,'Doc Load_Evaluatie 3'!$B$49:$C$386,2,FALSE)=TRUE,1, 0)","v":0},{"$f":"IF(VLOOKUP(C131,'Doc Load_Evaluatie 3'!$B$49:$C$600,2,FALSE)=TRUE,Bron!$B$7,\"\")","v":""}]
[]
[null,"PEOPLE",null,"aantal vrije criteria",19,null,{"$f":"G131+G120+G119+G118+G114+G113+G107+G106+G105+G104+G99+G98+G83+G82+G81+G79+G80+G117+G88","v":0}]
[null,null,null,"aantal verplichte criteria",8,null,{"$f":"G123+G112+G95+G92+G87+G86+G71+G61","v":0}]
[null,null,null,null,{"$f":"E133+E134","v":27},null,{"$f":"SUM(G133:G134)","v":0}]
[]
[null,"DEEL III [B]: GEBOUW - planet"]
[]
[null,"ENE 1","Energieprestatie",null,null,""]
[null,null,"ENE 1.1","Energieprestatie","Verplicht","Goed*",{"$f":"IF(OR(H140=Bron!$B$2,H140=Bron!$B$3,H140=Bron!$B$4),1,0)","v":0},{"$f":"IF(VLOOKUP(I141,'Doc Load_Evaluatie 3'!$B$49:$C$724,2,FALSE)=TRUE, Bron!$B$2,IF(VLOOKUP(J141,'Doc Load_Evaluatie 3'!$B$49:$C$724,2,FALSE)=TRUE,Bron!$B$3,IF(VLOOKUP(K141,'Doc Load_Evaluatie 3'!$B$49:$C$724,2,FALSE)=TRUE,Bron!$B$4,IF(VLOOKUP(I142,'Doc Load_Evaluatie 3'!$B$49:$C$724,2,FALSE)=TRUE, Bron!$B$2,IF(VLOOKUP(J142,'Doc Load_Evaluatie 3'!$B$49:$C$724,2,FALSE)=TRUE,Bron!$B$3,IF(VLOOKUP(K142,'Doc Load_Evaluatie 3'!$B$49:$C$724,2,FALSE)=TRUE,Bron!$B$4,IF(VLOOKUP(I143,'Doc Load_Evaluatie 3'!$B$49:$C$724,2,FALSE)=TRUE, Bron!$B$2,IF(VLOOKUP(J143,'Doc Load_Evaluatie 3'!$B$49:$C$724,2,FALSE)=TRUE,Bron!$B$3,IF(VLOOKUP(K143,'Doc Load_Evaluatie 3'!$B$49:$C$724,2,FALSE)=TRUE,Bron!$B$4,IF(VLOOKUP(I140,'Doc Load_Evaluatie 3'!$B$49:$C$724,2,FALSE)=TRUE, Bron!$B$2,IF(VLOOKUP(J140,'Doc Load_Evaluatie 3'!$B$49:$C$724,2,FALSE)=TRUE,Bron!$B$3,IF(VLOOKUP(K140,'Doc Load_Evaluatie 3'!$B$49:$C$724,2,FALSE)=TRUE,Bron!$B$4,\"Niet ingevuld\"))))))))))))","v":"Niet ingevuld"},"ENE11 nieuw Uitstekend","ENE11 nieuw beter","ENE11 nieuw goed"]
[null,null,"ENE 1.2","Koeling","Verplicht","Voldaan",{"$f":"IF(VLOOKUP(C141,'Doc Load_Evaluatie 3'!$B$49:$C$386,2,FALSE)=TRUE,1, 0)","v":0},{"$f":"IF(VLOOKUP(C141,'Doc Load_Evaluatie 3'!$B$49:$C$600,2,FALSE)=TRUE,Bron!$B$7,Bron!$B$8)","v":"Niet voldaan"},"ENE11 ier Uitstekend","ENE11 ier beter","ENE11 ier goed"]
[null,null,"ENE 1.3","Luchtdichtheidsproef","Vrij","Voldaan",{"$f":"IF(VLOOKUP(C142,'Doc Load_Evaluatie 3'!$B$49:$C$386,2,FALSE)=TRUE,1, 0)","v":0},{"$f":"IF(VLOOKUP(C142,'Doc Load_Evaluatie 3'!$B$49:$C$600,2,FALSE)=TRUE,Bron!$B$7,\"\")","v":""},"ENE11 verb Uitstekend","ENE11 verb beter","ENE11 verb goed"]
[null,null,null,null,null,null,"* Voor residentiële gebouwen (EPW) conform EPB",null,"ENE11 nieuw BR Uitstekend","ENE11 nieuw BR beter","ENE11 nieuw BR goed"]
[null,"ENE 2","Hernieuwbare energie",null,null,""]
[null,null,"ENE 2.1","Haalbaarheid hernieuwbare energieën","Verplicht","Voldaan",{"$f":"IF(VLOOKUP(C145,'Doc Load_Evaluatie 3'!$B$49:$C$386,2,FALSE)=TRUE,1, 0)","v":0},{"$f":"IF(VLOOKUP(C145,'Doc Load_Evaluatie 3'!$B$49:$C$600,2,FALSE)=TRUE,Bron!$B$7,Bron!$B$8)","v":"Niet voldaan"}]
[null,null,"ENE 2.2","Aandeel primair energieverbruik hernieuwbaar","Verplicht","Uitstekend",{"$f":"IF(H146=Bron!$B$2,1,0)","v":0},{"$f":"IF(VLOOKUP(I146,'Doc Load_Evaluatie 3'!$B$49:$C$724,2,FALSE)=TRUE, Bron!$B$2,IF(VLOOKUP(J146,'Doc Load_Evaluatie 3'!$B$49:$C$724,2,FALSE)=TRUE,Bron!$B$8,IF(VLOOKUP(K146,'Doc Load_Evaluatie 3'!$B$49:$C$724,2,FALSE)=TRUE,Bron!$B$8,\"Niet ingevuld\")))","v":"Niet ingevuld"},"ENE22 Uitstekend","ENE22 beter","ENE22 goed"]
[null,null,"ENE 2.3","Aandeel primair energieverbruik hernieuwbaar > 35% ","Vrij","Voldaan",{"$f":"IF(VLOOKUP(C147,'Doc Load_Evaluatie 3'!$B$49:$C$686,2,FALSE)=TRUE,1, 0)","v":0},{"$f":"IF(VLOOKUP(C147,'Doc Load_Evaluatie 3'!$B$49:$C$600,2,FALSE)=TRUE,Bron!$B$7,\"\")","v":""}]
[null,null,"ENE 2.4","Aandeel primair energieverbruik hernieuwbaar > 50%","Vrij","Voldaan",{"$f":"IF(VLOOKUP(C148,'Doc Load_Evaluatie 3'!$B$49:$C$686,2,FALSE)=TRUE,1, 0)","v":0},{"$f":"IF(VLOOKUP(C148,'Doc Load_Evaluatie 3'!$B$49:$C$600,2,FALSE)=TRUE,Bron!$B$7,\"\")","v":""}]
[null,null,"ENE 2.5","Aandeel primair energieverbruik hernieuwbaar > 75%","Vrij","Voldaan",{"$f":"IF(VLOOKUP(C149,'Doc Load_Evaluatie 3'!$B$49:$C$686,2,FALSE)=TRUE,1, 0)","v":0},{"$f":"IF(VLOOKUP(C149,'Doc Load_Evaluatie 3'!$B$49:$C$600,2,FALSE)=TRUE,Bron!$B$7,\"\")","v":""}]
[]
[null,"ENE 3","Energiezuinige installaties en toestellen"]
[null,null,"ENE 3.1","Buitenverlichting","Verplicht","Voldaan",{"$f":"IF(VLOOKUP(C152,'Doc Load_Evaluatie 3'!$B$49:$C$600,2,FALSE)=TRUE,1, 0)","v":0},{"$f":"IF(VLOOKUP(C152,'Doc Load_Evaluatie 3'!$B$49:$C$600,2,FALSE)=TRUE,Bron!$B$7,Bron!$B$8)","v":"Niet voldaan"}]
[null,null,"ENE 3.2","Binnenverlichting","Verplicht","Voldaan",{"$f":"IF(VLOOKUP(C153,'Doc Load_Evaluatie 3'!$B$49:$C$600,2,FALSE)=TRUE,1, 0)","v":0},{"$f":"IF(VLOOKUP(C153,'Doc Load_Evaluatie 3'!$B$49:$C$600,2,FALSE)=TRUE,Bron!$B$7,Bron!$B$8)","v":"Niet voldaan"}]
[null,null,"ENE 3.3","Elektrische huishoudelijke toestellen","Verplicht","Voldaan",{"$f":"IF(VLOOKUP(C154,'Doc Load_Evaluatie 3'!$B$49:$C$600,2,FALSE)=TRUE,1, 0)","v":0},{"$f":"IF(VLOOKUP(C154,'Doc Load_Evaluatie 3'!$B$49:$C$600,2,FALSE)=TRUE,Bron!$B$7,Bron!$B$8)","v":"Niet voldaan"}]
[null,null,"ENE 3.4","Liften","Verplicht","Voldaan",{"$f":"IF(VLOOKUP(C155,'Doc Load_Evaluatie 3'!$B$49:$C$600,2,FALSE)=TRUE,1, 0)","v":0},{"$f":"IF(VLOOKUP(C155,'Doc Load_Evaluatie 3'!$B$49:$C$600,2,FALSE)=TRUE,Bron!$B$7,Bron!$B$8)","v":"Niet voldaan"}]
[null,null,"ENE 3.5","Verwarmingstoestellen en warmwaterbereiders","Verplicht","Voldaan",{"$f":"IF(VLOOKUP(C156,'Doc Load_Evaluatie 3'!$B$49:$C$600,2,FALSE)=TRUE,1, 0)","v":0},{"$f":"IF(VLOOKUP(C156,'Doc Load_Evaluatie 3'!$B$49:$C$600,2,FALSE)=TRUE,Bron!$B$7,Bron!$B$8)","v":"Niet voldaan"}]
[null,null,"ENE 3.6","Automatische regeling - niet-verblijfsruimten","Verplicht","Voldaan",{"$f":"IF(VLOOKUP(C157,'Doc Load_Evaluatie 3'!$B$49:$C$600,2,FALSE)=TRUE,1, 0)","v":0},{"$f":"IF(VLOOKUP(C157,'Doc Load_Evaluatie 3'!$B$49:$C$600,2,FALSE)=TRUE,Bron!$B$7,Bron!$B$8)","v":"Niet voldaan"}]
[null,null,"ENE 3.7","Automatische regeling – andere ruimten","Vrij","Voldaan",{"$f":"IF(VLOOKUP(C158,'Doc Load_Evaluatie 3'!$B$49:$C$600,2,FALSE)=TRUE,1, 0)","v":0},{"$f":"IF(VLOOKUP(C158,'Doc Load_Evaluatie 3'!$B$49:$C$600,2,FALSE)=TRUE,Bron!$B$7,\"\")","v":""}]
[null,null,"ENE 3.8","Energie-efficiëntie niet-huishoudelijke toestellen ","Verplicht ","Voldaan",{"$f":"IF(VLOOKUP(C159,'Doc Load_Evaluatie 3'!$B$49:$C$600,2,FALSE)=TRUE,1, 0)","v":0},{"$f":"IF(VLOOKUP(C159,'Doc Load_Evaluatie 3'!$B$49:$C$600,2,FALSE)=TRUE,Bron!$B$7,Bron!$B$8)","v":"Niet voldaan"}]
[]
[null,"MAT 2","Materiaalkeuze"]
[null,null,"MAT 2.1","TOTEM-analyse","Vrij","Voldaan ",{"$f":"IF(VLOOKUP(C162,'Doc Load_Evaluatie 3'!$B$49:$C$600,2,FALSE)=TRUE,1, 0)","v":0},{"$f":"IF(VLOOKUP(C162,'Doc Load_Evaluatie 3'!$B$49:$C$600,2,FALSE)=TRUE,Bron!$B$7,\"\")","v":""}]
[null,null,"MAT 2.2","Hout uit duurzaam bosbeheer","Verplicht","Uitstekend",{"$f":"IF(H163=Bron!$B$2,1,0)","v":0},{"$f":"IF(VLOOKUP(I163,'Doc Load_Evaluatie 3'!$B$49:$C$724,2,FALSE)=TRUE, Bron!$B$2,IF(VLOOKUP(J163,'Doc Load_Evaluatie 3'!$B$49:$C$724,2,FALSE)=TRUE,Bron!$B$8,IF(VLOOKUP(K163,'Doc Load_Evaluatie 3'!$B$49:$C$724,2,FALSE)=TRUE,Bron!$B$8,\"Niet ingevuld\")))","v":"Niet ingevuld"},"MAT22 Uitstekend","MAT22 beter","MAT22 goed"]
[]
[null,"WAT 1","Waterverbruik beperken"]
[null,null,null,"Waterverbruik beperken","Verplicht ","Beter",{"$f":"IF(ABS(SUMPRODUCT(-(G167:G169<>\"\")))>1,1,0)","v":0},{"$f":"IF(ABS(SUMPRODUCT(-(G167:G169<>\"\")))=3,\"Uitstekend\",IF(ABS(SUMPRODUCT(-(G167:G169<>\"\")))>1,\"Beter\",IF(ABS(SUMPRODUCT(-(G167:G169<>\"\")))>0,\"Goed\",\"Niet voldaan\")))","v":"Niet voldaan"},"WAT 1 Uitstekend","WAT 1 beter","WAT 1 goed"]
[null,null,"WAT 1.1","Waterbesparende toestellen en kraanwerk",null,null,{"$f":"IF(VLOOKUP(C167,'Doc Load_Evaluatie 3'!$B$49:$C$724,2,FALSE)=TRUE,\"x\",\"\")","v":""}]
[null,null,"WAT 1.2","Watermeter",null,null,{"$f":"IF(VLOOKUP(C168,'Doc Load_Evaluatie 3'!$B$49:$C$724,2,FALSE)=TRUE,\"x\",\"\")","v":""}]
[null,null,"WAT 1.3","Ontwerp waterdistributie",null,null,{"$f":"IF(VLOOKUP(C169,'Doc Load_Evaluatie 3'!$B$49:$C$724,2,FALSE)=TRUE,\"x\",\"\")","v":""}]
[]
[null,"WAT 2","Hergebruik van water"]
[null,null,"WAT 2.1","Dekkingsgraad door waterhergebruik","Verplicht","Goed",{"$f":"IF(OR(H172=Bron!$B$2,H172=Bron!$B$3,H172=Bron!$B$4),1,0)","v":0},{"$f":"IF(VLOOKUP(I172,'Doc Load_Evaluatie 3'!$B$49:$C$724,2,FALSE)=TRUE, Bron!$B$2,IF(VLOOKUP(J172,'Doc Load_Evaluatie 3'!$B$49:$C$724,2,FALSE)=TRUE,Bron!$B$3,IF(VLOOKUP(K172,'Doc Load_Evaluatie 3'!$B$49:$C$724,2,FALSE)=TRUE,Bron!$B$4,\"Niet ingevuld\")))","v":"Niet ingevuld"},"WAT 2.1 Uitstekend","WAT 2.1 beter","WAT 2.1 goed"]
[null,null,"WAT 2.2","Effectief benut potentieel","Vrij","Goed",{"$f":"IF(OR(H173=Bron!$B$2,H173=Bron!$B$3,H173=Bron!$B$4),1,0)","v":0},{"$f":"IF(VLOOKUP(I173,'Doc Load_Evaluatie 3'!$B$49:$C$724,2,FALSE)=TRUE, Bron!$B$2,IF(VLOOKUP(J173,'Doc Load_Evaluatie 3'!$B$49:$C$724,2,FALSE)=TRUE,Bron!$B$3,IF(VLOOKUP(K173,'Doc Load_Evaluatie 3'!$B$49:$C$724,2,FALSE)=TRUE,Bron!$B$4,\"\")))","v":""},"WAT 2.2 Uitstekend","WAT 2.2 beter","WAT 2.2 goed"]
[null,null,"WAT 2.3","Optimale afstemming van de beschikbare waterkwaliteit aan de benodigde waterkwaliteit ","Vrij","Voldaan ",{"$f":"IF(VLOOKUP(C174,'Doc Load_Evaluatie 3'!$B$49:$C$600,2,FALSE)=TRUE,1, 0)","v":0},{"$f":"IF(VLOOKUP(C174,'Doc Load_Evaluatie 3'!$B$49:$C$600,2,FALSE)=TRUE,Bron!$B$7,\"\")","v":""}]
[]
[null,"WAT 3","Afvoer van water"]
[null,null,"WAT 3.1","Lekdebiet naar riolering","Vrij","Goed",{"$f":"IF(OR(H177=Bron!$B$2,H177=Bron!$B$3,H177=Bron!$B$4),1,0)","v":0},{"$f":"IF(VLOOKUP(I177,'Doc Load_Evaluatie 3'!$B$49:$C$724,2,FALSE)=TRUE, Bron!$B$2,IF(VLOOKUP(J177,'Doc Load_Evaluatie 3'!$B$49:$C$724,2,FALSE)=TRUE,Bron!$B$3,IF(VLOOKUP(K177,'Doc Load_Evaluatie 3'!$B$49:$C$724,2,FALSE)=TRUE,Bron!$B$4,\"\")))","v":""},"WAT 3.1 Uitstekend","WAT 3.1 beter","WAT 3.1 goed"]
[null,null,"WAT 3.2","Ledigingstijd infiltratievoorziening","Vrij","Goed",{"$f":"IF(OR(H178=Bron!$B$2,H178=Bron!$B$3,H178=Bron!$B$4),1,0)","v":0},{"$f":"IF(VLOOKUP(I178,'Doc Load_Evaluatie 3'!$B$49:$C$724,2,FALSE)=TRUE, Bron!$B$2,IF(VLOOKUP(J178,'Doc Load_Evaluatie 3'!$B$49:$C$724,2,FALSE)=TRUE,Bron!$B$3,IF(VLOOKUP(K178,'Doc Load_Evaluatie 3'!$B$49:$C$724,2,FALSE)=TRUE,Bron!$B$4,\"\")))","v":""},"WAT 3.2 Uitstekend","WAT 3.2 beter","WAT 3.2 goed"]
[null,null,"WAT 3.3","Vermijden van vervuiling van water","Vrij","Voldaan",{"$f":"IF(VLOOKUP(C179,'Doc Load_Evaluatie 3'!$B$49:$C$600,2,FALSE)=TRUE,1, 0)","v":0},{"$f":"IF(VLOOKUP(C179,'Doc Load_Evaluatie 3'!$B$49:$C$600,2,FALSE)=TRUE,Bron!$B$7,\"\")","v":""}]
[]
[null,"OMG 1","Biodiversiteit",null,null,""]
[null,null,"OMG 1.1","Opmaak inrichtings- en beheersplan","Vrij","Voldaan",{"$f":"IF(VLOOKUP(C182,'Doc Load_Evaluatie 3'!$B$49:$C$600,2,FALSE)=TRUE,1, 0)","v":0},{"$f":"IF(VLOOKUP(C182,'Doc Load_Evaluatie 3'!$B$49:$C$600,2,FALSE)=TRUE,Bron!$B$7,\"\")","v":""}]
[null,null,"OMG 1.2","Verbetering BAF+ indicator","Vrij","Voldaan",{"$f":"IF(VLOOKUP(C183,'Doc Load_Evaluatie 3'!$B$49:$C$600,2,FALSE)=TRUE,1, 0)","v":0},{"$f":"IF(VLOOKUP(C183,'Doc Load_Evaluatie 3'!$B$49:$C$600,2,FALSE)=TRUE,Bron!$B$7,\"\")","v":""}]
[null,null,"OMG 1.3","Buitenruimte ","Verplicht","Voldaan ",{"$f":"IF(VLOOKUP(C184,'Doc Load_Evaluatie 3'!$B$49:$C$600,2,FALSE)=TRUE,1, 0)","v":0},{"$f":"IF(VLOOKUP(C184,'Doc Load_Evaluatie 3'!$B$49:$C$600,2,FALSE)=TRUE,Bron!$B$7,Bron!$B$8)","v":"Niet voldaan"}]
[]
[null,"OMG 2","Impact op de omgeving",null,null,""]
[null,null,"OMG 2.1","Lichtpollutie","Vrij","Beter",{"$f":"IF(ABS(SUMPRODUCT(-(G189:G191<>\"\")))>1,1,0)","v":0},{"$f":"IF(ABS(SUMPRODUCT(-(G189:G191<>\"\")))=3,\"Uitstekend\",IF(ABS(SUMPRODUCT(-(G189:G191<>\"\")))>1,\"Beter\",IF(ABS(SUMPRODUCT(-(G189:G191<>\"\")))>0,\"Goed\",\"\")))","v":""},"OMG 2.1 Uitstekend","OMG 2.1 beter","OMG 2.1 goed"]
[null,null,"A","Bepaling gebiedstype",null,null,null,null,"OMG 2.1 A"]
[null,null,"B","Beperken van hemelgloed",null,null,null,null,"OMG 2.1 B"]
[null,null,"C","Beperken van licht op naburige eigendommen",null,null,null,null,"OMG 2.1 C"]
[null,null,"D","Lichtbeheersysteem",null,null,null,null,"OMG 2.1 D"]
[null,null,"OMG 2.2","Beschaduwing van de directe omgeving","Vrij","Goed",{"$f":"IF(OR(H192=Bron!$B$2,H192=Bron!$B$3,H192=Bron!$B$4),1,0)","v":0},{"$f":"IF(VLOOKUP(I192,'Doc Load_Evaluatie 3'!$B$49:$C$724,2,FALSE)=TRUE, Bron!$B$2,IF(VLOOKUP(J192,'Doc Load_Evaluatie 3'!$B$49:$C$724,2,FALSE)=TRUE,Bron!$B$3,IF(VLOOKUP(K192,'Doc Load_Evaluatie 3'!$B$49:$C$724,2,FALSE)=TRUE,Bron!$B$4,\"\")))","v":""},"OMG 2.2 Uitstekend","OMG 2.2 Beter","OMG 2.2 Goed"]
[null,null,"OMG 2.3","Windhinder","Vrij","Goed",{"$f":"IF(OR(H193=Bron!$B$2,H193=Bron!$B$3,H193=Bron!$B$4),1,0)","v":0},{"$f":"IF(VLOOKUP(I193,'Doc Load_Evaluatie 3'!$B$49:$C$724,2,FALSE)=TRUE, Bron!$B$2,IF(VLOOKUP(J193,'Doc Load_Evaluatie 3'!$B$49:$C$724,2,FALSE)=TRUE,Bron!$B$3,IF(VLOOKUP(K193,'Doc Load_Evaluatie 3'!$B$49:$C$724,2,FALSE)=TRUE,Bron!$B$4,\"\")))","v":""},"OMG 2.3 Uitstekend","OMG 2.3 Beter","OMG 2.3 Goed"]
[null,null,"OMG 2.4","Hitte-eilandeffect","Vrij","Goed",{"$f":"IF(OR(H194=Bron!$B$2,H194=Bron!$B$3,H194=Bron!$B$4),1,0)","v":0},{"$f":"IF(VLOOKUP(I194,'Doc Load_Evaluatie 3'!$B$49:$C$724,2,FALSE)=TRUE, Bron!$B$2,IF(VLOOKUP(J194,'Doc Load_Evaluatie 3'!$B$49:$C$724,2,FALSE)=TRUE,Bron!$B$3,IF(VLOOKUP(K194,'Doc Load_Evaluatie 3'!$B$49:$C$724,2,FALSE)=TRUE,Bron!$B$4,\"\")))","v":""},"OMG 2.4 Uitstekend","OMG 2.4 Beter","OMG 2.4 Goed"]
[]
[null,"PLANET",null,"aantal vrije criteria",{"$f":"COUNTIFS(E187:E194,\"Vrij\")+COUNTIFS(E177:E179,\"Vrij\")+COUNTIFS(E172:E174,\"Vrij\")+COUNTIFS(E166:E169,\"Vrij\")+COUNTIFS(E162:E163,\"Vrij\")+COUNTIFS(E152:E159,\"Vrij\")+COUNTIFS(E140:E142,\"Vrij\")+COUNTIFS(E145:E149,\"Vrij\")+COUNTIFS(E182:E184,\"Vrij\")","v":17},null,{"$f":"G194+G193+G192+G183+G182+G179+G178+G177+G174+G173+G162+G158+G149+G148+G147+G142+G187","v":0}]
[null,null,null,"aantal verplichte criteria",{"$f":"E198-E196","v":15},null,{"$f":"G184+G172+G166+G163+G159+G157+G156+G155+G154+G153+G152+G146+G145+G141+G140","v":0}]
[null,null,null,"totaal",32,null,{"$f":"SUM(G196:G197)","v":0}]
[]
[null,"DEEL III [C]: GEBOUW - profit"]
[]
[null,"LCC 3","Energieverbruik"]
[null,null,"LCC 3.1","Rekenblad LCC3","Vrij","Voldaan ",{"$f":"IF(VLOOKUP(C203,'Doc Load_Evaluatie 3'!$B$49:$C$600,2,FALSE)=TRUE,1, 0)","v":0},{"$f":"IF(VLOOKUP(C203,'Doc Load_Evaluatie 3'!$B$49:$C$600,2,FALSE)=TRUE,Bron!$B$7,Bron!$B$8)","v":"Niet voldaan"}]
[]
[null,"TOE 1","Circulair en toekomstgericht ontwerpen",null,null,""]
[null,null,"TOE 1.1","Checklist toekomstgericht ontwerpen","Vrij","Goed",{"$f":"IF(OR(H206=Bron!$B$2,H206=Bron!$B$3,H206=Bron!$B$4),1,0)","v":0},{"$f":"IF(VLOOKUP(I206,'Doc Load_Evaluatie 3'!$B$49:$C$724,2,FALSE)=TRUE, Bron!$B$2,IF(VLOOKUP(J206,'Doc Load_Evaluatie 3'!$B$49:$C$724,2,FALSE)=TRUE,Bron!$B$3,IF(VLOOKUP(K206,'Doc Load_Evaluatie 3'!$B$49:$C$724,2,FALSE)=TRUE,Bron!$B$4,\"Niet ingevuld\")))","v":"Niet ingevuld"},"TOE 1.1 Uitstekend","TOE 1.1 Beter","TOE 1.1 Goed"]
[null,null,"TOE 1.2","Plan van aanpak circulair en toekomstgericht ontwerpen","Vrij","Voldaan",{"$f":"IF(VLOOKUP(C207,'Doc Load_Evaluatie 3'!$B$49:$C$600,2,FALSE)=TRUE,1, 0)","v":0},{"$f":"IF(VLOOKUP(C207,'Doc Load_Evaluatie 3'!$B$49:$C$600,2,FALSE)=TRUE,Bron!$B$7,Bron!$B$8)","v":"Niet voldaan"}]
[null,null,"TOE 1.3","Demontageplan","Vrij","Voldaan",{"$f":"IF(VLOOKUP(C208,'Doc Load_Evaluatie 3'!$B$49:$C$600,2,FALSE)=TRUE,1, 0)","v":0},{"$f":"IF(VLOOKUP(C208,'Doc Load_Evaluatie 3'!$B$49:$C$600,2,FALSE)=TRUE,Bron!$B$7,Bron!$B$8)","v":"Niet voldaan"}]
[]
[null,"TOE 2","Gebruik door derden en multifunctionaliteit"]
[null,null,"TOE 2.1","In welke mate is het project multifunctioneel en/of toegankelijk voor derden?","Vrij","Voldaan",{"$f":"IF(ABS(SUMPRODUCT(-(G212:G218<>\"\")))>1,1,0)","v":0},{"$f":"IF(ABS(SUMPRODUCT(-(G212:G218<>\"\")))>3,\"Voldaan\",\"\")","v":""}]
[null,null,"A","Is de omgevingsaanleg toegankelijk voor derden? ",null,null,{"$f":"IF(VLOOKUP(I212,'Doc Load_Evaluatie 3'!$B$49:$C$600,2,FALSE)=TRUE,\"x\",\"\")","v":""},null,"TOE 2.1 A"]
[null,null,"B","Zijn er ruimtes/functies in het gebouw, die toegankelijk zijn voor derden?",null,null,{"$f":"IF(VLOOKUP(I213,'Doc Load_Evaluatie 3'!$B$49:$C$600,2,FALSE)=TRUE,\"x\",\"\")","v":""},null,"TOE 2.1 B"]
[null,null,"C","Is het voor derden mogelijk om ruimten tijdelijk in te huren?   ",null,null,{"$f":"IF(VLOOKUP(I214,'Doc Load_Evaluatie 3'!$B$49:$C$600,2,FALSE)=TRUE,\"x\",\"\")","v":""},null,"TOE 2.1 C"]
[null,null,"D","Zijn er eenheden die op lange termijn ingehuurd kunnen worden?",null,null,{"$f":"IF(VLOOKUP(I215,'Doc Load_Evaluatie 3'!$B$49:$C$600,2,FALSE)=TRUE,\"x\",\"\")","v":""},null,"TOE 2.1 D"]
[null,null,"E","Zijn deze eenheden verschillend van aard (functiemix)?   ",null,null,{"$f":"IF(VLOOKUP(I216,'Doc Load_Evaluatie 3'!$B$49:$C$600,2,FALSE)=TRUE,\"x\",\"\")","v":""},null,"TOE 2.1 E"]
[null,null,"F","Wordt het multifunctionele gebouw gerealiseerd door verschillende actoren samen?",null,null,{"$f":"IF(VLOOKUP(I217,'Doc Load_Evaluatie 3'!$B$49:$C$600,2,FALSE)=TRUE,\"x\",\"\")","v":""},null,"TOE 2.1 F"]
[null,null,"G ","Zijn er functionele (buiten)ruimten die gedeeld worden door verschillende actoren? ",null,null,{"$f":"IF(VLOOKUP(I218,'Doc Load_Evaluatie 3'!$B$49:$C$600,2,FALSE)=TRUE,\"x\",\"\")","v":""},null,"TOE 2.1 G"]
[]
[null,"BEH 1","Energiemonitoring"]
[null,null,"BEH 1.1","Basis energiemonitoring","Verplicht","Voldaan",{"$f":"IF(VLOOKUP(C221,'Doc Load_Evaluatie 3'!$B$49:$C$600,2,FALSE)=TRUE,1, 0)","v":0},{"$f":"IF(VLOOKUP(C221,'Doc Load_Evaluatie 3'!$B$2:$C$600,2,FALSE)=TRUE,Bron!$B$7,Bron!$B$8)","v":"Niet voldaan"}]
[null,null,"BEH 1.2","Update energiemonitoring","Verplicht","Voldaan",{"$f":"IF(VLOOKUP(C222,'Doc Load_Evaluatie 3'!$B$49:$C$600,2,FALSE)=TRUE,1, 0)","v":0},{"$f":"IF(VLOOKUP(C222,'Doc Load_Evaluatie 3'!$B$2:$C$600,2,FALSE)=TRUE,Bron!$B$7,Bron!$B$8)","v":"Niet voldaan"}]
[null,null,"BEH 1.3","Submetering van de grootste verbruikers, gebruikers en zones","Verplicht","Voldaan",{"$f":"IF(VLOOKUP(C223,'Doc Load_Evaluatie 3'!$B$49:$C$600,2,FALSE)=TRUE,1, 0)","v":0},{"$f":"IF(VLOOKUP(C223,'Doc Load_Evaluatie 3'!$B$2:$C$600,2,FALSE)=TRUE,Bron!$B$7,Bron!$B$8)","v":"Niet voldaan"}]
[null,null,"BEH 1.4","Basis kwaliteitsopvolging ","Verplicht","Voldaan",{"$f":"IF(VLOOKUP(C224,'Doc Load_Evaluatie 3'!$B$49:$C$600,2,FALSE)=TRUE,1, 0)","v":0},{"$f":"IF(VLOOKUP(C224,'Doc Load_Evaluatie 3'!$B$2:$C$600,2,FALSE)=TRUE,Bron!$B$7,Bron!$B$8)","v":"Niet voldaan"}]
[null,null,"BEH 1.5","Opleiding i.f.v. beheer","Verplicht","Voldaan",{"$f":"IF(VLOOKUP(C225,'Doc Load_Evaluatie 3'!$B$49:$C$600,2,FALSE)=TRUE,1, 0)","v":0},{"$f":"IF(VLOOKUP(C225,'Doc Load_Evaluatie 3'!$B$2:$C$600,2,FALSE)=TRUE,Bron!$B$7,Bron!$B$8)","v":"Niet voldaan"}]
[null,null,"BEH 1.6","Visualisatietool","Verplicht","Voldaan",{"$f":"IF(VLOOKUP(C226,'Doc Load_Evaluatie 3'!$B$49:$C$600,2,FALSE)=TRUE,1, 0)","v":0},{"$f":"IF(VLOOKUP(C226,'Doc Load_Evaluatie 3'!$B$2:$C$600,2,FALSE)=TRUE,Bron!$B$7,Bron!$B$8)","v":"Niet voldaan"}]
[]
[null,"PROFIT",null,"aantal vrije criteria",5,null,{"$f":"G203+G206+G207+G208+G211","v":0}]
[null,null,null,"aantal verplichte criteria",6,null,{"$f":"G221+G222+G223+G224+G225+G226","v":0}]
[null,null,null,"totaal",{"$f":"E228+E229","v":11},null,{"$f":"G228+G229","v":0}]
[]
[]
[null,"OVERZICHT GEREALISEERDE CRITERIA",null,null,null,null,"PROJECT"]
[null,"DEEL I: BASISPRINCIPES"]
[null,null,null,"aantal vrije criteria",{"$f":"E23","v":0},null,{"$f":"G23","v":0}]
[null,null,null,"aantal verplichte criteria",{"$f":"E24","v":6},null,{"$f":"G24","v":0}]
[null,"DEEL II: SITE"]
[null,null,null,"aantal vrije criteria",{"$f":"E54","v":6},null,{"$f":"G54","v":0}]
[null,null,null,"aantal verplichte criteria",{"$f":"E55","v":4},null,{"$f":"G55","v":0}]
[null,"DEEL III [A]: GEBOUW - people"]
[null,null,null,"aantal vrije criteria",{"$f":"E133","v":19},null,{"$f":"G133","v":0}]
[null,null,null,"aantal verplichte criteria",{"$f":"E134","v":8},null,{"$f":"G134","v":0}]
[null,"DEEL III [B]: GEBOUW - planet"]
[null,null,null,"aantal vrije criteria",{"$f":"E196","v":17},null,{"$f":"G196","v":0}]
[null,null,null,"aantal verplichte criteria",{"$f":"E197","v":15},null,{"$f":"G197","v":0}]
[null,"DEEL III [C]: GEBOUW - profit"]
[null,null,null,"aantal vrije criteria",{"$f":"E228","v":5},null,{"$f":"G228","v":0}]
[null,null,null,"aantal verplichte criteria",{"$f":"E229","v":6},null,{"$f":"G229","v":0}]
[null,"TOTAAL"]
[null,null,null,"aantal vrije criteria",{"$f":"E235+E238+E241+E244+E247","v":47},null,{"$f":"G235+G238+G241+G244+G247","v":0}]
[null,null,null,"aantal verplichte criteria",{"$f":"E236+E239+E242+E245+E248","v":39},null,{"$f":"G236+G239+G242+G245+G248","v":0}]
[null,null,null,null,{"$f":"E250+E251","v":86}]
[]
[null,null,null,"min. te behalen vrije criteria",10,null,{"$f":"G250","v":0}]
[null,null,null,"totaal aantal te realiseren criteria",{"$f":"E251+E254","v":49},null,{"$f":"G251+G250","v":0}]

{"sheet":"Doc Load_Aanvraag","index":4,"n_rows":563,"n_cols":8,"rows_kept":563,"cut":false,"hidden":true,"merged":[]}
[]
[null,"Naam besturingselement WORD","Waarde bestruingselement WORD",null,null,null,"Upload AXI - Veld","Upload AXI - waarde"]
[null,null,false,null,null,null,"MIL 1.3 Uitstekend vla",{"$f":"IFERROR(VLOOKUP(G3,$B$51:$C$645,2,FALSE),\"\")","v":false}]
[null,"CON 1.1",true,null,null,null,"MIL 1.3 Beter vla",{"$f":"IFERROR(VLOOKUP(G4,$B$51:$C$645,2,FALSE),\"\")","v":false}]
[null,"CON 1.1",false,null,null,null,"MIL 1.3 Goed vla",false]
[null,"CON 1.2",false,null,null,null,"MIL 1.3 Uitstekend bru",false]
[null,"CON 1.3",false,null,null,null,"MIL 1.3 Beter bru",false]
[null,"MA 1.2",false,null,null,null,"MIL 1.3 Goed bru",false]
[null,"MIL 1",false,null,null,null,"MIL 2 Uitstekend",false]
[null,"MIL 2",false,null,null,null,"MIL 2 Beter",false]
[null,"MIL 3",false,null,null,null,"MIL 2 Goed",false]
[null,"SOC 3",false,null,null,null,"BIN 1.1",false]
[null,"MA 1.1",false,null,null,null,"BIN 1.2",false]
[null,"MA 1.3",false,null,null,null,"BIN 1.3",false]
[null,null,false,null,null,null,"BIN 1.4",false]
[null,"MOB 1",false,null,null,null,"BIN 1.5",false]
[null,"BIN 4.1",false,null,null,null,"BIN 1.6",false]
[null,"BIN 4.5",false,null,null,null,"BIN 1.7",false]
[null,"BIN 4.4",false,null,null,null,"AdaptiefZomercomfort",{"$f":"IFERROR(VLOOKUP(G19,$B$51:$C$645,2,FALSE),C183)","v":false}]
[null,"BIN 4.8",false,null,null,null,"NietAdaptiefZomercomfort",{"$f":"IFERROR(VLOOKUP(G20,$B$51:$C$645,2,FALSE),C184)","v":false}]
[null,"BIN 3.4",false,null,null,null,"BIN 2.1 opt1",false]
[null,"WAT 2",false,null,null,null,"ZonweringOptie1_1",{"$f":"IFERROR(VLOOKUP(G22,$B$51:$C$645,2,FALSE),C198)","v":"Kies een item."}]
[null,"OMG 1.1",false,null,null,null,"ZonweringOptie1_2","Kies een item."]
[null,"OMG 1.2",false,null,null,null,"ZonweringOptie1_3","Kies een item."]
[null,"OMG 1.3",false,null,null,null,"BIN 2.1 opt2",false]
[null,"BIN 4.2",false,null,null,null,"ZonweringOptie2_1",{"$f":"IFERROR(VLOOKUP(G26,$B$51:$C$645,2,FALSE),C214)","v":"Kies een item."}]
[null,"BIN 2.2",false,null,null,null,"ZonweringOptie2_2","Kies een item."]
[null,"ENE 1.3",false,null,null,null,"ZonweringOptie2_3","Kies een item."]
[null,"BIN 2.1",false,null,null,null,"SOC 3.1",false]
[null,"BIN 3.3",false,null,null,null,"SOC32 Uitstekend",false]
[null,"BIN 4.6",false,null,null,null,"SOC32 beter",false]
[null,"BIN 1",false,null,null,null,"SOC32 goed",false]
[null,"WAT 1",false,null,null,null,"SOC 3.3",false]
[null,"ENE 2",false,null,null,null,"SOC 3.4",false]
[null,"TOE 2.1",false,null,null,null,"LabelToegankelijkheidA+",false]
[null,"BIN 4.3",false,null,null,null,"EpeilNB","Klik of tik om tekst in te voeren."]
[null,"BIN 4.7",false,null,null,null,"EpeilIER","Klik of tik om tekst in te voeren."]
[null,"ENE 1.1",false,null,null,null,"HernTech1","Kies een item."]
[null,"ENE 1.2",false,null,null,null,"Technweerhouden1",false]
[null,"BIN 3.1",false,null,null,null,"HernTech2","Kies een item."]
[null,"BIN 3.2",false,null,null,null,"Technweerhouden2",false]
[null,"GEB 1.1",false,null,null,null,"HernTech3","Kies een item."]
[null,"GEB 1.2",false,null,null,null,"Technweerhouden3",false]
[null,"OMG 2",false,null,null,null,"HernTech4","Kies een item."]
[null,"BIN 2.3",false,null,null,null,"Technweerhouden4",true]
[null,"WAT 3",false,null,null,null,"HernTech5","Kies een item."]
[null,"MAT 2",false,null,null,null,"Technweerhouden5",false]
[null,"ENE 3",false,null,null,null,"HernTech6","Kies een item."]
[null,"LCC 3.1",false,null,null,null,"Technweerhouden6",false]
[null,"BEH 1",false,null,null,null,"ENE22 Uitstekend",false]
[null,"CON 1.1",false,null,null,null,"ENE22 beter",false]
[null,"CON 1.1.1",false,null,null,null,"ENE22 goed",false]
[null,"CON 1.1.2",false,null,null,null,"ENE 2.3",false]
[null,"CON 1.1.3",false,null,null,null,"ENE 2.4",false]
[null,"CON 1.2",false,null,null,null,"ENE 2.5",false]
[null,"CON 1.3",false,null,null,null,"verwarmingstype","Kies een item."]
[null,null,false,null,null,null,"verwarmingstype2","Kies een item."]
[null,"PRO 1.1",false,null,null,null,"Ventilatiesysteem 1","Kies een item."]
[null,"ARCH",false,null,null,null,"Ventilatiesysteem 2","Kies een item."]
[null,"ing stabiliteit",false,null,null,null,"Ventilatieboost","Klik of tik om tekst in te voeren."]
[null,"ing technieken",false,null,null,null,"WAT 2.1 Uitstekend",false]
[null,"ing akoestiek",false,null,null,null,"WAT 2.1 beter",false]
[null,"aannemer",false,null,null,null,"WAT 2.1 goed",false]
[null,"veiligheidsco",false,null,null,null,"LCC 3.1",false]
[null,"projectmanager",false,null,null,null,"CO2uitstoot","Klik of tik om tekst in te voeren."]
[null,"ruimtelijk planner",false,null,null,null,"MAT 2.1",false]
[null,"EPB-verslager",false,null,null,null,"afwijkingArt. 1","Kies een item."]
[null,"INTER",false,null,null,null,"afwijkingArt. 2",{"$f":"IFERROR(VLOOKUP(G68,$B$51:$C$645,2,FALSE),\"\")","v":"Kies een item."}]
[null,"StudiebureauDynSim",false,null,null,null,"afwijkingArt. 3","Kies een item."]
[null,"AndereTeamleden",false,null,null,null,"afwijkingArt. 1.2","Kies een item."]
[null,null,"Klik of tik om tekst in te voeren.",null,null,null,"afwijkingArt. 2.2","Kies een item."]
[null,"PRO 1.2",false,null,null,null,"afwijkingArt. 3.2","Kies een item."]
[null,"PRO 1.3",false]
[null,"MOB 1",false]
[null,"MOB 1.1",false]
[null,"MOB 1.1 Uitstekend",false]
[null,"MOB 1.1 Beter",false]
[null,"MOB 1.1 Goed",false]
[null,"MOB 1.1 Matig",false]
[null,"MOB 1.2",false]
[null,"MOB 1.2 Uitstekend",false]
[null,"MOB 1.2 Beter",false]
[null,"MOB 1.2 Goed",false]
[null,"MOB 1.3",false]
[null,"MOB 1.3 Uitstekend",false]
[null,"MOB 1.3 Beter",false]
[null,"MOB 1.3 Goed",false]
[null,"MA 1.1",false]
[null,null,false]
[null,null,"Klik of tik om een datum in te voeren."]
[null,null,false]
[null,null,"Klik of tik om een datum in te voeren."]
[null,null,false]
[null,null,false]
[null,null,false]
[null,null,false]
[null,null,false]
[null,null,false]
[null,null,"Klik of tik om tekst in te voeren."]
[null,"MA 1.2",false]
[null,"MA 1.3",false]
[null,"MA1.3 POS1",false]
[null,"MA13 NEG1",false]
[null,null,"Klik of tik om tekst in te voeren."]
[null,"MA13 POS2",false]
[null,"MA13 NEG2",false]
[null,null,"Klik of tik om tekst in te voeren."]
[null,"MA13 POS3",false]
[null,"MA13 NEG3",false]
[null,null,"Klik of tik om tekst in te voeren."]
[null,"MA13 POS4",false]
[null,"MA13 NEG4",false]
[null,null,"Klik of tik om tekst in te voeren."]
[null,"MA13 POS5",false]
[null,"MA13 NEG5",false]
[null,null,"Klik of tik om tekst in te voeren."]
[null,"MA13 POS6",false]
[null,"MA13 NEG6",false]
[null,null,"Klik of tik om tekst in te voeren."]
[null,"MA13 POS7",false]
[null,"MA13 NEG7",false]
[null,null,"Klik of tik om tekst in te voeren."]
[null,"MA13 POS8",false]
[null,"MA13 NEG8",false]
[null,null,"Klik of tik om tekst in te voeren."]
[null,"MA13 POS9",false]
[null,null,"Klik of tik om tekst in te voeren."]
[null,"MA13 uit",false]
[null,"MA13 beter",false]
[null,"MA13 goed",false]
[null,null,false]
[null,"MA 2.1",false]
[null,"MA 2.2",false]
[null,"MA 2.3",false]
[null,"MA 2.4",false]
[null,"bodemonderzoek",false]
[null,null,"Klik of tik om een datum in te voeren."]
[null,"sanering",false]
[null,null,"Klik of tik om een datum in te voeren."]
[null,"MA 2.5",false]
[null,"renovatie",false]
[null,"erfgoed",false]
[null,"MIL 1",false]
[null,"MIL 1.3 Uitstekend vla",false]
[null,"MIL 1.3 Beter vla",false]
[null,"MIL 1.3 Goed vla",false]
[null,"MIL 1.3 Uitstekend bru",false]
[null,"MIL 1.3 Beter bru",false]
[null,"MIL 1.3 Goed bru",false]
[null,"MIL 2",false]
[null,"MIL 2 Uitstekend",false]
[null,"MIL 2 Beter",false]
[null,"MIL 2 Goed",false]
[null,"MIL 3",false]
[null,"MIL 3 Uitstekend",false]
[null,"MIL 3 Beter",false]
[null,"MIL 3 Goed",false]
[null,"BIN 1",false]
[null,"BIN1 uitstekend",false]
[null,"BIN1 beter",false]
[null,"BIN1 goed",false]
[null,"BIN 1.1",false]
[null,null,false]
[null,"BIN11 bestekken",false]
[null,"BIN 1.2",false]
[null,null,false]
[null,null,false]
[null,"BIN 1.3",false]
[null,null,false]
[null,null,false]
[null,"BIN 1.4",false]
[null,null,false]
[null,null,false]
[null,"BIN 1.5",false]
[null,null,false]
[null,null,false]
[null,"BIN 1.6",false]
[null,"BIN 1.7",false]
[null,null,false]
[null,null,false]
[null,"BIN 2.1",false]
[null,"AdaptiefZomercomfort",false]
[null,"NietAdaptiefZomercomfort",false]
[null,"NatVentobvThermMassa",false]
[null,"RadiatieveKoeling",false]
[null,"EvaporatieveKoelingGroendak",false]
[null,"SurfaceKoeling",false]
[null,"EvaporatieveKoelingVentilatieUnit",false]
[null,null,false]
[null,"AndereNietAdaptieveKoeling","Klik of tik om tekst in te voeren."]
[null,"Aardwarmtewisselaar",false]
[null,"Free-cooling",false]
[null,"Nachtkoeling",false]
[null,"Topkoeling",false]
[null,null,false]
[null,"AndereAdaptieveKoeling","Klik of tik om tekst in te voeren."]
[null,"BIN 2.1 opt1",false]
[null,"BIN 2.1 opt1 A1",false]
[null,null,"Klik of tik om tekst in te voeren."]
[null,null,"Klik of tik om tekst in te voeren."]
[null,"BIN 2.1 opt1 A2",false]
[null,"ZonweringOptie1_1","Kies een item."]
[null,"ZonweringOptie1_2","Kies een item."]
[null,"ZonweringOptie1_3","Kies een item."]
[null,null,false]
[null,"BIN 2.1 opt1 B Uitstekend",false]
[null,"BIN 2.1 opt1 B Beter",false]
[null,"BIN 2.1 opt1 B Goed",false]
[null,"BIN 2.1 actief uitstekend",false]
[null,"BIN 2.1 actief beter",false]
[null,"BIN 2.1 actief goed",false]
[null,"BIN 2.1 opt2",false]
[null,"BIN 2.1 opt2 A1",false]
[null,null,"Klik of tik om tekst in te voeren."]
[null,null,"Klik of tik om tekst in te voeren."]
[null,"BIN 2.1 opt2 A2",false]
[null,"ZonweringOptie2_1","Kies een item."]
[null,"ZonweringOptie2_2","Kies een item."]
[null,"ZonweringOptie2_3","Kies een item."]
[null,null,"Klik of tik om tekst in te voeren."]
[null,"BIN 2.1 opt2 B",false]
[null,"BIN 2.2",false]
[null,"BIN 2.2 vert temp",false]
[null,"BIN22 A Uitstekend",false]
[null,"BIN22 A beter",false]
[null,"BIN22 A goed",false]
[null,"BIN 2.2 vloertemp",false]
[null,"BIN22 B Uitstekend",false]
[null,"BIN22 B beter",false]
[null,"BIN22 B goed",false]
[null,"BIN 2.2 straling",false]
[null,"BIN22 C Uitstekend",false]
[null,"BIN22 C beter",false]
[null,"BIN22 C goed",false]
[null,"BIN 2.2 tocht",false]
[null,"BIN22 D Uitstekend",false]
[null,"BIN22 D beter",false]
[null,"BIN22 D goed",false]
[null,"BIN 2.3",false]
[null,"BIN23 Uitstekend",false]
[null,"BIN23 beter",false]
[null,"BIN23 goed",false]
[null,"BIN 3.1",false]
[null,"Ventilatiesysteem 1","Kies een item."]
[null,"Ventilatiesysteem 2","Kies een item."]
[null,null,"Klik of tik om tekst in te voeren."]
[null,null,"Klik of tik om tekst in te voeren."]
[null,null,"Klik of tik om tekst in te voeren."]
[null,null,"Klik of tik om tekst in te voeren."]
[null,"Ventilatieboost","Klik of tik om tekst in te voeren."]
[null,"BIN31 Uitstekend",false]
[null,"BIN31 beter",false]
[null,"BIN31 goed",false]
[null,"BIN 3.2",false]
[null,"BIN 32 Uitstekend",false]
[null,"BIN32 beter",false]
[null,"BIN32 goed",false]
[null,"BIN 3.3",false]
[null,"BIN 3.3 opt1",false]
[null,null,false]
[null,null,"Klik of tik om tekst in te voeren."]
[null,null,"Klik of tik om tekst in te voeren."]
[null,null,"Klik of tik om tekst in te voeren."]
[null,null,"Klik of tik om tekst in te voeren."]
[null,"BIN 3.3 opt2",false]
[null,"BIN 3.3 opt3",false]
[null,null,false]
[null,null,"Klik of tik om tekst in te voeren."]
[null,null,"Klik of tik om tekst in te voeren."]
[null,null,"Klik of tik om tekst in te voeren."]
[null,null,"Klik of tik om tekst in te voeren."]
[null,"BIN 3.4",false]
[null,null,false]
[null,null,false]
[null,"BIN 4.1",false]
[null,"BIN 4.1 opt1",false]
[null,"BIN41 Uitstekend",false]
[null,"BIN41 beter",false]
[null,"BIN41 goed",false]
[null,"BIN 4.1 opt2",false]
[null,"BIN 4.2",false]
[null,null,"Klik of tik om tekst in te voeren."]
[null,"BIN 4.2 Uitstekend",false]
[null,"BIN 4.2 Uitstekend",false]
[null,"BIN 4.2 beter",false]
[null,"BIN 4.2 goed",false]
[null,"BIN 4.2 geen",false]
[null,"BIN 4.3",false]
[null,null,false]
[null,"BIN 4.4",false]
[null,"BIN44 landschap",false]
[null,"BIN44 hemel",false]
[null,"BIN44 grond",false]
[null,null,false]
[null,"BIN 4.5",false]
[null,"BIN 4.6",false]
[null,"BIN 4.7",false]
[null,"BIN 4.7 A",false]
[null,"BIN 4.7 B",false]
[null,"BIN 4.7 C",false]
[null,"BIN 4.8",false]
[null,"BIN 4.8 A",false]
[null,"BIN 4.8 B",false]
[null,"BIN 4.8 C",false]
[null,"SOC 3",false]
[null,"SOC 3.1",false]
[null,null,"Klik of tik om een datum in te voeren."]
[null,null,false]
[null,"SOC 3.2",false]
[null,"SOC32 Uitstekend",false]
[null,"SOC32 beter",false]
[null,"SOC32 goed",false]
[null,"SOC 3.3",false]
[null,"SOC 3.4",false]
[null,"LabelToegankelijkheidA+",false]
[null,"GEB 1.1",false]
[null,"Zonwering A",false]
[null,"Zonwering B",false]
[null,"Verblinding A",false]
[null,"Verblinding B",false]
[null,"Temp a",false]
[null,"Temp B",false]
[null,"Temp C",false]
[null,"Verlichting A",false]
[null,"Verlichting B",false]
[null,"Verlichting C",false]
[null,"Ventilatie A",false]
[null,"Ventilatie B",false]
[null,"GEB11 Uitstekend",false]
[null,"GEB11 beter",false]
[null,"GEB11 goed",false]
[null,"GEB 1.2",false]
[null,"ENE 1.1",false]
[null,null,"Klik of tik om tekst in te voeren."]
[null,null,"Klik of tik om tekst in te voeren."]
[null,"EpeilNB","Klik of tik om tekst in te voeren."]
[null,"ENE11 nieuw Uitstekend",false]
[null,"ENE11 nieuw beter",false]
[null,"ENE11 nieuw goed",false]
[null,null,"Klik of tik om tekst in te voeren."]
[null,null,"Klik of tik om tekst in te voeren."]
[null,"EpeilIER","Klik of tik om tekst in te voeren."]
[null,"ENE11 ier Uitstekend",false]
[null,"ENE11 ier beter",false]
[null,"ENE11 ier goed",false]
[null,"UwaardeVerb","Klik of tik om tekst in te voeren."]
[null,null,"Klik of tik om tekst in te voeren."]
[null,null,"Klik of tik om tekst in te voeren."]
[null,"ENE11 verb Uitstekend",false]
[null,"ENE11 verb beter",false]
[null,"ENE11 verb goed",false]
[null,null,"Klik of tik om tekst in te voeren."]
[null,null,"Klik of tik om tekst in te voeren."]
[null,"PEvBrussel","Klik of tik om tekst in te voeren."]
[null,null,"Klik of tik om tekst in te voeren."]
[null,null,"Klik of tik om tekst in te voeren."]
[null,"NEVBrussel","Klik of tik om tekst in te voeren."]
[null,null,"Klik of tik om tekst in te voeren."]
[null,null,"Klik of tik om tekst in te voeren."]
[null,"UwaardeBrussel","Klik of tik om tekst in te voeren."]
[null,"ENE11 nieuw Uitstekend",false]
[null,"ENE11 nieuw beter",false]
[null,"ENE11 nieuw goed",false]
[null,"ENE 1.2",false]
[null,null,false]
[null,"ENE 1.3",false]
[null,null,false]
[null,null,false]
[null,"ENE 2",false]
[null,"ENE 2.1",false]
[null,"HernTech1","Kies een item."]
[null,"Technweerhouden1",false]
[null,"HernTech2","Kies een item."]
[null,"Technweerhouden2",false]
[null,"HernTech3","Kies een item."]
[null,"Technweerhouden3",false]
[null,"HernTech4","Kies een item."]
[null,"Technweerhouden4",true]
[null,"HernTech5","Kies een item."]
[null,"Technweerhouden5",false]
[null,"HernTech6","Kies een item."]
[null,"Technweerhouden6",false]
[null,"ENE 2.2",false]
[null,"ENE22 Uitstekend",false]
[null,"ENE22 beter",false]
[null,"ENE22 goed",false]
[null,"ENE 2.3",false]
[null,"ENE 2.4",false]
[null,"ENE 2.5",false]
[null,"ENE 3",false]
[null,"ENE 3.1",false]
[null,null,false]
[null,"ENE 3.2",false]
[null,null,false]
[null,"ENE 3.3",false]
[null,null,false]
[null,"ENE 3.4",false]
[null,null,false]
[null,"ENE 3.5",false]
[null,"verwarmingstype","Kies een item."]
[null,"verwarmingstype2","Kies een item."]
[null,"Verwarmingselementen","Kies een item."]
[null,"Verwarmingselementen2","Kies een item."]
[null,"Verwarmingselementen3","Kies een item."]
[null,"warmwaterbereider","Klik of tik om tekst in te voeren."]
[null,null,false]
[null,"ENE 3.6",false]
[null,"ENE 3.7",false]
[null,"ENE 3.8",false]
[null,null,false]
[null,"MAT 2",false]
[null,"MAT 2.1",false]
[null,"MAT 2.2",false]
[null,null,false]
[null,"MAT22 Uitstekend",false]
[null,"MAT22 beter",false]
[null,"MAT22 goed",false]
[null,"WAT 1",false]
[null,"WAT 1 Uitstekend",false]
[null,"WAT 1 beter",false]
[null,"WAT 1 goed",false]
[null,"WAT 1.1",false]
[null,null,false]
[null,null,false]
[null,null,false]
[null,null,false]
[null,null,false]
[null,null,false]
[null,"WAT 1.2",false]
[null,null,false]
[null,"WAT 1.3",false]
[null,null,false]
[null,null,false]
[null,null,false]
[null,"WAT 2",false]
[null,null,"Kies een item."]
[null,null,"Kies een item."]
[null,null,"Kies een item."]
[null,null,"Kies een item."]
[null,null,"Kies een item."]
[null,null,"Klik of tik om tekst in te voeren."]
[null,null,"Kies een item."]
[null,"WAt 2.1",false]
[null,null,false]
[null,null,false]
[null,null,"Klik of tik om tekst in te voeren."]
[null,"WAT 2.1 Uitstekend",false]
[null,"WAT 2.1 beter",false]
[null,"WAT 2.1 goed",false]
[null,"WAT 2.2",false]
[null,"WAT 2.2 Uitstekend",false]
[null,"WAT 2.2 beter",false]
[null,"WAT 2.2 goed",false]
[null,"WAT 2.3",false]
[null,null,false]
[null,"WAT 3",false]
[null,"WAT 3.1",false]
[null,"WAT 3.1 Uitstekend",false]
[null,"WAT 3.1 beter",false]
[null,"WAT 3.1 goed",false]
[null,null,false]
[null,"WAt 3.2",false]
[null,"WAT 3.2 Uitstekend",false]
[null,"WAT 3.2 beter",false]
[null,"WAT 3.2 goed",false]
[null,null,false]
[null,"WAT 3.3",false]
[null,null,false]
[null,null,false]
[null,null,false]
[null,null,false]
[null,null,false]
[null,null,false]
[null,null,false]
[null,null,false]
[null,"OMG 1.1",false]
[null,"OMG 1.2",false]
[null,null,"Klik of tik om tekst in te voeren."]
[null,null,"Klik of tik om tekst in te voeren."]
[null,"OMG 1.3",false]
[null,"OMG 2",false]
[null,"OMG 2.1",false]
[null,"OMG 2.1 Uitstekend",false]
[null,"OMG 2.1 beter",false]
[null,"OMG 2.1 goed",false]
[null,"OMG 2.1 E1",false]
[null,"OMG 2.1 E2",false]
[null,"OMG 2.1 E3",false]
[null,"OMG 2.1 E4",false]
[null,"OMG 2.1 E1",false]
[null,"OMG 2.1 E2",false]
[null,"OMG 2.1 E3",false]
[null,"OMG 2.1 E4",false]
[null,null,false]
[null,"OMG 2.1 E1",false]
[null,"OMG 2.1 E2",false]
[null,"OMG 2.1 E3",false]
[null,"OMG 2.1 E4",false]
[null,null,false]
[null,null,false]
[null,null,false]
[null,null,false]
[null,null,"Klik of tik om tekst in te voeren."]
[null,"OMG 2.2",false]
[null,"OMG 2.2 Uitstekend",false]
[null,"OMG 2.2 Beter",false]
[null,"OMG 2.2 Goed",false]
[null,"OMG 2.3",false]
[null,"OMG 2.3 Uitstekend",false]
[null,"OMG 2.3 Beter",false]
[null,"OMG 2.3 Goed",false]
[null,"OMG 2.4",false]
[null,"OMG 2.4 Uitstekend",false]
[null,"OMG 2.4 Beter",false]
[null,"OMG 2.4 Goed",false]
[null,"LCC 3.1",false]
[null,"CO2uitstoot","Klik of tik om tekst in te voeren."]
[null,"TOE 1",false]
[null,"TOE 1.1",false]
[null,"TOE 1.1 Uitstekend",false]
[null,"TOE 1.1 Beter",false]
[null,"TOE 1.1 Goed",false]
[null,"TOE 1.2",false]
[null,"TOE 1.3",false]
[null,"TOE 2.1",false]
[null,"TOE 2.1 A",false]
[null,"TOE 2.1 B",false]
[null,"TOE 2.1 C",false]
[null,"TOE 2.1 D",false]
[null,"TOE 2.1 E",false]
[null,"TOE 2.1 F",false]
[null,"TOE 2.1 G",false]
[null,null,false]
[null,null,false]
[null,"BEH 1",false]
[null,"BEH 1.1",false]
[null,null,"Klik of tik om tekst in te voeren."]
[null,null,false]
[null,"BEH 1.2",false]
[null,null,false]
[null,"BEH 1.3",false]
[null,null,false]
[null,"BEH 1.4",false]
[null,null,false]
[null,null,false]
[null,"BEH 1.5",false]
[null,null,false]
[null,null,false]
[null,"BEH 1.6",false]
[null,null,"Klik of tik om tekst in te voeren."]
[null,null,false]
[null,"afwijkingArt. 1","Kies een item."]
[null,"Prestatie afwijkingsart 1","Kies een item."]
[null,"afwijkingArt. 2","Kies een item."]
[null,"Prestatie afwijkingsart 2","Kies een item."]
[null,"afwijkingArt. 3","Kies een item."]
[null,"Prestatie afwijkingsart 3","Kies een item."]
[null,"afwijkingArt. 1.2","Kies een item."]
[null,"Prestatie afwijkingsart 1","Kies een item."]
[null,"afwijkingArt. 2.2","Kies een item."]
[null,"Prestatie afwijkingsart 2","Kies een item."]
[null,"afwijkingArt. 3.2","Kies een item."]
[null,"Prestatie afwijkingsart 3","Kies een item."]

{"sheet":"Doc Load_Evaluatie 2","index":5,"n_rows":556,"n_cols":8,"rows_kept":556,"cut":false,"hidden":true,"merged":[]}
[]
[null,"Naam besturingselement WORD","Waarde bestruingselement WORD",null,null,null,"Upload AXI - Veld","Upload AXI - waarde"]
[null,null,false,null,null,null,"MIL 1.3 Uitstekend vla",{"$f":"IFERROR(VLOOKUP(G3,$B$51:$C$645,2,FALSE),\"\")","v":false}]
[null,"CON 1.1",true,null,null,null,"MIL 1.3 Beter vla",{"$f":"IFERROR(VLOOKUP(G4,$B$51:$C$645,2,FALSE),\"\")","v":false}]
[null,"CON 1.1",false,null,null,null,"MIL 1.3 Goed vla",false]
[null,"CON 1.2",false,null,null,null,"MIL 1.3 Uitstekend bru",false]
[null,"CON 1.3",false,null,null,null,"MIL 1.3 Beter bru",false]
[null,"MA 1.2",false,null,null,null,"MIL 1.3 Goed bru",false]
[null,"MIL 1",false,null,null,null,"MIL 2 Uitstekend",false]
[null,"MIL 2",false,null,null,null,"MIL 2 Beter",false]
[null,"MIL 3",false,null,null,null,"MIL 2 Goed",false]
[null,"SOC 3",false,null,null,null,"BIN 1.1",false]
[null,"MA 1.1",false,null,null,null,"BIN 1.2",false]
[null,"MA 1.3",false,null,null,null,"BIN 1.3",false]
[null,null,false,null,null,null,"BIN 1.4",false]
[null,"MOB 1",false,null,null,null,"BIN 1.5",false]
[null,"BIN 4.1",false,null,null,null,"BIN 1.6",false]
[null,"BIN 4.5",false,null,null,null,"BIN 1.7",false]
[null,"BIN 4.4",false,null,null,null,"AdaptiefZomercomfort",{"$f":"IFERROR(VLOOKUP(G19,$B$51:$C$645,2,FALSE),C183)","v":false}]
[null,"BIN 4.8",false,null,null,null,"NietAdaptiefZomercomfort",{"$f":"IFERROR(VLOOKUP(G20,$B$51:$C$645,2,FALSE),C184)","v":false}]
[null,"BIN 3.4",false,null,null,null,"BIN 2.1 opt1",false]
[null,"WAT 2",false,null,null,null,"ZonweringOptie1_1",{"$f":"IFERROR(VLOOKUP(G22,$B$51:$C$645,2,FALSE),C198)","v":false}]
[null,"OMG 1.1",false,null,null,null,"ZonweringOptie1_2",""]
[null,"OMG 1.2",false,null,null,null,"ZonweringOptie1_3",""]
[null,"OMG 1.3",false,null,null,null,"BIN 2.1 opt2",false]
[null,"BIN 4.2",false,null,null,null,"ZonweringOptie2_1",{"$f":"IFERROR(VLOOKUP(G26,$B$51:$C$645,2,FALSE),C214)","v":false}]
[null,"BIN 2.2",false,null,null,null,"ZonweringOptie2_2",""]
[null,"ENE 1.3",false,null,null,null,"ZonweringOptie2_3",""]
[null,"BIN 2.1",false,null,null,null,"SOC 3.1",false]
[null,"BIN 3.3",false,null,null,null,"SOC32 Uitstekend",false]
[null,"BIN 4.6",false,null,null,null,"SOC32 beter",false]
[null,"BIN 1",false,null,null,null,"SOC32 goed",false]
[null,"WAT 1",false,null,null,null,"SOC 3.3",false]
[null,"ENE 2",false,null,null,null,"SOC 3.4",false]
[null,"TOE 2.1",false,null,null,null,"LabelToegankelijkheidA+",false]
[null,"BIN 4.3",false,null,null,null,"EpeilNB","Klik of tik om tekst in te voeren."]
[null,"BIN 4.7",false,null,null,null,"EpeilIER","Klik of tik om tekst in te voeren."]
[null,"ENE 1.1",false,null,null,null,"HernTech1","Klik of tik om tekst in te voeren."]
[null,"ENE 1.2",false,null,null,null,"Technweerhouden1",false]
[null,"BIN 3.1",false,null,null,null,"HernTech2","Klik of tik om tekst in te voeren."]
[null,"BIN 3.2",false,null,null,null,"Technweerhouden2",false]
[null,"GEB 1.1",false,null,null,null,"HernTech3","Klik of tik om tekst in te voeren."]
[null,"GEB 1.2",false,null,null,null,"Technweerhouden3",false]
[null,"OMG 2",false,null,null,null,"HernTech4","Klik of tik om tekst in te voeren."]
[null,"BIN 2.3",false,null,null,null,"Technweerhouden4",true]
[null,"WAT 3",false,null,null,null,"HernTech5","Klik of tik om tekst in te voeren."]
[null,"MAT 2",false,null,null,null,"Technweerhouden5",false]
[null,"ENE 3",false,null,null,null,"HernTech6","Klik of tik om tekst in te voeren."]
[null,"LCC 3.1",false,null,null,null,"Technweerhouden6",false]
[null,"BEH 1",false,null,null,null,"ENE22 Uitstekend",false]
[null,"CON 1.1",false,null,null,null,"ENE22 beter",false]
[null,"CON 1.1.1",false,null,null,null,"ENE22 goed",false]
[null,"CON 1.1.2",false,null,null,null,"ENE 2.3",false]
[null,"CON 1.1.3",false,null,null,null,"ENE 2.4",false]
[null,"CON 1.2",false,null,null,null,"ENE 2.5",false]
[null,"CON 1.3",false,null,null,null,"verwarmingstype","Kies een item."]
[null,null,false,null,null,null,"verwarmingstype2",""]
[null,"PRO 1.1",false,null,null,null,"verwarmingstype3",""]
[null,"ARCH",false,null,null,null,"Ventilatiesysteem 1","Kies een item."]
[null,"ing stabiliteit",false,null,null,null,"Ventilatiesysteem 2","Kies een item."]
[null,"ing technieken",false,null,null,null,"Ventilatieboost","Klik of tik om tekst in te voeren."]
[null,"ing akoestiek",false,null,null,null,"WAT 2.1 Uitstekend",false]
[null,"aannemer",false,null,null,null,"WAT 2.1 beter",false]
[null,"veiligheidsco",false,null,null,null,"WAT 2.1 goed",false]
[null,"projectmanager",false,null,null,null,"LCC 3.1",false]
[null,"ruimtelijk planner",false,null,null,null,"CO2uitstoot","Klik of tik om tekst in te voeren."]
[null,"EPB-verslager",false,null,null,null,"MAT 2.1",false]
[null,"INTER",false,null,null,null,"afwijkingArt. 1",{"$f":"IFERROR(VLOOKUP(G68,$B$51:$C$645,2,FALSE),\"\")","v":"Kies een item."}]
[null,"StudiebureauDynSim",false,null,null,null,"afwijkingArt. 2","Kies een item."]
[null,"AndereTeamleden",false,null,null,null,"afwijkingArt. 3","Kies een item."]
[null,null,"Klik of tik om tekst in te voeren.",null,null,null,"afwijkingArt. 1.2","Kies een item."]
[null,"PRO 1.2",false,null,null,null,"afwijkingArt. 2.2","Kies een item."]
[null,"PRO 1.3",false,null,null,null,"afwijkingArt. 3.2",{"$f":"IFERROR(VLOOKUP(G73,$B$51:$C$645,2,FALSE),\"\")","v":"Kies een item."}]
[null,"MOB 1",false]
[null,"MOB 1.1",false]
[null,"MOB 1.1 Uitstekend",false]
[null,"MOB 1.1 Beter",false]
[null,"MOB 1.1 Goed",false]
[null,"MOB 1.1 Matig",false]
[null,"MOB 1.2",false]
[null,"MOB 1.2 Uitstekend",false]
[null,"MOB 1.2 Beter",false]
[null,"MOB 1.2 Goed",false]
[null,"MOB 1.3",false]
[null,"MOB 1.3 Uitstekend",false]
[null,"MOB 1.3 Beter",false]
[null,"MOB 1.3 Goed",false]
[null,"MA 1.1",false]
[null,null,false]
[null,null,"Klik of tik om een datum in te voeren."]
[null,null,false]
[null,null,"Klik of tik om een datum in te voeren."]
[null,null,false]
[null,null,false]
[null,null,false]
[null,null,false]
[null,null,false]
[null,null,false]
[null,null,"Klik of tik om tekst in te voeren."]
[null,"MA 1.2",false]
[null,"MA 1.3",false]
[null,"MA1.3 POS1",false]
[null,"MA13 NEG1",false]
[null,null,"Klik of tik om tekst in te voeren."]
[null,"MA13 POS2",false]
[null,"MA13 NEG2",false]
[null,null,"Klik of tik om tekst in te voeren."]
[null,"MA13 POS3",false]
[null,"MA13 NEG3",false]
[null,null,"Klik of tik om tekst in te voeren."]
[null,"MA13 POS4",false]
[null,"MA13 NEG4",false]
[null,null,"Klik of tik om tekst in te voeren."]
[null,"MA13 POS5",false]
[null,"MA13 NEG5",false]
[null,null,"Klik of tik om tekst in te voeren."]
[null,"MA13 POS6",false]
[null,"MA13 NEG6",false]
[null,null,"Klik of tik om tekst in te voeren."]
[null,"MA13 POS7",false]
[null,"MA13 NEG7",false]
[null,null,"Klik of tik om tekst in te voeren."]
[null,"MA13 POS8",false]
[null,"MA13 NEG8",false]
[null,null,"Klik of tik om tekst in te voeren."]
[null,"MA13 POS9",false]
[null,null,"Klik of tik om tekst in te voeren."]
[null,"MA13 uit",false]
[null,"MA13 beter",false]
[null,"MA13 goed",false]
[null,null,false]
[null,"MA 2.1",false]
[null,"MA 2.2",false]
[null,"MA 2.3",false]
[null,"MA 2.4",false]
[null,"bodemonderzoek",false]
[null,null,"Klik of tik om een datum in te voeren."]
[null,"sanering",false]
[null,null,"Klik of tik om een datum in te voeren."]
[null,"MA 2.5",false]
[null,"renovatie",false]
[null,"erfgoed",false]
[null,"MIL 1",false]
[null,"MIL 1.3 Uitstekend vla",false]
[null,"MIL 1.3 Beter vla",false]
[null,"MIL 1.3 Goed vla",false]
[null,"MIL 1.3 Uitstekend bru",false]
[null,"MIL 1.3 Beter bru",false]
[null,"MIL 1.3 Goed bru",false]
[null,"MIL 2",false]
[null,"MIL 2 Uitstekend",false]
[null,"MIL 2 Beter",false]
[null,"MIL 2 Goed",false]
[null,"MIL 3",false]
[null,"MIL 3 Uitstekend",false]
[null,"MIL 3 Beter",false]
[null,"MIL 3 Goed",false]
[null,"BIN 1",false]
[null,"BIN1 uitstekend",false]
[null,"BIN1 beter",false]
[null,"BIN1 goed",false]
[null,"BIN 1.1",false]
[null,null,false]
[null,"BIN11 bestekken",false]
[null,"BIN 1.2",false]
[null,null,false]
[null,null,false]
[null,"BIN 1.3",false]
[null,null,false]
[null,null,false]
[null,"BIN 1.4",false]
[null,null,false]
[null,null,false]
[null,"BIN 1.5",false]
[null,null,false]
[null,null,false]
[null,"BIN 1.6",false]
[null,"BIN 1.7",false]
[null,null,false]
[null,null,false]
[null,"BIN 2.1",false]
[null,"AdaptiefZomercomfort",false]
[null,"NietAdaptiefZomercomfort",false]
[null,"NatVentobvThermMassa",false]
[null,"RadiatieveKoeling",false]
[null,"EvaporatieveKoelingGroendak",false]
[null,"SurfaceKoeling",false]
[null,"EvaporatieveKoelingVentilatieUnit",false]
[null,null,false]
[null,"AndereNietAdaptieveKoeling","Klik of tik om tekst in te voeren."]
[null,"Aardwarmtewisselaar",false]
[null,"Free-cooling",false]
[null,"Nachtkoeling",false]
[null,"Topkoeling",false]
[null,null,false]
[null,"AndereAdaptieveKoeling","Klik of tik om tekst in te voeren."]
[null,"BIN 2.1 opt1",false]
[null,"BIN 2.1 opt1 A1",false]
[null,null,"Klik of tik om tekst in te voeren."]
[null,null,"Klik of tik om tekst in te voeren."]
[null,"BIN 2.1 opt1 A2",false]
[null,"ZonweringOptie1","Klik of tik om tekst in te voeren."]
[null,null,false]
[null,"BIN 2.1 opt1 B Uitstekend",false]
[null,"BIN 2.1 opt1 B Beter",false]
[null,"BIN 2.1 opt1 B Goed",false]
[null,"BIN 2.1 actief uitstekend",false]
[null,"BIN 2.1 actief beter",false]
[null,"BIN 2.1 actief goed",false]
[null,"BIN 2.1 opt2",false]
[null,"BIN 2.1 opt2 A1",false]
[null,null,"Klik of tik om tekst in te voeren."]
[null,null,"Klik of tik om tekst in te voeren."]
[null,"BIN 2.1 opt2 A2",false]
[null,"ZonweringOptie2","Klik of tik om tekst in te voeren."]
[null,null,"Klik of tik om tekst in te voeren."]
[null,"BIN 2.1 opt2 B",false]
[null,"BIN 2.2",false]
[null,"BIN 2.2 vert temp",false]
[null,"BIN22 A Uitstekend",false]
[null,"BIN22 A beter",false]
[null,"BIN22 A goed",false]
[null,"BIN 2.2 vloertemp",false]
[null,"BIN22 B Uitstekend",false]
[null,"BIN22 B beter",false]
[null,"BIN22 B goed",false]
[null,"BIN 2.2 straling",false]
[null,"BIN22 C Uitstekend",false]
[null,"BIN22 C beter",false]
[null,"BIN22 C goed",false]
[null,"BIN 2.2 tocht",false]
[null,"BIN22 D Uitstekend",false]
[null,"BIN22 D beter",false]
[null,"BIN22 D goed",false]
[null,"BIN 2.3",false]
[null,"BIN23 Uitstekend",false]
[null,"BIN23 beter",false]
[null,"BIN23 goed",false]
[null,"BIN 3.1",false]
[null,"Ventilatiesysteem 1","Kies een item."]
[null,"Ventilatiesysteem 2","Kies een item."]
[null,null,"Klik of tik om tekst in te voeren."]
[null,null,"Klik of tik om tekst in te voeren."]
[null,null,"Klik of tik om tekst in te voeren."]
[null,null,"Klik of tik om tekst in te voeren."]
[null,"Ventilatieboost","Klik of tik om tekst in te voeren."]
[null,"BIN31 Uitstekend",false]
[null,"BIN31 beter",false]
[null,"BIN31 goed",false]
[null,"BIN 3.2",false]
[null,"BIN 32 Uitstekend",false]
[null,"BIN32 beter",false]
[null,"BIN32 goed",false]
[null,"BIN 3.3",false]
[null,"BIN 3.3 opt1",false]
[null,null,false]
[null,null,"Klik of tik om tekst in te voeren."]
[null,null,"Klik of tik om tekst in te voeren."]
[null,null,"Klik of tik om tekst in te voeren."]
[null,null,"Klik of tik om tekst in te voeren."]
[null,"BIN 3.3 opt2",false]
[null,"BIN 3.3 opt3",false]
[null,null,false]
[null,null,"Klik of tik om tekst in te voeren."]
[null,null,"Klik of tik om tekst in te voeren."]
[null,null,"Klik of tik om tekst in te voeren."]
[null,null,"Klik of tik om tekst in te voeren."]
[null,"BIN 3.4",false]
[null,null,false]
[null,null,false]
[null,"BIN 4.1",false]
[null,"BIN 4.1 opt1",false]
[null,"BIN41 Uitstekend",false]
[null,"BIN41 beter",false]
[null,"BIN41 goed",false]
[null,"BIN 4.1 opt2",false]
[null,"BIN 4.2",false]
[null,null,"Klik of tik om tekst in te voeren."]
[null,"BIN 4.2 Uitstekend",false]
[null,"BIN 4.2 Uitstekend",false]
[null,"BIN 4.2 beter",false]
[null,"BIN 4.2 goed",false]
[null,"BIN 4.2 geen",false]
[null,"BIN 4.3",false]
[null,null,false]
[null,"BIN 4.4",false]
[null,"BIN44 landschap",false]
[null,"BIN44 hemel",false]
[null,"BIN44 grond",false]
[null,null,false]
[null,"BIN 4.5",false]
[null,"BIN 4.6",false]
[null,"BIN 4.7",false]
[null,"BIN 4.7 A",false]
[null,"BIN 4.7 B",false]
[null,"BIN 4.7 C",false]
[null,"BIN 4.8",false]
[null,"BIN 4.8 A",false]
[null,"BIN 4.8 B",false]
[null,"BIN 4.8 C",false]
[null,"SOC 3",false]
[null,"SOC 3.1",false]
[null,null,"Klik of tik om een datum in te voeren."]
[null,null,false]
[null,"SOC 3.2",false]
[null,"SOC32 Uitstekend",false]
[null,"SOC32 beter",false]
[null,"SOC32 goed",false]
[null,"SOC 3.3",false]
[null,"SOC 3.4",false]
[null,"LabelToegankelijkheidA+",false]
[null,"GEB 1.1",false]
[null,"Zonwering A",false]
[null,"Zonwering B",false]
[null,"Verblinding A",false]
[null,"Verblinding B",false]
[null,"Temp a",false]
[null,"Temp B",false]
[null,"Temp C",false]
[null,"Verlichting A",false]
[null,"Verlichting B",false]
[null,"Verlichting C",false]
[null,"Ventilatie A",false]
[null,"Ventilatie B",false]
[null,"GEB11 Uitstekend",false]
[null,"GEB11 beter",false]
[null,"GEB11 goed",false]
[null,"GEB 1.2",false]
[null,"ENE 1.1",false]
[null,null,"Klik of tik om tekst in te voeren."]
[null,null,"Klik of tik om tekst in te voeren."]
[null,"EpeilNB","Klik of tik om tekst in te voeren."]
[null,"ENE11 nieuw Uitstekend",false]
[null,"ENE11 nieuw beter",false]
[null,"ENE11 nieuw goed",false]
[null,null,"Klik of tik om tekst in te voeren."]
[null,null,"Klik of tik om tekst in te voeren."]
[null,"EpeilIER","Klik of tik om tekst in te voeren."]
[null,"ENE11 ier Uitstekend",false]
[null,"ENE11 ier beter",false]
[null,"ENE11 ier goed",false]
[null,"UwaardeVerb","Klik of tik om tekst in te voeren."]
[null,null,"Klik of tik om tekst in te voeren."]
[null,null,"Klik of tik om tekst in te voeren."]
[null,"ENE11 verb Uitstekend",false]
[null,"ENE11 verb beter",false]
[null,"ENE11 verb goed",false]
[null,null,"Klik of tik om tekst in te voeren."]
[null,null,"Klik of tik om tekst in te voeren."]
[null,"PEvBrussel","Klik of tik om tekst in te voeren."]
[null,null,"Klik of tik om tekst in te voeren."]
[null,null,"Klik of tik om tekst in te voeren."]
[null,"NEVBrussel","Klik of tik om tekst in te voeren."]
[null,null,"Klik of tik om tekst in te voeren."]
[null,null,"Klik of tik om tekst in te voeren."]
[null,"UwaardeBrussel","Klik of tik om tekst in te voeren."]
[null,"ENE11 nieuw BR Uitstekend",false]
[null,"ENE11 nieuw BR beter",false]
[null,"ENE11 nieuw BR goed",false]
[null,"ENE 1.2",false]
[null,null,false]
[null,"ENE 1.3",false]
[null,null,false]
[null,null,false]
[null,"ENE 2",false]
[null,"ENE 2.1",false]
[null,"HernTech1","Klik of tik om tekst in te voeren."]
[null,"Technweerhouden1",false]
[null,"HernTech2","Klik of tik om tekst in te voeren."]
[null,"Technweerhouden2",false]
[null,"HernTech3","Klik of tik om tekst in te voeren."]
[null,"Technweerhouden3",false]
[null,"HernTech4","Klik of tik om tekst in te voeren."]
[null,"Technweerhouden4",true]
[null,"HernTech5","Klik of tik om tekst in te voeren."]
[null,"Technweerhouden5",false]
[null,"HernTech6","Klik of tik om tekst in te voeren."]
[null,"Technweerhouden6",false]
[null,"ENE 2.2",false]
[null,"ENE22 Uitstekend",false]
[null,"ENE22 beter",false]
[null,"ENE22 goed",false]
[null,"ENE 2.3",false]
[null,"ENE 2.4",false]
[null,"ENE 2.5",false]
[null,"ENE 3",false]
[null,"ENE 3.1",false]
[null,null,false]
[null,"ENE 3.2",false]
[null,null,false]
[null,"ENE 3.3",false]
[null,null,false]
[null,"ENE 3.4",false]
[null,null,false]
[null,"ENE 3.5",false]
[null,"verwarmingstype","Kies een item."]
[null,"verwarmingselementen","Klik of tik om tekst in te voeren."]
[null,"warmwaterbereider","Klik of tik om tekst in te voeren."]
[null,null,false]
[null,"ENE 3.6",false]
[null,"ENE 3.7",false]
[null,"ENE 3.8",false]
[null,null,false]
[null,"MAT 2",false]
[null,"MAT 2.1",false]
[null,"MAT 2.2",false]
[null,null,false]
[null,"MAT22 Uitstekend",false]
[null,"MAT22 beter",false]
[null,"MAT22 goed",false]
[null,"WAT 1",false]
[null,"WAT 1 Uitstekend",false]
[null,"WAT 1 beter",false]
[null,"WAT 1 goed",false]
[null,"WAT 1.1",false]
[null,null,false]
[null,null,false]
[null,null,false]
[null,null,false]
[null,null,false]
[null,null,false]
[null,"WAT 1.2",false]
[null,null,false]
[null,"WAT 1.3",false]
[null,null,false]
[null,null,false]
[null,null,false]
[null,"WAT 2",false]
[null,null,"Kies een item."]
[null,null,"Kies een item."]
[null,null,"Kies een item."]
[null,null,"Kies een item."]
[null,null,"Kies een item."]
[null,null,"Klik of tik om tekst in te voeren."]
[null,null,"Kies een item."]
[null,"WAt 2.1",false]
[null,null,false]
[null,null,false]
[null,null,"Klik of tik om tekst in te voeren."]
[null,"WAT 2.1 Uitstekend",false]
[null,"WAT 2.1 beter",false]
[null,"WAT 2.1 goed",false]
[null,"WAT 2.2",false]
[null,"WAT 2.2 Uitstekend",false]
[null,"WAT 2.2 beter",false]
[null,"WAT 2.2 goed",false]
[null,"WAT 2.3",false]
[null,null,false]
[null,"WAT 3",false]
[null,"WAT 3.1",false]
[null,"WAT 3.1 Uitstekend",false]
[null,"WAT 3.1 beter",false]
[null,"WAT 3.1 goed",false]
[null,null,false]
[null,"WAt 3.2",false]
[null,"WAT 3.2 Uitstekend",false]
[null,"WAT 3.2 beter",false]
[null,"WAT 3.2 goed",false]
[null,null,false]
[null,"WAT 3.3",false]
[null,null,false]
[null,null,false]
[null,null,false]
[null,null,false]
[null,null,false]
[null,null,false]
[null,null,false]
[null,null,false]
[null,"OMG 1.1",false]
[null,"OMG 1.2",false]
[null,null,"Klik of tik om tekst in te voeren."]
[null,null,"Klik of tik om tekst in te voeren."]
[null,"OMG 1.3",false]
[null,"OMG 2",false]
[null,"OMG 2.1",false]
[null,"OMG 2.1 Uitstekend",false]
[null,"OMG 2.1 beter",false]
[null,"OMG 2.1 goed",false]
[null,"OMG 2.1 E1",false]
[null,"OMG 2.1 E2",false]
[null,"OMG 2.1 E3",false]
[null,"OMG 2.1 E4",false]
[null,"OMG 2.1 E1",false]
[null,"OMG 2.1 E2",false]
[null,"OMG 2.1 E3",false]
[null,"OMG 2.1 E4",false]
[null,null,false]
[null,"OMG 2.1 E1",false]
[null,"OMG 2.1 E2",false]
[null,"OMG 2.1 E3",false]
[null,"OMG 2.1 E4",false]
[null,null,false]
[null,null,false]
[null,null,false]
[null,null,false]
[null,null,"Klik of tik om tekst in te voeren."]
[null,"OMG 2.2",false]
[null,"OMG 2.2 Uitstekend",false]
[null,"OMG 2.2 Beter",false]
[null,"OMG 2.2 Goed",false]
[null,"OMG 2.3",false]
[null,"OMG 2.3 Uitstekend",false]
[null,"OMG 2.3 Beter",false]
[null,"OMG 2.3 Goed",false]
[null,"OMG 2.4",false]
[null,"OMG 2.4 Uitstekend",false]
[null,"OMG 2.4 Beter",false]
[null,"OMG 2.4 Goed",false]
[null,"LCC 3.1",false]
[null,"CO2uitstoot","Klik of tik om tekst in te voeren."]
[null,"TOE 1",false]
[null,"TOE 1.1",false]
[null,"TOE 1.1 Uitstekend",false]
[null,"TOE 1.1 Beter",false]
[null,"TOE 1.1 Goed",false]
[null,"TOE 1.2",false]
[null,"TOE 1.3",false]
[null,"TOE 2.1",false]
[null,"TOE 2.1 A",false]
[null,"TOE 2.1 B",false]
[null,"TOE 2.1 C",false]
[null,"TOE 2.1 D",false]
[null,"TOE 2.1 E",false]
[null,"TOE 2.1 F",false]
[null,"TOE 2.1 G",false]
[null,null,false]
[null,null,false]
[null,"BEH 1",false]
[null,"BEH 1.1",false]
[null,null,"Klik of tik om tekst in te voeren."]
[null,null,false]
[null,"BEH 1.2",false]
[null,null,false]
[null,"BEH 1.3",false]
[null,null,false]
[null,"BEH 1.4",false]
[null,null,false]
[null,null,false]
[null,"BEH 1.5",false]
[null,null,false]
[null,null,false]
[null,"BEH 1.6",false]
[null,null,"Klik of tik om tekst in te voeren."]
[null,null,false]
[null,"afwijkingArt. 1","Kies een item."]
[null,"Prestatie afwijkingsart 1","Kies een item."]
[null,"afwijkingArt. 2","Kies een item."]
[null,"Prestatie afwijkingsart 2","Kies een item."]
[null,"afwijkingArt. 3","Kies een item."]
[null,"Prestatie afwijkingsart 3","Kies een item."]
[null,"afwijkingArt. 1.2","Kies een item."]
[null,"Prestatie afwijkingsart 1","Kies een item."]
[null,"afwijkingArt. 2.2","Kies een item."]
[null,"Prestatie afwijkingsart 2","Kies een item."]
[null,"afwijkingArt. 3.2","Kies een item."]
[null,"Prestatie afwijkingsart 3","Kies een item."]

{"sheet":"Doc Load_Evaluatie 3","index":6,"n_rows":556,"n_cols":8,"rows_kept":556,"cut":false,"hidden":true,"merged":[]}
[]
[null,"Naam besturingselement WORD","Waarde bestruingselement WORD",null,null,null,"Upload AXI - Veld","Upload AXI - waarde"]
[null,null,false,null,null,null,"MIL 1.3 Uitstekend vla",{"$f":"IFERROR(VLOOKUP(G3,$B$51:$C$645,2,FALSE),\"\")","v":false}]
[null,"CON 1.1",true,null,null,null,"MIL 1.3 Beter vla",{"$f":"IFERROR(VLOOKUP(G4,$B$51:$C$645,2,FALSE),\"\")","v":false}]
[null,"CON 1.1",false,null,null,null,"MIL 1.3 Goed vla",false]
[null,"CON 1.2",false,null,null,null,"MIL 1.3 Uitstekend bru",false]
[null,"CON 1.3",false,null,null,null,"MIL 1.3 Beter bru",false]
[null,"MA 1.2",false,null,null,null,"MIL 1.3 Goed bru",false]
[null,"MIL 1",false,null,null,null,"MIL 2 Uitstekend",false]
[null,"MIL 2",false,null,null,null,"MIL 2 Beter",false]
[null,"MIL 3",false,null,null,null,"MIL 2 Goed",false]
[null,"SOC 3",false,null,null,null,"BIN 1.1",false]
[null,"MA 1.1",false,null,null,null,"BIN 1.2",false]
[null,"MA 1.3",false,null,null,null,"BIN 1.3",false]
[null,null,false,null,null,null,"BIN 1.4",false]
[null,"MOB 1",false,null,null,null,"BIN 1.5",false]
[null,"BIN 4.1",false,null,null,null,"BIN 1.6",false]
[null,"BIN 4.5",false,null,null,null,"BIN 1.7",false]
[null,"BIN 4.4",false,null,null,null,"AdaptiefZomercomfort",{"$f":"IFERROR(VLOOKUP(G19,$B$51:$C$645,2,FALSE),C183)","v":false}]
[null,"BIN 4.8",false,null,null,null,"NietAdaptiefZomercomfort",{"$f":"IFERROR(VLOOKUP(G20,$B$51:$C$645,2,FALSE),C184)","v":false}]
[null,"BIN 3.4",false,null,null,null,"BIN 2.1 opt1",false]
[null,"WAT 2",false,null,null,null,"ZonweringOptie1_1",{"$f":"IFERROR(VLOOKUP(G22,$B$51:$C$645,2,FALSE),C198)","v":false}]
[null,"OMG 1.1",false,null,null,null,"ZonweringOptie1_2",""]
[null,"OMG 1.2",false,null,null,null,"ZonweringOptie1_3",""]
[null,"OMG 1.3",false,null,null,null,"BIN 2.1 opt2",false]
[null,"BIN 4.2",false,null,null,null,"ZonweringOptie2_1",{"$f":"IFERROR(VLOOKUP(G26,$B$51:$C$645,2,FALSE),C214)","v":false}]
[null,"BIN 2.2",false,null,null,null,"ZonweringOptie2_2",""]
[null,"ENE 1.3",false,null,null,null,"ZonweringOptie2_3",""]
[null,"BIN 2.1",false,null,null,null,"SOC 3.1",false]
[null,"BIN 3.3",false,null,null,null,"SOC32 Uitstekend",false]
[null,"BIN 4.6",false,null,null,null,"SOC32 beter",false]
[null,"BIN 1",false,null,null,null,"SOC32 goed",false]
[null,"WAT 1",false,null,null,null,"SOC 3.3",false]
[null,"ENE 2",false,null,null,null,"SOC 3.4",false]
[null,"TOE 2.1",false,null,null,null,"LabelToegankelijkheidA+",false]
[null,"BIN 4.3",false,null,null,null,"EpeilNB","Klik of tik om tekst in te voeren."]
[null,"BIN 4.7",false,null,null,null,"EpeilIER","Klik of tik om tekst in te voeren."]
[null,"ENE 1.1",false,null,null,null,"HernTech1","Klik of tik om tekst in te voeren."]
[null,"ENE 1.2",false,null,null,null,"Technweerhouden1",false]
[null,"BIN 3.1",false,null,null,null,"HernTech2","Klik of tik om tekst in te voeren."]
[null,"BIN 3.2",false,null,null,null,"Technweerhouden2",false]
[null,"GEB 1.1",false,null,null,null,"HernTech3","Klik of tik om tekst in te voeren."]
[null,"GEB 1.2",false,null,null,null,"Technweerhouden3",false]
[null,"OMG 2",false,null,null,null,"HernTech4","Klik of tik om tekst in te voeren."]
[null,"BIN 2.3",false,null,null,null,"Technweerhouden4",true]
[null,"WAT 3",false,null,null,null,"HernTech5","Klik of tik om tekst in te voeren."]
[null,"MAT 2",false,null,null,null,"Technweerhouden5",false]
[null,"ENE 3",false,null,null,null,"HernTech6","Klik of tik om tekst in te voeren."]
[null,"LCC 3.1",false,null,null,null,"Technweerhouden6",false]
[null,"BEH 1",false,null,null,null,"ENE22 Uitstekend",false]
[null,"CON 1.1",false,null,null,null,"ENE22 beter",false]
[null,"CON 1.1.1",false,null,null,null,"ENE22 goed",false]
[null,"CON 1.1.2",false,null,null,null,"ENE 2.3",false]
[null,"CON 1.1.3",false,null,null,null,"ENE 2.4",false]
[null,"CON 1.2",false,null,null,null,"ENE 2.5",false]
[null,"CON 1.3",false,null,null,null,"verwarmingstype","Kies een item."]
[null,null,false,null,null,null,"verwarmingstype2",""]
[null,"PRO 1.1",false,null,null,null,"verwarmingstype3",""]
[null,"ARCH",false,null,null,null,"Ventilatiesysteem 1","Kies een item."]
[null,"ing stabiliteit",false,null,null,null,"Ventilatiesysteem 2","Kies een item."]
[null,"ing technieken",false,null,null,null,"Ventilatieboost","Klik of tik om tekst in te voeren."]
[null,"ing akoestiek",false,null,null,null,"WAT 2.1 Uitstekend",false]
[null,"aannemer",false,null,null,null,"WAT 2.1 beter",false]
[null,"veiligheidsco",false,null,null,null,"WAT 2.1 goed",false]
[null,"projectmanager",false,null,null,null,"LCC 3.1",false]
[null,"ruimtelijk planner",false,null,null,null,"CO2uitstoot","Klik of tik om tekst in te voeren."]
[null,"EPB-verslager",false,null,null,null,"MAT 2.1",false]
[null,"INTER",false,null,null,null,"afwijkingArt. 1",{"$f":"IFERROR(VLOOKUP(G68,$B$51:$C$645,2,FALSE),\"\")","v":"Kies een item."}]
[null,"StudiebureauDynSim",false,null,null,null,"afwijkingArt. 2","Kies een item."]
[null,"AndereTeamleden",false,null,null,null,"afwijkingArt. 3","Kies een item."]
[null,null,"Klik of tik om tekst in te voeren.",null,null,null,"afwijkingArt. 1.2","Kies een item."]
[null,"PRO 1.2",false,null,null,null,"afwijkingArt. 2.2","Kies een item."]
[null,"PRO 1.3",false,null,null,null,"afwijkingArt. 3.2",{"$f":"IFERROR(VLOOKUP(G73,$B$51:$C$645,2,FALSE),\"\")","v":"Kies een item."}]
[null,"MOB 1",false]
[null,"MOB 1.1",false]
[null,"MOB 1.1 Uitstekend",false]
[null,"MOB 1.1 Beter",false]
[null,"MOB 1.1 Goed",false]
[null,"MOB 1.1 Matig",false]
[null,"MOB 1.2",false]
[null,"MOB 1.2 Uitstekend",false]
[null,"MOB 1.2 Beter",false]
[null,"MOB 1.2 Goed",false]
[null,"MOB 1.3",false]
[null,"MOB 1.3 Uitstekend",false]
[null,"MOB 1.3 Beter",false]
[null,"MOB 1.3 Goed",false]
[null,"MA 1.1",false]
[null,null,false]
[null,null,"Klik of tik om een datum in te voeren."]
[null,null,false]
[null,null,"Klik of tik om een datum in te voeren."]
[null,null,false]
[null,null,false]
[null,null,false]
[null,null,false]
[null,null,false]
[null,null,false]
[null,null,"Klik of tik om tekst in te voeren."]
[null,"MA 1.2",false]
[null,"MA 1.3",false]
[null,"MA1.3 POS1",false]
[null,"MA13 NEG1",false]
[null,null,"Klik of tik om tekst in te voeren."]
[null,"MA13 POS2",false]
[null,"MA13 NEG2",false]
[null,null,"Klik of tik om tekst in te voeren."]
[null,"MA13 POS3",false]
[null,"MA13 NEG3",false]
[null,null,"Klik of tik om tekst in te voeren."]
[null,"MA13 POS4",false]
[null,"MA13 NEG4",false]
[null,null,"Klik of tik om tekst in te voeren."]
[null,"MA13 POS5",false]
[null,"MA13 NEG5",false]
[null,null,"Klik of tik om tekst in te voeren."]
[null,"MA13 POS6",false]
[null,"MA13 NEG6",false]
[null,null,"Klik of tik om tekst in te voeren."]
[null,"MA13 POS7",false]
[null,"MA13 NEG7",false]
[null,null,"Klik of tik om tekst in te voeren."]
[null,"MA13 POS8",false]
[null,"MA13 NEG8",false]
[null,null,"Klik of tik om tekst in te voeren."]
[null,"MA13 POS9",false]
[null,null,"Klik of tik om tekst in te voeren."]
[null,"MA13 uit",false]
[null,"MA13 beter",false]
[null,"MA13 goed",false]
[null,null,false]
[null,"MA 2.1",false]
[null,"MA 2.2",false]
[null,"MA 2.3",false]
[null,"MA 2.4",false]
[null,"bodemonderzoek",false]
[null,null,"Klik of tik om een datum in te voeren."]
[null,"sanering",false]
[null,null,"Klik of tik om een datum in te voeren."]
[null,"MA 2.5",false]
[null,"renovatie",false]
[null,"erfgoed",false]
[null,"MIL 1",false]
[null,"MIL 1.3 Uitstekend vla",false]
[null,"MIL 1.3 Beter vla",false]
[null,"MIL 1.3 Goed vla",false]
[null,"MIL 1.3 Uitstekend bru",false]
[null,"MIL 1.3 Beter bru",false]
[null,"MIL 1.3 Goed bru",false]
[null,"MIL 2",false]
[null,"MIL 2 Uitstekend",false]
[null,"MIL 2 Beter",false]
[null,"MIL 2 Goed",false]
[null,"MIL 3",false]
[null,"MIL 3 Uitstekend",false]
[null,"MIL 3 Beter",false]
[null,"MIL 3 Goed",false]
[null,"BIN 1",false]
[null,"BIN1 uitstekend",false]
[null,"BIN1 beter",false]
[null,"BIN1 goed",false]
[null,"BIN 1.1",false]
[null,null,false]
[null,"BIN11 bestekken",false]
[null,"BIN 1.2",false]
[null,null,false]
[null,null,false]
[null,"BIN 1.3",false]
[null,null,false]
[null,null,false]
[null,"BIN 1.4",false]
[null,null,false]
[null,null,false]
[null,"BIN 1.5",false]
[null,null,false]
[null,null,false]
[null,"BIN 1.6",false]
[null,"BIN 1.7",false]
[null,null,false]
[null,null,false]
[null,"BIN 2.1",false]
[null,"AdaptiefZomercomfort",false]
[null,"NietAdaptiefZomercomfort",false]
[null,"NatVentobvThermMassa",false]
[null,"RadiatieveKoeling",false]
[null,"EvaporatieveKoelingGroendak",false]
[null,"SurfaceKoeling",false]
[null,"EvaporatieveKoelingVentilatieUnit",false]
[null,null,false]
[null,"AndereNietAdaptieveKoeling","Klik of tik om tekst in te voeren."]
[null,"Aardwarmtewisselaar",false]
[null,"Free-cooling",false]
[null,"Nachtkoeling",false]
[null,"Topkoeling",false]
[null,null,false]
[null,"AndereAdaptieveKoeling","Klik of tik om tekst in te voeren."]
[null,"BIN 2.1 opt1",false]
[null,"BIN 2.1 opt1 A1",false]
[null,null,"Klik of tik om tekst in te voeren."]
[null,null,"Klik of tik om tekst in te voeren."]
[null,"BIN 2.1 opt1 A2",false]
[null,"ZonweringOptie1","Klik of tik om tekst in te voeren."]
[null,null,false]
[null,"BIN 2.1 opt1 B Uitstekend",false]
[null,"BIN 2.1 opt1 B Beter",false]
[null,"BIN 2.1 opt1 B Goed",false]
[null,"BIN 2.1 actief uitstekend",false]
[null,"BIN 2.1 actief beter",false]
[null,"BIN 2.1 actief goed",false]
[null,"BIN 2.1 opt2",false]
[null,"BIN 2.1 opt2 A1",false]
[null,null,"Klik of tik om tekst in te voeren."]
[null,null,"Klik of tik om tekst in te voeren."]
[null,"BIN 2.1 opt2 A2",false]
[null,"ZonweringOptie2","Klik of tik om tekst in te voeren."]
[null,null,"Klik of tik om tekst in te voeren."]
[null,"BIN 2.1 opt2 B",false]
[null,"BIN 2.2",false]
[null,"BIN 2.2 vert temp",false]
[null,"BIN22 A Uitstekend",false]
[null,"BIN22 A beter",false]
[null,"BIN22 A goed",false]
[null,"BIN 2.2 vloertemp",false]
[null,"BIN22 B Uitstekend",false]
[null,"BIN22 B beter",false]
[null,"BIN22 B goed",false]
[null,"BIN 2.2 straling",false]
[null,"BIN22 C Uitstekend",false]
[null,"BIN22 C beter",false]
[null,"BIN22 C goed",false]
[null,"BIN 2.2 tocht",false]
[null,"BIN22 D Uitstekend",false]
[null,"BIN22 D beter",false]
[null,"BIN22 D goed",false]
[null,"BIN 2.3",false]
[null,"BIN23 Uitstekend",false]
[null,"BIN23 beter",false]
[null,"BIN23 goed",false]
[null,"BIN 3.1",false]
[null,"Ventilatiesysteem 1","Kies een item."]
[null,"Ventilatiesysteem 2","Kies een item."]
[null,null,"Klik of tik om tekst in te voeren."]
[null,null,"Klik of tik om tekst in te voeren."]
[null,null,"Klik of tik om tekst in te voeren."]
[null,null,"Klik of tik om tekst in te voeren."]
[null,"Ventilatieboost","Klik of tik om tekst in te voeren."]
[null,"BIN31 Uitstekend",false]
[null,"BIN31 beter",false]
[null,"BIN31 goed",false]
[null,"BIN 3.2",false]
[null,"BIN 32 Uitstekend",false]
[null,"BIN32 beter",false]
[null,"BIN32 goed",false]
[null,"BIN 3.3",false]
[null,"BIN 3.3 opt1",false]
[null,null,false]
[null,null,"Klik of tik om tekst in te voeren."]
[null,null,"Klik of tik om tekst in te voeren."]
[null,null,"Klik of tik om tekst in te voeren."]
[null,null,"Klik of tik om tekst in te voeren."]
[null,"BIN 3.3 opt2",false]
[null,"BIN 3.3 opt3",false]
[null,null,false]
[null,null,"Klik of tik om tekst in te voeren."]
[null,null,"Klik of tik om tekst in te voeren."]
[null,null,"Klik of tik om tekst in te voeren."]
[null,null,"Klik of tik om tekst in te voeren."]
[null,"BIN 3.4",false]
[null,null,false]
[null,null,false]
[null,"BIN 4.1",false]
[null,"BIN 4.1 opt1",false]
[null,"BIN41 Uitstekend",false]
[null,"BIN41 beter",false]
[null,"BIN41 goed",false]
[null,"BIN 4.1 opt2",false]
[null,"BIN 4.2",false]
[null,null,"Klik of tik om tekst in te voeren."]
[null,"BIN 4.2 Uitstekend",false]
[null,"BIN 4.2 Uitstekend",false]
[null,"BIN 4.2 beter",false]
[null,"BIN 4.2 goed",false]
[null,"BIN 4.2 geen",false]
[null,"BIN 4.3",false]
[null,null,false]
[null,"BIN 4.4",false]
[null,"BIN44 landschap",false]
[null,"BIN44 hemel",false]
[null,"BIN44 grond",false]
[null,null,false]
[null,"BIN 4.5",false]
[null,"BIN 4.6",false]
[null,"BIN 4.7",false]
[null,"BIN 4.7 A",false]
[null,"BIN 4.7 B",false]
[null,"BIN 4.7 C",false]
[null,"BIN 4.8",false]
[null,"BIN 4.8 A",false]
[null,"BIN 4.8 B",false]
[null,"BIN 4.8 C",false]
[null,"SOC 3",false]
[null,"SOC 3.1",false]
[null,null,"Klik of tik om een datum in te voeren."]
[null,null,false]
[null,"SOC 3.2",false]
[null,"SOC32 Uitstekend",false]
[null,"SOC32 beter",false]
[null,"SOC32 goed",false]
[null,"SOC 3.3",false]
[null,"SOC 3.4",false]
[null,"LabelToegankelijkheidA+",false]
[null,"GEB 1.1",false]
[null,"Zonwering A",false]
[null,"Zonwering B",false]
[null,"Verblinding A",false]
[null,"Verblinding B",false]
[null,"Temp a",false]
[null,"Temp B",false]
[null,"Temp C",false]
[null,"Verlichting A",false]
[null,"Verlichting B",false]
[null,"Verlichting C",false]
[null,"Ventilatie A",false]
[null,"Ventilatie B",false]
[null,"GEB11 Uitstekend",false]
[null,"GEB11 beter",false]
[null,"GEB11 goed",false]
[null,"GEB 1.2",false]
[null,"ENE 1.1",false]
[null,null,"Klik of tik om tekst in te voeren."]
[null,null,"Klik of tik om tekst in te voeren."]
[null,"EpeilNB","Klik of tik om tekst in te voeren."]
[null,"ENE11 nieuw Uitstekend",false]
[null,"ENE11 nieuw beter",false]
[null,"ENE11 nieuw goed",false]
[null,null,"Klik of tik om tekst in te voeren."]
[null,null,"Klik of tik om tekst in te voeren."]
[null,"EpeilIER","Klik of tik om tekst in te voeren."]
[null,"ENE11 ier Uitstekend",false]
[null,"ENE11 ier beter",false]
[null,"ENE11 ier goed",false]
[null,"UwaardeVerb","Klik of tik om tekst in te voeren."]
[null,null,"Klik of tik om tekst in te voeren."]
[null,null,"Klik of tik om tekst in te voeren."]
[null,"ENE11 verb Uitstekend",false]
[null,"ENE11 verb beter",false]
[null,"ENE11 verb goed",false]
[null,null,"Klik of tik om tekst in te voeren."]
[null,null,"Klik of tik om tekst in te voeren."]
[null,"PEvBrussel","Klik of tik om tekst in te voeren."]
[null,null,"Klik of tik om tekst in te voeren."]
[null,null,"Klik of tik om tekst in te voeren."]
[null,"NEVBrussel","Klik of tik om tekst in te voeren."]
[null,null,"Klik of tik om tekst in te voeren."]
[null,null,"Klik of tik om tekst in te voeren."]
[null,"UwaardeBrussel","Klik of tik om tekst in te voeren."]
[null,"ENE11 nieuw BR Uitstekend",false]
[null,"ENE11 nieuw BR beter",false]
[null,"ENE11 nieuw BR goed",false]
[null,"ENE 1.2",false]
[null,null,false]
[null,"ENE 1.3",false]
[null,null,false]
[null,null,false]
[null,"ENE 2",false]
[null,"ENE 2.1",false]
[null,"HernTech1","Klik of tik om tekst in te voeren."]
[null,"Technweerhouden1",false]
[null,"HernTech2","Klik of tik om tekst in te voeren."]
[null,"Technweerhouden2",false]
[null,"HernTech3","Klik of tik om tekst in te voeren."]
[null,"Technweerhouden3",false]
[null,"HernTech4","Klik of tik om tekst in te voeren."]
[null,"Technweerhouden4",true]
[null,"HernTech5","Klik of tik om tekst in te voeren."]
[null,"Technweerhouden5",false]
[null,"HernTech6","Klik of tik om tekst in te voeren."]
[null,"Technweerhouden6",false]
[null,"ENE 2.2",false]
[null,"ENE22 Uitstekend",false]
[null,"ENE22 beter",false]
[null,"ENE22 goed",false]
[null,"ENE 2.3",false]
[null,"ENE 2.4",false]
[null,"ENE 2.5",false]
[null,"ENE 3",false]
[null,"ENE 3.1",false]
[null,null,false]
[null,"ENE 3.2",false]
[null,null,false]
[null,"ENE 3.3",false]
[null,null,false]
[null,"ENE 3.4",false]
[null,null,false]
[null,"ENE 3.5",false]
[null,"verwarmingstype","Kies een item."]
[null,"verwarmingselementen","Klik of tik om tekst in te voeren."]
[null,"warmwaterbereider","Klik of tik om tekst in te voeren."]
[null,null,false]
[null,"ENE 3.6",false]
[null,"ENE 3.7",false]
[null,"ENE 3.8",false]
[null,null,false]
[null,"MAT 2",false]
[null,"MAT 2.1",false]
[null,"MAT 2.2",false]
[null,null,false]
[null,"MAT22 Uitstekend",false]
[null,"MAT22 beter",false]
[null,"MAT22 goed",false]
[null,"WAT 1",false]
[null,"WAT 1 Uitstekend",false]
[null,"WAT 1 beter",false]
[null,"WAT 1 goed",false]
[null,"WAT 1.1",false]
[null,null,false]
[null,null,false]
[null,null,false]
[null,null,false]
[null,null,false]
[null,null,false]
[null,"WAT 1.2",false]
[null,null,false]
[null,"WAT 1.3",false]
[null,null,false]
[null,null,false]
[null,null,false]
[null,"WAT 2",false]
[null,null,"Kies een item."]
[null,null,"Kies een item."]
[null,null,"Kies een item."]
[null,null,"Kies een item."]
[null,null,"Kies een item."]
[null,null,"Klik of tik om tekst in te voeren."]
[null,null,"Kies een item."]
[null,"WAt 2.1",false]
[null,null,false]
[null,null,false]
[null,null,"Klik of tik om tekst in te voeren."]
[null,"WAT 2.1 Uitstekend",false]
[null,"WAT 2.1 beter",false]
[null,"WAT 2.1 goed",false]
[null,"WAT 2.2",false]
[null,"WAT 2.2 Uitstekend",false]
[null,"WAT 2.2 beter",false]
[null,"WAT 2.2 goed",false]
[null,"WAT 2.3",false]
[null,null,false]
[null,"WAT 3",false]
[null,"WAT 3.1",false]
[null,"WAT 3.1 Uitstekend",false]
[null,"WAT 3.1 beter",false]
[null,"WAT 3.1 goed",false]
[null,null,false]
[null,"WAt 3.2",false]
[null,"WAT 3.2 Uitstekend",false]
[null,"WAT 3.2 beter",false]
[null,"WAT 3.2 goed",false]
[null,null,false]
[null,"WAT 3.3",false]
[null,null,false]
[null,null,false]
[null,null,false]
[null,null,false]
[null,null,false]
[null,null,false]
[null,null,false]
[null,null,false]
[null,"OMG 1.1",false]
[null,"OMG 1.2",false]
[null,null,"Klik of tik om tekst in te voeren."]
[null,null,"Klik of tik om tekst in te voeren."]
[null,"OMG 1.3",false]
[null,"OMG 2",false]
[null,"OMG 2.1",false]
[null,"OMG 2.1 Uitstekend",false]
[null,"OMG 2.1 beter",false]
[null,"OMG 2.1 goed",false]
[null,"OMG 2.1 E1",false]
[null,"OMG 2.1 E2",false]
[null,"OMG 2.1 E3",false]
[null,"OMG 2.1 E4",false]
[null,"OMG 2.1 E1",false]
[null,"OMG 2.1 E2",false]
[null,"OMG 2.1 E3",false]
[null,"OMG 2.1 E4",false]
[null,null,false]
[null,"OMG 2.1 E1",false]
[null,"OMG 2.1 E2",false]
[null,"OMG 2.1 E3",false]
[null,"OMG 2.1 E4",false]
[null,null,false]
[null,null,false]
[null,null,false]
[null,null,false]
[null,null,"Klik of tik om tekst in te voeren."]
[null,"OMG 2.2",false]
[null,"OMG 2.2 Uitstekend",false]
[null,"OMG 2.2 Beter",false]
[null,"OMG 2.2 Goed",false]
[null,"OMG 2.3",false]
[null,"OMG 2.3 Uitstekend",false]
[null,"OMG 2.3 Beter",false]
[null,"OMG 2.3 Goed",false]
[null,"OMG 2.4",false]
[null,"OMG 2.4 Uitstekend",false]
[null,"OMG 2.4 Beter",false]
[null,"OMG 2.4 Goed",false]
[null,"LCC 3.1",false]
[null,"CO2uitstoot","Klik of tik om tekst in te voeren."]
[null,"TOE 1",false]
[null,"TOE 1.1",false]
[null,"TOE 1.1 Uitstekend",false]
[null,"TOE 1.1 Beter",false]
[null,"TOE 1.1 Goed",false]
[null,"TOE 1.2",false]
[null,"TOE 1.3",false]
[null,"TOE 2.1",false]
[null,"TOE 2.1 A",false]
[null,"TOE 2.1 B",false]
[null,"TOE 2.1 C",false]
[null,"TOE 2.1 D",false]
[null,"TOE 2.1 E",false]
[null,"TOE 2.1 F",false]
[null,"TOE 2.1 G",false]
[null,null,false]
[null,null,false]
[null,"BEH 1",false]
[null,"BEH 1.1",false]
[null,null,"Klik of tik om tekst in te voeren."]
[null,null,false]
[null,"BEH 1.2",false]
[null,null,false]
[null,"BEH 1.3",false]
[null,null,false]
[null,"BEH 1.4",false]
[null,null,false]
[null,null,false]
[null,"BEH 1.5",false]
[null,null,false]
[null,null,false]
[null,"BEH 1.6",false]
[null,null,"Klik of tik om tekst in te voeren."]
[null,null,false]
[null,"afwijkingArt. 1","Kies een item."]
[null,"Prestatie afwijkingsart 1","Kies een item."]
[null,"afwijkingArt. 2","Kies een item."]
[null,"Prestatie afwijkingsart 2","Kies een item."]
[null,"afwijkingArt. 3","Kies een item."]
[null,"Prestatie afwijkingsart 3","Kies een item."]
[null,"afwijkingArt. 1.2","Kies een item."]
[null,"Prestatie afwijkingsart 1","Kies een item."]
[null,"afwijkingArt. 2.2","Kies een item."]
[null,"Prestatie afwijkingsart 2","Kies een item."]
[null,"afwijkingArt. 3.2","Kies een item."]
[null,"Prestatie afwijkingsart 3","Kies een item."]

{"sheet":"Upload AXI - CONF","index":7,"n_rows":92,"n_cols":7,"rows_kept":92,"cut":false,"hidden":true,"merged":[]}
["Object AXI","Flexfield AXI","Locatie AXI","Cel Excel","Uitleg","Type flexfield","Flextab Axi "]
[null,"Dossier.Reference",{"$f":"_xlfn.CONCAT(A2,B2)","v":"Dossier.Reference"},{"$f":"'Startpagina-Handleiding'!J5","v":0},"Naam project"]
["object.DZAV.Flex","DZ001","object.DZAV.FlexDZ001",{"$f":"Bijlage3_Aanvraag!$G$251","v":0},"Score verplichte criteria","Geheel getal","object - Duurzaamheid - aanvraag"]
["object.DZAV.Flex","DZ002","object.DZAV.FlexDZ002",{"$f":"Bijlage3_Aanvraag!$G$250","v":0},"Score Vrije Criteria","Geheel getal","object - Duurzaamheid - aanvraag"]
["object.DZAV.Flex","DZ003","object.DZAV.FlexDZ003",{"$f":"Bijlage3_Aanvraag!$G$255","v":0},"Totaal score","Geheel getal","object - Duurzaamheid - aanvraag"]
["object.DZAV.Flex","DZ004","object.DZAV.FlexDZ004",{"$f":"IF(OR('Doc Load_Aanvraag'!$H$3=TRUE,'Doc Load_Aanvraag'!$H$6=TRUE),\"niet-overstromingsgebied\",IF(OR('Doc Load_Aanvraag'!$H$4=TRUE,$H$7=TRUE),\"mogelijk overstromingsgebied\",IF(OR('Doc Load_Aanvraag'!$H$5=TRUE,'Doc Load_Aanvraag'!$H$8=TRUE),\"effectief overstromingsgebied\",\"\")))","v":""},"MIL 1: Overstromingsrisico","tekstveld","object - Duurzaamheid - aanvraag"]
["object.DZAV.Flex","DZ005","object.DZAV.FlexDZ005",{"$f":"IF('Doc Load_Aanvraag'!$H$11=TRUE,\"≤ 40 μg/m³\",IF('Doc Load_Aanvraag'!$H$10=TRUE,\"≤ 30 μg/m³\",IF('Doc Load_Aanvraag'!$H$9=TRUE,\"≤ 20 μg/m³\",\"\")))","v":""},"MIL 2 : Stikstofconcentratie NO2 ","tekstveld","object - Duurzaamheid - aanvraag"]
["object.DZAV.Flex","DZ013","object.DZAV.FlexDZ013",{"$f":"IF('Doc Load_Aanvraag'!$H$21=TRUE,\"optie 1\",IF('Doc Load_Aanvraag'!$H$25=TRUE,\"optie 2\",\"\"))","v":""},"BIN 2.1 : zomercomfort optie","tekstveld","object - Duurzaamheid - aanvraag"]
["object.DZAV.Flex","DZ014","object.DZAV.FlexDZ014",{"$f":"IF('Doc Load_Aanvraag'!$H$19=TRUE,\"Adaptief\",IF('Doc Load_Aanvraag'!$H$20=TRUE,\"Niet-adaptief\",\"\"))","v":""},"BIN 2.1 : zomercomfort adaptief/ niet adaptief","tekstveld","object - Duurzaamheid - aanvraag"]
["object.DZAV.Flex","DZ015","object.DZAV.FlexDZ015",{"$f":"IF('Doc Load_Aanvraag'!$H$21=TRUE,_xlfn.TEXTJOIN(\", \",TRUE,IF('Doc Load_Aanvraag'!$H$22=\"Kies een item.\",\"\",'Doc Load_Aanvraag'!$H$22),IF('Doc Load_Aanvraag'!$H$23=\"Kies een item.\",\"\",'Doc Load_Aanvraag'!$H$23),IF('Doc Load_Aanvraag'!$H$24=\"Kies een item.\",\"\",'Doc Load_Aanvraag'!$H$24)),IF('Doc Load_Aanvraag'!$H$25=TRUE,_xlfn.TEXTJOIN(\", \",TRUE,IF('Doc Load_Aanvraag'!$H$26=\"Kies een item.\",\"\",'Doc Load_Aanvraag'!$H$26),IF('Doc Load_Aanvraag'!$H$27=\"Kies een item.\",\"\",'Doc Load_Aanvraag'!$H$27),IF('Doc Load_Aanvraag'!$H$28=\"Kies een item.\",\"\",'Doc Load_Aanvraag'!$H$28)),\"\"))","v":""},"BIN 2.1 : zomercomfort zonwering","tekstveld","object - Duurzaamheid - aanvraag"]
["object.DZAV.Flex","DZ018","object.DZAV.FlexDZ018",{"$f":"IF('Doc Load_Aanvraag'!$H$29=TRUE,\"ja\",\"nee\")","v":"nee"},"SOC 3: advies toegankelijkheid toegevoegd","Vinkje","object - Duurzaamheid - aanvraag"]
["object.DZAV.Flex","DZ019","object.DZAV.FlexDZ019",{"$f":"IF('Doc Load_Aanvraag'!$H$30=TRUE,\"Validatie door een onafhankelijk toegankelijkheidsadviseur in fase definitief ontwerp en eindcontrole bij voorlopige oplevering. + Uitstekend in de checklist\",IF('Doc Load_Aanvraag'!$H$31=TRUE,\"Validatie door een onafhankelijk toegankelijkheidsadviseur bij voorlopige oplevering (eindcontrole). + Beter in de checklist\",IF('Doc Load_Aanvraag'!$H$32=TRUE,\"zelfevaluatie. Er is geen onafhankelijke controle over de correcte toepassing van de principes van integrale toegankelijkheid of van de checklist SOC3. + Beter in de checklist\",\"\")))","v":""},"SOC 3: checklist ingevuld","tekstveld","object - Duurzaamheid - aanvraag"]
["object.DZAV.Flex","DZ020","object.DZAV.FlexDZ020",{"$f":"IF('Doc Load_Aanvraag'!$H$33=TRUE,\"ja\",\"nee\")","v":"nee"},"SOC 3: begeleidingstraject gevolgd","Vinkje","object - Duurzaamheid - aanvraag"]
["object.DZAV.Flex","DZ021","object.DZAV.FlexDZ021",{"$f":"IF('Doc Load_Aanvraag'!$H$35=TRUE,\"ja\",\"nee\")","v":"nee"},"SOC 3: label","Vinkje","object - Duurzaamheid - aanvraag"]
["object.DZAV.Flex","DZ022","object.DZAV.FlexDZ022",{"$f":"IF(NOT('Doc Load_Aanvraag'!$H$36=\"Klik of tik om tekst in te voeren.\"),'Doc Load_Aanvraag'!$H$36,IF(NOT('Doc Load_Aanvraag'!$H$37=\"klik of tik om tekst in te voeren.\"),'Doc Load_Aanvraag'!$H$37,\"\"))","v":""},"ENE 1.1: Energieprestatie E-peil","tekstveld","object - Duurzaamheid - aanvraag"]
["object.DZAV.Flex","DZ023","object.DZAV.FlexDZ023",{"$f":"IF('Doc Load_Aanvraag'!$H$50=TRUE,\">25%\",IF('Doc Load_Aanvraag'!$H$51=TRUE,\"<25%\",IF('Doc Load_Aanvraag'!$H$52=TRUE,\"<13%\",IF('Doc Load_Aanvraag'!$H$53=TRUE,\">35%\",IF('Doc Load_Aanvraag'!$H$54=TRUE,\">50%\",IF('Doc Load_Aanvraag'!$H$55=TRUE,\">75%\",\"0\"))))))","v":"0"},"ENE 1.1: Energieprestatie % hernieuwbare energie","tekstveld","object - Duurzaamheid - aanvraag"]
["object.DZAV.Flex","DZ024","object.DZAV.FlexDZ024",{"$f":"_xlfn.TEXTJOIN(\", \",TRUE,IF('Doc Load_Aanvraag'!$H$39=TRUE,'Doc Load_Aanvraag'!$H$38,\"\"),IF('Doc Load_Aanvraag'!$H$41=TRUE,'Doc Load_Aanvraag'!$H$40,\"\"),IF('Doc Load_Aanvraag'!H43=TRUE,'Doc Load_Aanvraag'!$H$42,\"\"),IF('Doc Load_Aanvraag'!$H$45=TRUE,'Doc Load_Aanvraag'!$H$44,\"\"),IF('Doc Load_Aanvraag'!$H$47=TRUE,'Doc Load_Aanvraag'!$H$46,\"\"),IF('Doc Load_Aanvraag'!$H$49=TRUE,'Doc Load_Aanvraag'!$H$48,\"\"))","v":"Kies een item."},"ENE 1.1: Energieprestatie technieken","tekstveld","object - Duurzaamheid - aanvraag"]
["object.DZAV.Flex","DZ027","object.DZAV.FlexDZ027",{"$f":"IF('Doc Load_Aanvraag'!$H$64=TRUE,\"ja\",\"nee\")","v":"nee"},"LCC 3.1: aangevinkt","Vinkje","object - Duurzaamheid - aanvraag"]
["object.DZAV.Flex","DZ028","object.DZAV.FlexDZ028",{"$f":"IF('Doc Load_Aanvraag'!$H$64=TRUE,H56,\"\")","v":""},"LCC 3.1: CO2-uitstoot","tekstveld","object - Duurzaamheid - aanvraag"]
["object.DZAV.Flex","DZ016","object.DZAV.FlexDZ016",{"$f":"_xlfn.TEXTJOIN(\", \",FALSE,'Doc Load_Aanvraag'!$H$58,IF('Doc Load_Aanvraag'!$H$59=\"Kies een item.\",\"\",'Doc Load_Aanvraag'!$H$59))","v":"Kies een item., "},"BIN 3.1: Ventilatiesysteem","tekstveld","object - Duurzaamheid - aanvraag"]
["object.DZAV.Flex","DZ017","object.DZAV.FlexDZ017",{"$f":"_xlfn.TEXTJOIN(\",\",FALSE,IF('Doc Load_Aanvraag'!$H$56=\"Kies een item.\",\"\",'Doc Load_Aanvraag'!$H$56),IF('Doc Load_Aanvraag'!$H$57=\"Kies een item.\",\"\",'Doc Load_Aanvraag'!$H$57))","v":","},"Verwarmingssysteem","tekstveld","object - Duurzaamheid - aanvraag"]
["object.DZAV.Flex","DZ029","object.DZAV.FlexDZ029",{"$f":"IF(COUNTIF('Doc Load_Aanvraag'!$H$67:$H$72,NOT(\"Kies een item.\"))>0,\"ja\",\"nee\")","v":"nee"},"Werd er een afwijking aangevraagd?","tekstveld","object - Duurzaamheid - aanvraag"]
["object.DZAV.Flex","DZ030","object.DZAV.FlexDZ030",{"$f":"COUNTIF('Doc Load_Aanvraag'!$H$67:$H$72,NOT(\"Kies een item.\"))","v":0},"Voor hoeveel artikelen werd er een afwijking aangevraagd","tekstveld","object - Duurzaamheid - aanvraag"]
["object.DZAV.Flex","DZ006","object.DZAV.FlexDZ006",{"$f":"IF('Doc Load_Aanvraag'!$H$12=TRUE,\"ja\",\"nee\")","v":"nee"},"BIN 1.1 Luchtgeluid","vinkje","object - Duurzaamheid - aanvraag"]
["object.DZAV.Flex","DZ007","object.DZAV.FlexDZ007",{"$f":"IF('Doc Load_Aanvraag'!$H$13=TRUE,\"ja\",\"nee\")","v":"nee"},"BIN 1.2 Contactgeluid","vinkje","object - Duurzaamheid - aanvraag"]
["object.DZAV.Flex","DZ008","object.DZAV.FlexDZ008",{"$f":"IF('Doc Load_Aanvraag'!$H$14=TRUE,\"ja\",\"nee\")","v":"nee"},"BIN 1.3 Gevelgeluid","vinkje","object - Duurzaamheid - aanvraag"]
["object.DZAV.Flex","DZ009","object.DZAV.FlexDZ009",{"$f":"IF('Doc Load_Aanvraag'!$H$15=TRUE,\"ja\",\"nee\")","v":"nee"},"BIN 1.4 Installatielawaai","vinkje","object - Duurzaamheid - aanvraag"]
["object.DZAV.Flex","DZ010","object.DZAV.FlexDZ010",{"$f":"IF('Doc Load_Aanvraag'!$H$16=TRUE,\"ja\",\"nee\")","v":"nee"},"BIN 1.5 Nagalm","vinkje","object - Duurzaamheid - aanvraag"]
["object.DZAV.Flex","DZ011","object.DZAV.FlexDZ011",{"$f":"IF('Doc Load_Aanvraag'!$H$17=TRUE,\"ja\",\"nee\")","v":"nee"},"BIN 1.6: Geluidsuitstraling","vinkje","object - Duurzaamheid - aanvraag"]
["object.DZAV.Flex","DZ012","object.DZAV.FlexDZ012",{"$f":"IF('Doc Load_Aanvraag'!$H$18=TRUE,\"ja\",\"nee\")","v":"nee"},"BIN 1.7 Buitengeluid","vinkje","object - Duurzaamheid - aanvraag"]
["object.DZAV.Flex","DZ026","object.DZAV.FlexDZ026",{"$f":"IF('Doc Load_Aanvraag'!$H$61=TRUE,\"50% van totaal wordt gedekt door hergebruik van water\",IF('Doc Load_Aanvraag'!$H$62=TRUE,\"35% van totaal wordt gedekt door hergebruik van water\",IF('Doc Load_Aanvraag'!$H$63=TRUE,\"20% van totaal wordt gedekt door hergebruik van water\",\"\")))","v":""},"WAT 2.1: dekkingsgraad waterhergebruik","tekstveld","object - Duurzaamheid - aanvraag"]
["object.DZAV.Flex","DZ025","object.DZAV.FlexDZ025",{"$f":"IF('Doc Load_Aanvraag'!$H$66=TRUE,\"ja\",\"nee\")","v":"nee"},"MAT 2.1 TOTEM","Vinkje","object - Duurzaamheid - aanvraag"]
["object.DZEV2.Flex","DZ001",{"$f":"IF($D$35=0,\"\",_xlfn.CONCAT(A33,B33))","v":""},{"$f":"'Bijlage3_Evaluatie 2'!G251","v":0},"Score verplichte criteria","Geheel getal","object - Duurzaamheid - evaluatie 2"]
["object.DZEV2.Flex","DZ002",{"$f":"IF($D$35=0,\"\",_xlfn.CONCAT(A34,B34))","v":""},{"$f":"'Bijlage3_Evaluatie 2'!G250","v":0},"Score Vrije Criteria","Geheel getal","object - Duurzaamheid - evaluatie 2"]
["object.DZEV2.Flex","DZ003","",{"$f":"'Bijlage3_Evaluatie 2'!G255","v":0},"Totaal score","Geheel getal","object - Duurzaamheid - evaluatie 2"]
["object.DZEV2.Flex","DZ004","",{"$f":"IF(OR('Doc Load_Evaluatie 2'!$H$3=TRUE,'Doc Load_Evaluatie 2'!$H$6=TRUE),\"niet-overstromingsgebied\",IF(OR('Doc Load_Evaluatie 2'!$H$4=TRUE,$H$7=TRUE),\"mogelijk overstromingsgebied\",IF(OR('Doc Load_Evaluatie 2'!$H$5=TRUE,'Doc Load_Evaluatie 2'!$H$8=TRUE),\"effectief overstromingsgebied\",\"\")))","v":""},"MIL 1: Overstromingsrisico","tekstveld","object - Duurzaamheid - evaluatie 2"]
["object.DZEV2.Flex","DZ005","",{"$f":"IF('Doc Load_Evaluatie 2'!$H$11=TRUE,\"≤ 40 μg/m³\",IF('Doc Load_Evaluatie 2'!$H$10=TRUE,\"≤ 30 μg/m³\",IF('Doc Load_Evaluatie 2'!$H$9=TRUE,\"≤ 20 μg/m³\",\"\")))","v":""},"MIL 2 : Stikstofconcentratie NO2 ","tekstveld","object - Duurzaamheid - evaluatie 2"]
["object.DZEV2.Flex","DZ013","",{"$f":"IF('Doc Load_Evaluatie 2'!$H$21=TRUE,\"optie 1\",IF('Doc Load_Evaluatie 2'!$H$25=TRUE,\"optie 2\",\"\"))","v":""},"BIN 2.1 : zomercomfort optie","tekstveld","object - Duurzaamheid - evaluatie 2"]
["object.DZEV2.Flex","DZ014","",{"$f":"IF('Doc Load_Evaluatie 2'!$H$19=TRUE,\"Adaptief\",IF('Doc Load_Evaluatie 2'!$H$20=TRUE,\"Niet-adaptief\",\"\"))","v":""},"BIN 2.1 : zomercomfort adaptief/ niet adaptief","tekstveld","object - Duurzaamheid - evaluatie 2"]
["object.DZEV2.Flex","DZ015","",{"$f":"IF('Doc Load_Evaluatie 2'!$H$21=TRUE,_xlfn.TEXTJOIN(\", \",TRUE,IF('Doc Load_Evaluatie 2'!$H$22=\"Kies een item.\",\"\",'Doc Load_Evaluatie 2'!$H$22),IF('Doc Load_Evaluatie 2'!$H$23=\"Kies een item.\",\"\",'Doc Load_Evaluatie 2'!$H$23),IF('Doc Load_Evaluatie 2'!$H$24=\"Kies een item.\",\"\",'Doc Load_Evaluatie 2'!$H$24)),IF('Doc Load_Evaluatie 2'!$H$25=TRUE,_xlfn.TEXTJOIN(\", \",TRUE,IF('Doc Load_Evaluatie 2'!$H$26=\"Kies een item.\",\"\",'Doc Load_Evaluatie 2'!$H$26),IF('Doc Load_Evaluatie 2'!$H$27=\"Kies een item.\",\"\",'Doc Load_Evaluatie 2'!$H$27),IF('Doc Load_Evaluatie 2'!$H$28=\"Kies een item.\",\"\",'Doc Load_Evaluatie 2'!$H$28)),\"\"))","v":""},"BIN 2.1 : zomercomfort zonwering","tekstveld","object - Duurzaamheid - evaluatie 2"]
["object.DZEV2.Flex","DZ018","",{"$f":"IF('Doc Load_Evaluatie 2'!$H$29=TRUE,\"ja\",\"nee\")","v":"nee"},"SOC 3: advies toegankelijkheid toegevoegd","Vinkje","object - Duurzaamheid - evaluatie 2"]
["object.DZEV2.Flex","DZ019","",{"$f":"IF('Doc Load_Evaluatie 2'!$H$30=TRUE,\"Validatie door een onafhankelijk toegankelijkheidsadviseur in fase definitief ontwerp en eindcontrole bij voorlopige oplevering. + Uitstekend in de checklist\",IF('Doc Load_Evaluatie 2'!$H$31=TRUE,\"Validatie door een onafhankelijk toegankelijkheidsadviseur bij voorlopige oplevering (eindcontrole). + Beter in de checklist\",IF('Doc Load_Evaluatie 2'!$H$32=TRUE,\"zelfevaluatie. Er is geen onafhankelijke controle over de correcte toepassing van de principes van integrale toegankelijkheid of van de checklist SOC3. + Beter in de checklist\",\"\")))","v":""},"SOC 3: checklist ingevuld","tekstveld","object - Duurzaamheid - evaluatie 2"]
["object.DZEV2.Flex","DZ020","",{"$f":"IF('Doc Load_Evaluatie 2'!$H$33=TRUE,\"ja\",\"nee\")","v":"nee"},"SOC 3: begeleidingstraject gevolgd","Vinkje","object - Duurzaamheid - evaluatie 2"]
["object.DZEV2.Flex","DZ021","",{"$f":"IF('Doc Load_Evaluatie 2'!$H$35=TRUE,\"ja\",\"nee\")","v":"nee"},"SOC 3: label","Vinkje","object - Duurzaamheid - evaluatie 2"]
["object.DZEV2.Flex","DZ022","",{"$f":"IF(NOT('Doc Load_Evaluatie 2'!$H$36=\"Klik of tik om tekst in te voeren.\"),'Doc Load_Evaluatie 2'!$H$36,IF(NOT('Doc Load_Evaluatie 2'!$H$37=\"klik of tik om tekst in te voeren.\"),'Doc Load_Evaluatie 2'!$H$37,\"\"))","v":""},"ENE 1.1: Energieprestatie E-peil","tekstveld","object - Duurzaamheid - evaluatie 2"]
["object.DZEV2.Flex","DZ023","",{"$f":"IF('Doc Load_Evaluatie 2'!$H$50=TRUE,\">25=\",IF('Doc Load_Evaluatie 2'!$H$51=TRUE,\"<25=\",IF('Doc Load_Evaluatie 2'!$H$52=TRUE,\"<13=\",IF('Doc Load_Evaluatie 2'!$H$53=TRUE,\">35=\",IF('Doc Load_Evaluatie 2'!$H$54=TRUE,\">50=\",IF('Doc Load_Evaluatie 2'!$H$55=TRUE,\">75=\",\"0\"))))))","v":"0"},"ENE 1.1: Energieprestatie % hernieuwbare energie","tekstveld","object - Duurzaamheid - evaluatie 2"]
["object.DZEV2.Flex","DZ024","",{"$f":"_xlfn.TEXTJOIN(\", \",TRUE,IF('Doc Load_Evaluatie 2'!$H$39=TRUE,'Doc Load_Evaluatie 2'!$H$38,\"\"),IF('Doc Load_Evaluatie 2'!$H$41=TRUE,'Doc Load_Evaluatie 2'!$H$40,\"\"),IF('Doc Load_Evaluatie 2'!H73=TRUE,'Doc Load_Evaluatie 2'!$H$42,\"\"),IF('Doc Load_Evaluatie 2'!$H$45=TRUE,'Doc Load_Evaluatie 2'!$H$44,\"\"),IF('Doc Load_Evaluatie 2'!$H$47=TRUE,'Doc Load_Evaluatie 2'!$H$46,\"\"),IF('Doc Load_Evaluatie 2'!$H$49=TRUE,'Doc Load_Evaluatie 2'!$H$48,\"\"))","v":"Klik of tik om tekst in te voeren."},"ENE 1.1: Energieprestatie technieken","tekstveld","object - Duurzaamheid - evaluatie 2"]
["object.DZEV2.Flex","DZ027","",{"$f":"IF('Doc Load_Evaluatie 2'!$H$64=TRUE,\"ja\",\"nee\")","v":"nee"},"LCC 3.1: aangevinkt","Vinkje","object - Duurzaamheid - evaluatie 2"]
["object.DZEV2.Flex","DZ028","",{"$f":"IF('Doc Load_Evaluatie 2'!$H$64=TRUE,H86,\"\")","v":""},"LCC 3.1: CO2-uitstoot","tekstveld","object - Duurzaamheid - evaluatie 2"]
["object.DZEV2.Flex","DZ016","",{"$f":"_xlfn.TEXTJOIN(\", \",FALSE,'Doc Load_Evaluatie 2'!$H$58,IF('Doc Load_Evaluatie 2'!$H$59=\"Kies een item.\",\"\",'Doc Load_Evaluatie 2'!$H$59))","v":", "},"BIN 3.1: Ventilatiesysteem","tekstveld","object - Duurzaamheid - evaluatie 2"]
["object.DZEV2.Flex","DZ017","",{"$f":"_xlfn.TEXTJOIN(\",\",FALSE,IF('Doc Load_Evaluatie 2'!$H$56=\"Kies een item.\",\"\",'Doc Load_Evaluatie 2'!$H$56),IF('Doc Load_Evaluatie 2'!$H$57=\"Kies een item.\",\"\",'Doc Load_Evaluatie 2'!$H$57))","v":","},"Verwarmingssysteem","tekstveld","object - Duurzaamheid - evaluatie 2"]
["object.DZEV2.Flex","DZ029","",{"$f":"IF(COUNTIF('Doc Load_Evaluatie 2'!$H$67:$H$72,NOT(\"Kies een item.\"))>0,\"ja\",\"nee\")","v":"nee"},"Werd er een afwijking aangevraagd?","tekstveld","object - Duurzaamheid - evaluatie 2"]
["object.DZEV2.Flex","DZ030","",{"$f":"COUNTIF('Doc Load_Evaluatie 2'!$H$67:$H$72,NOT(\"Kies een item.\"))","v":0},"Voor hoeveel artikelen werd er een afwijking aangevraagd","tekstveld","object - Duurzaamheid - evaluatie 2"]
["object.DZEV2.Flex","DZ006","",{"$f":"IF('Doc Load_Evaluatie 2'!$H$12=TRUE,\"ja\",\"nee\")","v":"nee"},"BIN 1.1 Luchtgeluid","vinkje","object - Duurzaamheid - evaluatie 2"]
["object.DZEV2.Flex","DZ007","",{"$f":"IF('Doc Load_Evaluatie 2'!$H$13=TRUE,\"ja\",\"nee\")","v":"nee"},"BIN 1.2 Contactgeluid","vinkje","object - Duurzaamheid - evaluatie 2"]
["object.DZEV2.Flex","DZ008","",{"$f":"IF('Doc Load_Evaluatie 2'!$H$14=TRUE,\"ja\",\"nee\")","v":"nee"},"BIN 1.3 Gevelgeluid","vinkje","object - Duurzaamheid - evaluatie 2"]
["object.DZEV2.Flex","DZ009","",{"$f":"IF('Doc Load_Evaluatie 2'!$H$15=TRUE,\"ja\",\"nee\")","v":"nee"},"BIN 1.4 Installatielawaai","vinkje","object - Duurzaamheid - evaluatie 2"]
["object.DZEV2.Flex","DZ010","",{"$f":"IF('Doc Load_Evaluatie 2'!$H$16=TRUE,\"ja\",\"nee\")","v":"nee"},"BIN 1.5 Nagalm","vinkje","object - Duurzaamheid - evaluatie 2"]
["object.DZEV2.Flex","DZ011","",{"$f":"IF('Doc Load_Evaluatie 2'!$H$17=TRUE,\"ja\",\"nee\")","v":"nee"},"BIN 1.6: Geluidsuitstraling","vinkje","object - Duurzaamheid - evaluatie 2"]
["object.DZEV2.Flex","DZ012","",{"$f":"IF('Doc Load_Evaluatie 2'!$H$18=TRUE,\"ja\",\"nee\")","v":"nee"},"BIN 1.7 Buitengeluid","vinkje","object - Duurzaamheid - evaluatie 2"]
["object.DZEV2.Flex","DZ026","",{"$f":"IF('Doc Load_Evaluatie 2'!$H$61=TRUE,\"50= van totaal wordt gedekt door hergebruik van water\",IF('Doc Load_Evaluatie 2'!$H$62=TRUE,\"35= van totaal wordt gedekt door hergebruik van water\",IF('Doc Load_Evaluatie 2'!$H$63=TRUE,\"20= van totaal wordt gedekt door hergebruik van water\",\"\")))","v":""},"WAT 2.1: dekkingsgraad waterhergebruik","tekstveld","object - Duurzaamheid - evaluatie 2"]
["object.DZEV2.Flex","DZ025","",{"$f":"IF('Doc Load_Evaluatie 2'!$H$66=TRUE,\"ja\",\"nee\")","v":"nee"},"MAT 2.1 TOTEM","Vinkje","object - Duurzaamheid - evaluatie 2"]
["object.DZEV3.Flex","DZ001",{"$f":"IF($D$65=0,\"\",_xlfn.CONCAT(A63,B63))","v":""},{"$f":"'Bijlage3_Evaluatie 3'!G251","v":0},"Score verplichte criteria","Geheel getal","object - Duurzaamheid - evaluatie 3"]
["object.DZEV3.Flex","DZ002",{"$f":"IF($D$65=0,\"\",_xlfn.CONCAT(A64,B64))","v":""},{"$f":"'Bijlage3_Evaluatie 3'!G250","v":0},"Score Vrije Criteria","Geheel getal","object - Duurzaamheid - evaluatie 3"]
["object.DZEV3.Flex","DZ003","",{"$f":"'Bijlage3_Evaluatie 3'!G255","v":0},"Totaal score","Geheel getal","object - Duurzaamheid - evaluatie 3"]
["object.DZEV3.Flex","DZ004","",{"$f":"IF(OR('Doc Load_Evaluatie 3'!$H$3=TRUE,'Doc Load_Evaluatie 3'!$H$6=TRUE),\"niet-overstromingsgebied\",IF(OR('Doc Load_Evaluatie 3'!$H$4=TRUE,$H$7=TRUE),\"mogelijk overstromingsgebied\",IF(OR('Doc Load_Evaluatie 3'!$H$5=TRUE,'Doc Load_Evaluatie 3'!$H$8=TRUE),\"effectief overstromingsgebied\",\"\")))","v":""},"MIL 1: Overstromingsrisico","tekstveld","object - Duurzaamheid - evaluatie 3"]
["object.DZEV3.Flex","DZ005","",{"$f":"IF('Doc Load_Evaluatie 3'!$H$11=TRUE,\"≤ 40 μg/m³\",IF('Doc Load_Evaluatie 3'!$H$10=TRUE,\"≤ 30 μg/m³\",IF('Doc Load_Evaluatie 3'!$H$9=TRUE,\"≤ 20 μg/m³\",\"\")))","v":""},"MIL 2 : Stikstofconcentratie NO2 ","tekstveld","object - Duurzaamheid - evaluatie 3"]
["object.DZEV3.Flex","DZ013","",{"$f":"IF('Doc Load_Evaluatie 3'!$H$21=TRUE,\"optie 1\",IF('Doc Load_Evaluatie 3'!$H$25=TRUE,\"optie 2\",\"\"))","v":""},"BIN 2.1 : zomercomfort optie","tekstveld","object - Duurzaamheid - evaluatie 3"]
["object.DZEV3.Flex","DZ014","",{"$f":"IF('Doc Load_Evaluatie 3'!$H$19=TRUE,\"Adaptief\",IF('Doc Load_Evaluatie 3'!$H$20=TRUE,\"Niet-adaptief\",\"\"))","v":""},"BIN 2.1 : zomercomfort adaptief/ niet adaptief","tekstveld","object - Duurzaamheid - evaluatie 3"]
["object.DZEV3.Flex","DZ015","",{"$f":"IF('Doc Load_Evaluatie 3'!$H$21=TRUE,_xlfn.TEXTJOIN(\", \",TRUE,IF('Doc Load_Evaluatie 3'!$H$22=\"Kies een item.\",\"\",'Doc Load_Evaluatie 3'!$H$22),IF('Doc Load_Evaluatie 3'!$H$23=\"Kies een item.\",\"\",'Doc Load_Evaluatie 3'!$H$23),IF('Doc Load_Evaluatie 3'!$H$24=\"Kies een item.\",\"\",'Doc Load_Evaluatie 3'!$H$24)),IF('Doc Load_Evaluatie 3'!$H$25=TRUE,_xlfn.TEXTJOIN(\", \",TRUE,IF('Doc Load_Evaluatie 3'!$H$26=\"Kies een item.\",\"\",'Doc Load_Evaluatie 3'!$H$26),IF('Doc Load_Evaluatie 3'!$H$27=\"Kies een item.\",\"\",'Doc Load_Evaluatie 3'!$H$27),IF('Doc Load_Evaluatie 3'!$H$28=\"Kies een item.\",\"\",'Doc Load_Evaluatie 3'!$H$28)),\"\"))","v":""},"BIN 2.1 : zomercomfort zonwering","tekstveld","object - Duurzaamheid - evaluatie 3"]
["object.DZEV3.Flex","DZ018","",{"$f":"IF('Doc Load_Evaluatie 3'!$H$29=TRUE,\"ja\",\"nee\")","v":"nee"},"SOC 3: advies toegankelijkheid toegevoegd","Vinkje","object - Duurzaamheid - evaluatie 3"]
["object.DZEV3.Flex","DZ019","",{"$f":"IF('Doc Load_Evaluatie 3'!$H$30=TRUE,\"Validatie door een onafhankelijk toegankelijkheidsadviseur in fase definitief ontwerp en eindcontrole bij voorlopige oplevering. + Uitstekend in de checklist\",IF('Doc Load_Evaluatie 3'!$H$31=TRUE,\"Validatie door een onafhankelijk toegankelijkheidsadviseur bij voorlopige oplevering (eindcontrole). + Beter in de checklist\",IF('Doc Load_Evaluatie 3'!$H$32=TRUE,\"zelfevaluatie. Er is geen onafhankelijke controle over de correcte toepassing van de principes van integrale toegankelijkheid of van de checklist SOC3. + Beter in de checklist\",\"\")))","v":""},"SOC 3: checklist ingevuld","tekstveld","object - Duurzaamheid - evaluatie 3"]
["object.DZEV3.Flex","DZ020","",{"$f":"IF('Doc Load_Evaluatie 3'!$H$33=TRUE,\"ja\",\"nee\")","v":"nee"},"SOC 3: begeleidingstraject gevolgd","Vinkje","object - Duurzaamheid - evaluatie 3"]
["object.DZEV3.Flex","DZ021","",{"$f":"IF('Doc Load_Evaluatie 3'!$H$35=TRUE,\"ja\",\"nee\")","v":"nee"},"SOC 3: label","Vinkje","object - Duurzaamheid - evaluatie 3"]
["object.DZEV3.Flex","DZ022","",{"$f":"IF(NOT('Doc Load_Evaluatie 3'!$H$36=\"Klik of tik om tekst in te voeren.\"),'Doc Load_Evaluatie 3'!$H$36,IF(NOT('Doc Load_Evaluatie 3'!$H$37=\"klik of tik om tekst in te voeren.\"),'Doc Load_Evaluatie 3'!$H$37,\"\"))","v":""},"ENE 1.1: Energieprestatie E-peil","tekstveld","object - Duurzaamheid - evaluatie 3"]
["object.DZEV3.Flex","DZ023","",{"$f":"IF('Doc Load_Evaluatie 3'!$H$50=TRUE,\">25=\",IF('Doc Load_Evaluatie 3'!$H$51=TRUE,\"<25=\",IF('Doc Load_Evaluatie 3'!$H$52=TRUE,\"<13=\",IF('Doc Load_Evaluatie 3'!$H$53=TRUE,\">35=\",IF('Doc Load_Evaluatie 3'!$H$54=TRUE,\">50=\",IF('Doc Load_Evaluatie 3'!$H$55=TRUE,\">75=\",\"0\"))))))","v":"0"},"ENE 1.1: Energieprestatie % hernieuwbare energie","tekstveld","object - Duurzaamheid - evaluatie 3"]
["object.DZEV3.Flex","DZ024","",{"$f":"_xlfn.TEXTJOIN(\", \",TRUE,IF('Doc Load_Evaluatie 3'!$H$39=TRUE,'Doc Load_Evaluatie 3'!$H$38,\"\"),IF('Doc Load_Evaluatie 3'!$H$41=TRUE,'Doc Load_Evaluatie 3'!$H$40,\"\"),IF('Doc Load_Evaluatie 3'!H103=TRUE,'Doc Load_Evaluatie 3'!$H$42,\"\"),IF('Doc Load_Evaluatie 3'!$H$45=TRUE,'Doc Load_Evaluatie 3'!$H$44,\"\"),IF('Doc Load_Evaluatie 3'!$H$47=TRUE,'Doc Load_Evaluatie 3'!$H$46,\"\"),IF('Doc Load_Evaluatie 3'!$H$49=TRUE,'Doc Load_Evaluatie 3'!$H$48,\"\"))","v":"Klik of tik om tekst in te voeren."},"ENE 1.1: Energieprestatie technieken","tekstveld","object - Duurzaamheid - evaluatie 3"]
["object.DZEV3.Flex","DZ027","",{"$f":"IF('Doc Load_Evaluatie 3'!$H$64=TRUE,\"ja\",\"nee\")","v":"nee"},"LCC 3.1: aangevinkt","Vinkje","object - Duurzaamheid - evaluatie 3"]
["object.DZEV3.Flex","DZ028","",{"$f":"IF('Doc Load_Evaluatie 3'!$H$64=TRUE,H116,\"\")","v":""},"LCC 3.1: CO2-uitstoot","tekstveld","object - Duurzaamheid - evaluatie 3"]
["object.DZEV3.Flex","DZ016","",{"$f":"_xlfn.TEXTJOIN(\", \",FALSE,'Doc Load_Evaluatie 3'!$H$58,IF('Doc Load_Evaluatie 3'!$H$59=\"Kies een item.\",\"\",'Doc Load_Evaluatie 3'!$H$59))","v":", "},"BIN 3.1: Ventilatiesysteem","tekstveld","object - Duurzaamheid - evaluatie 3"]
["object.DZEV3.Flex","DZ017","",{"$f":"_xlfn.TEXTJOIN(\",\",FALSE,IF('Doc Load_Evaluatie 3'!$H$56=\"Kies een item.\",\"\",'Doc Load_Evaluatie 3'!$H$56),IF('Doc Load_Evaluatie 3'!$H$57=\"Kies een item.\",\"\",'Doc Load_Evaluatie 3'!$H$57))","v":","},"Verwarmingssysteem","tekstveld","object - Duurzaamheid - evaluatie 3"]
["object.DZEV3.Flex","DZ029","",{"$f":"IF(COUNTIF('Doc Load_Evaluatie 3'!$H$67:$H$72,NOT(\"Kies een item.\"))>0,\"ja\",\"nee\")","v":"nee"},"Werd er een afwijking aangevraagd?","tekstveld","object - Duurzaamheid - evaluatie 3"]
["object.DZEV3.Flex","DZ030","",{"$f":"COUNTIF('Doc Load_Evaluatie 3'!$H$67:$H$72,NOT(\"Kies een item.\"))","v":0},"Voor hoeveel artikelen werd er een afwijking aangevraagd","tekstveld","object - Duurzaamheid - evaluatie 3"]
["object.DZEV3.Flex","DZ006","",{"$f":"IF('Doc Load_Evaluatie 3'!$H$12=TRUE,\"ja\",\"nee\")","v":"nee"},"BIN 1.1 Luchtgeluid","vinkje","object - Duurzaamheid - evaluatie 3"]
["object.DZEV3.Flex","DZ007","",{"$f":"IF('Doc Load_Evaluatie 3'!$H$13=TRUE,\"ja\",\"nee\")","v":"nee"},"BIN 1.2 Contactgeluid","vinkje","object - Duurzaamheid - evaluatie 3"]
["object.DZEV3.Flex","DZ008","",{"$f":"IF('Doc Load_Evaluatie 3'!$H$14=TRUE,\"ja\",\"nee\")","v":"nee"},"BIN 1.3 Gevelgeluid","vinkje","object - Duurzaamheid - evaluatie 3"]
["object.DZEV3.Flex","DZ009","",{"$f":"IF('Doc Load_Evaluatie 3'!$H$15=TRUE,\"ja\",\"nee\")","v":"nee"},"BIN 1.4 Installatielawaai","vinkje","object - Duurzaamheid - evaluatie 3"]
["object.DZEV3.Flex","DZ010","",{"$f":"IF('Doc Load_Evaluatie 3'!$H$16=TRUE,\"ja\",\"nee\")","v":"nee"},"BIN 1.5 Nagalm","vinkje","object - Duurzaamheid - evaluatie 3"]
["object.DZEV3.Flex","DZ011","",{"$f":"IF('Doc Load_Evaluatie 3'!$H$17=TRUE,\"ja\",\"nee\")","v":"nee"},"BIN 1.6: Geluidsuitstraling","vinkje","object - Duurzaamheid - evaluatie 3"]
["object.DZEV3.Flex","DZ012","",{"$f":"IF('Doc Load_Evaluatie 3'!$H$18=TRUE,\"ja\",\"nee\")","v":"nee"},"BIN 1.7 Buitengeluid","vinkje","object - Duurzaamheid - evaluatie 3"]
["object.DZEV3.Flex","DZ026","",{"$f":"IF('Doc Load_Evaluatie 3'!$H$61=TRUE,\"50= van totaal wordt gedekt door hergebruik van water\",IF('Doc Load_Evaluatie 3'!$H$62=TRUE,\"35= van totaal wordt gedekt door hergebruik van water\",IF('Doc Load_Evaluatie 3'!$H$63=TRUE,\"20= van totaal wordt gedekt door hergebruik van water\",\"\")))","v":""},"WAT 2.1: dekkingsgraad waterhergebruik","tekstveld","object - Duurzaamheid - evaluatie 3"]
["object.DZEV3.Flex","DZ025","",{"$f":"IF('Doc Load_Evaluatie 3'!$H$66=TRUE,\"ja\",\"nee\")","v":"nee"},"MAT 2.1 TOTEM","Vinkje","object - Duurzaamheid - evaluatie 3"]

{"sheet":"Upload AXI","index":8,"n_rows":2,"n_cols":91,"rows_kept":2,"cut":false,"hidden":true,"merged":[]}
[{"$f":"'Upload AXI - CONF'!C2","v":"Dossier.Reference"},{"$f":"'Upload AXI - CONF'!C3","v":"object.DZAV.FlexDZ001"},{"$f":"'Upload AXI - CONF'!C4","v":"object.DZAV.FlexDZ002"},{"$f":"'Upload AXI - CONF'!C5","v":"object.DZAV.FlexDZ003"},{"$f":"'Upload AXI - CONF'!C6","v":"object.DZAV.FlexDZ004"},{"$f":"'Upload AXI - CONF'!C7","v":"object.DZAV.FlexDZ005"},{"$f":"'Upload AXI - CONF'!C8","v":"object.DZAV.FlexDZ013"},{"$f":"'Upload AXI - CONF'!C9","v":"object.DZAV.FlexDZ014"},{"$f":"'Upload AXI - CONF'!C10","v":"object.DZAV.FlexDZ015"},{"$f":"'Upload AXI - CONF'!C11","v":"object.DZAV.FlexDZ018"},{"$f":"'Upload AXI - CONF'!C12","v":"object.DZAV.FlexDZ019"},{"$f":"'Upload AXI - CONF'!C13","v":"object.DZAV.FlexDZ020"},{"$f":"'Upload AXI - CONF'!C14","v":"object.DZAV.FlexDZ021"},{"$f":"'Upload AXI - CONF'!C15","v":"object.DZAV.FlexDZ022"},{"$f":"'Upload AXI - CONF'!C16","v":"object.DZAV.FlexDZ023"},{"$f":"'Upload AXI - CONF'!C17","v":"object.DZAV.FlexDZ024"},{"$f":"'Upload AXI - CONF'!C18","v":"object.DZAV.FlexDZ027"},{"$f":"'Upload AXI - CONF'!C19","v":"object.DZAV.FlexDZ028"},{"$f":"'Upload AXI - CONF'!C20","v":"object.DZAV.FlexDZ016"},{"$f":"'Upload AXI - CONF'!C21","v":"object.DZAV.FlexDZ017"},{"$f":"'Upload AXI - CONF'!C22","v":"object.DZAV.FlexDZ029"},{"$f":"'Upload AXI - CONF'!C23","v":"object.DZAV.FlexDZ030"},{"$f":"'Upload AXI - CONF'!C24","v":"object.DZAV.FlexDZ006"},{"$f":"'Upload AXI - CONF'!C25","v":"object.DZAV.FlexDZ007"},{"$f":"'Upload AXI - CONF'!C26","v":"object.DZAV.FlexDZ008"},{"$f":"'Upload AXI - CONF'!C27","v":"object.DZAV.FlexDZ009"},{"$f":"'Upload AXI - CONF'!C28","v":"object.DZAV.FlexDZ010"},{"$f":"'Upload AXI - CONF'!C29","v":"object.DZAV.FlexDZ011"},{"$f":"'Upload AXI - CONF'!C30","v":"object.DZAV.FlexDZ012"},{"$f":"'Upload AXI - CONF'!C31","v":"object.DZAV.FlexDZ026"},{"$f":"'Upload AXI - CONF'!C32","v":"object.DZAV.FlexDZ025"},{"$f":"'Upload AXI - CONF'!C33","v":""},{"$f":"'Upload AXI - CONF'!C34","v":""},{"$f":"'Upload AXI - CONF'!C35","v":""},{"$f":"'Upload AXI - CONF'!C36","v":""},{"$f":"'Upload AXI - CONF'!C37","v":""},{"$f":"'Upload AXI - CONF'!C38","v":""},{"$f":"'Upload AXI - CONF'!C39","v":""},{"$f":"'Upload AXI - CONF'!C40","v":""},{"$f":"'Upload AXI - CONF'!C41","v":""},{"$f":"'Upload AXI - CONF'!C42","v":""},{"$f":"'Upload AXI - CONF'!C43","v":""},{"$f":"'Upload AXI - CONF'!C44","v":""},{"$f":"'Upload AXI - CONF'!C45","v":""},{"$f":"'Upload AXI - CONF'!C46","v":""},{"$f":"'Upload AXI - CONF'!C47","v":""},{"$f":"'Upload AXI - CONF'!C48","v":""},{"$f":"'Upload AXI - CONF'!C49","v":""},{"$f":"'Upload AXI - CONF'!C50","v":""},{"$f":"'Upload AXI - CONF'!C51","v":""},{"$f":"'Upload AXI - CONF'!C52","v":""},{"$f":"'Upload AXI - CONF'!C53","v":""},{"$f":"'Upload AXI - CONF'!C54","v":""},{"$f":"'Upload AXI - CONF'!C55","v":""},{"$f":"'Upload AXI - CONF'!C56","v":""},{"$f":"'Upload AXI - CONF'!C57","v":""},{"$f":"'Upload AXI - CONF'!C58","v":""},{"$f":"'Upload AXI - CONF'!C59","v":""},{"$f":"'Upload AXI - CONF'!C60","v":""},{"$f":"'Upload AXI - CONF'!C61","v":""},{"$f":"'Upload AXI - CONF'!C62","v":""},{"$f":"'Upload AXI - CONF'!C63","v":""},{"$f":"'Upload AXI - CONF'!C64","v":""},{"$f":"'Upload AXI - CONF'!C65","v":""},{"$f":"'Upload AXI - CONF'!C66","v":""},{"$f":"'Upload AXI - CONF'!C67","v":""},{"$f":"'Upload AXI - CONF'!C68","v":""},{"$f":"'Upload AXI - CONF'!C69","v":""},{"$f":"'Upload AXI - CONF'!C70","v":""},{"$f":"'Upload AXI - CONF'!C71","v":""},{"$f":"'Upload AXI - CONF'!C72","v":""},{"$f":"'Upload AXI - CONF'!C73","v":""},{"$f":"'Upload AXI - CONF'!C74","v":""},{"$f":"'Upload AXI - CONF'!C75","v":""},{"$f":"'Upload AXI - CONF'!C76","v":""},{"$f":"'Upload AXI - CONF'!C77","v":""},{"$f":"'Upload AXI - CONF'!C78","v":""},{"$f":"'Upload AXI - CONF'!C79","v":""},{"$f":"'Upload AXI - CONF'!C80","v":""},{"$f":"'Upload AXI - CONF'!C81","v":""},{"$f":"'Upload AXI - CONF'!C82","v":""},{"$f":"'Upload AXI - CONF'!C83","v":""},{"$f":"'Upload AXI - CONF'!C84","v":""},{"$f":"'Upload AXI - CONF'!C85","v":""},{"$f":"'Upload AXI - CONF'!C86","v":""},{"$f":"'Upload AXI - CONF'!C87","v":""},{"$f":"'Upload AXI - CONF'!C88","v":""},{"$f":"'Upload AXI - CONF'!C89","v":""},{"$f":"'Upload AXI - CONF'!C90","v":""},{"$f":"'Upload AXI - CONF'!C91","v":""},{"$f":"'Upload AXI - CONF'!C92","v":""}]
[{"$f":"'Upload AXI - CONF'!D2","v":0},{"$f":"'Upload AXI - CONF'!D3","v":0},{"$f":"'Upload AXI - CONF'!D4","v":0},{"$f":"'Upload AXI - CONF'!D5","v":0},{"$f":"'Upload AXI - CONF'!D6","v":""},{"$f":"'Upload AXI - CONF'!D7","v":""},{"$f":"'Upload AXI - CONF'!D8","v":""},{"$f":"'Upload AXI - CONF'!D9","v":""},{"$f":"'Upload AXI - CONF'!D10","v":""},{"$f":"'Upload AXI - CONF'!D11","v":"nee"},{"$f":"'Upload AXI - CONF'!D12","v":""},{"$f":"'Upload AXI - CONF'!D13","v":"nee"},{"$f":"'Upload AXI - CONF'!D14","v":"nee"},{"$f":"'Upload AXI - CONF'!D15","v":""},{"$f":"'Upload AXI - CONF'!D16","v":"0"},{"$f":"'Upload AXI - CONF'!D17","v":"Kies een item."},{"$f":"'Upload AXI - CONF'!D18","v":"nee"},{"$f":"'Upload AXI - CONF'!D19","v":""},{"$f":"'Upload AXI - CONF'!D20","v":"Kies een item., "},{"$f":"'Upload AXI - CONF'!D21","v":","},{"$f":"'Upload AXI - CONF'!D22","v":"nee"},{"$f":"'Upload AXI - CONF'!D23","v":0},{"$f":"'Upload AXI - CONF'!D24","v":"nee"},{"$f":"'Upload AXI - CONF'!D25","v":"nee"},{"$f":"'Upload AXI - CONF'!D26","v":"nee"},{"$f":"'Upload AXI - CONF'!D27","v":"nee"},{"$f":"'Upload AXI - CONF'!D28","v":"nee"},{"$f":"'Upload AXI - CONF'!D29","v":"nee"},{"$f":"'Upload AXI - CONF'!D30","v":"nee"},{"$f":"'Upload AXI - CONF'!D31","v":""},{"$f":"'Upload AXI - CONF'!D32","v":"nee"},{"$f":"'Upload AXI - CONF'!D33","v":0},{"$f":"'Upload AXI - CONF'!D34","v":0},{"$f":"'Upload AXI - CONF'!D35","v":0},{"$f":"'Upload AXI - CONF'!D36","v":""},{"$f":"'Upload AXI - CONF'!D37","v":""},{"$f":"'Upload AXI - CONF'!D38","v":""},{"$f":"'Upload AXI - CONF'!D39","v":""},{"$f":"'Upload AXI - CONF'!D40","v":""},{"$f":"'Upload AXI - CONF'!D41","v":"nee"},{"$f":"'Upload AXI - CONF'!D42","v":""},{"$f":"'Upload AXI - CONF'!D43","v":"nee"},{"$f":"'Upload AXI - CONF'!D44","v":"nee"},{"$f":"'Upload AXI - CONF'!D45","v":""},{"$f":"'Upload AXI - CONF'!D46","v":"0"},{"$f":"'Upload AXI - CONF'!D47","v":"Klik of tik om tekst in te voeren."},{"$f":"'Upload AXI - CONF'!D48","v":"nee"},{"$f":"'Upload AXI - CONF'!D49","v":""},{"$f":"'Upload AXI - CONF'!D50","v":", "},{"$f":"'Upload AXI - CONF'!D51","v":","},{"$f":"'Upload AXI - CONF'!D52","v":"nee"},{"$f":"'Upload AXI - CONF'!D53","v":0},{"$f":"'Upload AXI - CONF'!D54","v":"nee"},{"$f":"'Upload AXI - CONF'!D55","v":"nee"},{"$f":"'Upload AXI - CONF'!D56","v":"nee"},{"$f":"'Upload AXI - CONF'!D57","v":"nee"},{"$f":"'Upload AXI - CONF'!D58","v":"nee"},{"$f":"'Upload AXI - CONF'!D59","v":"nee"},{"$f":"'Upload AXI - CONF'!D60","v":"nee"},{"$f":"'Upload AXI - CONF'!D61","v":""},{"$f":"'Upload AXI - CONF'!D62","v":"nee"},{"$f":"'Upload AXI - CONF'!D63","v":0},{"$f":"'Upload AXI - CONF'!D64","v":0},{"$f":"'Upload AXI - CONF'!D65","v":0},{"$f":"'Upload AXI - CONF'!D66","v":""},{"$f":"'Upload AXI - CONF'!D67","v":""},{"$f":"'Upload AXI - CONF'!D68","v":""},{"$f":"'Upload AXI - CONF'!D69","v":""},{"$f":"'Upload AXI - CONF'!D70","v":""},{"$f":"'Upload AXI - CONF'!D71","v":"nee"},{"$f":"'Upload AXI - CONF'!D72","v":""},{"$f":"'Upload AXI - CONF'!D73","v":"nee"},{"$f":"'Upload AXI - CONF'!D74","v":"nee"},{"$f":"'Upload AXI - CONF'!D75","v":""},{"$f":"'Upload AXI - CONF'!D76","v":"0"},{"$f":"'Upload AXI - CONF'!D77","v":"Klik of tik om tekst in te voeren."},{"$f":"'Upload AXI - CONF'!D78","v":"nee"},{"$f":"'Upload AXI - CONF'!D79","v":""},{"$f":"'Upload AXI - CONF'!D80","v":", "},{"$f":"'Upload AXI - CONF'!D81","v":","},{"$f":"'Upload AXI - CONF'!D82","v":"nee"},{"$f":"'Upload AXI - CONF'!D83","v":0},{"$f":"'Upload AXI - CONF'!D84","v":"nee"},{"$f":"'Upload AXI - CONF'!D85","v":"nee"},{"$f":"'Upload AXI - CONF'!D86","v":"nee"},{"$f":"'Upload AXI - CONF'!D87","v":"nee"},{"$f":"'Upload AXI - CONF'!D88","v":"nee"},{"$f":"'Upload AXI - CONF'!D89","v":"nee"},{"$f":"'Upload AXI - CONF'!D90","v":"nee"},{"$f":"'Upload AXI - CONF'!D91","v":""},{"$f":"'Upload AXI - CONF'!D92","v":"nee"}]

{"sheet":"Bron","index":9,"n_rows":8,"n_cols":2,"rows_kept":8,"cut":false,"hidden":true,"merged":[]}
[]
["Score","Uitstekend"]
[null,"Beter"]
[null,"Goed"]
[null,"Matig"]
[]
[null,"Voldaan"]
[null,"Niet voldaan"]